Workbook

Sheet Introduction
A3: . . . . . . . . . . . . . . . . . . . . . . . . . . . . . . . . . . . . . . . . . . . . . . . . . . . . . . . . . . . . . .
A5: Guidelines For Estimating
A6: ="Silage Production Costs - "&L9 -> Silage Production Costs - 2024
K9: Date: January, | L9: 2024
K11: **revised 2024 MASC data**
B14: This guide is designed to provide planning information and a format for calculating the costs of producing barley, corn and alfalfa grass silage for the purpose of feeding livestock in Manitoba. General Manitoba Agriculture recommendations are assumed in using fertilizers and chemical inputs. These figures provide an economic evaluation of the crops and estimated yields required to cover all costs. Costs include labour, investment and depreciation, but do not include management costs, nor do they necessarily represent the average cost of production in Manitoba.
B22: The assumptions on which the costs were calculated are clearly defined in the supporting pages. They were developed using a combination of recommended practices and methods followed by many producers. The major advantage of silage is that the crop can be harvested when it is ready in almost all weather conditions. Since there are fewer harvesting losses, more nutrients are harvested per acre compared with most other systems. Ensiling permits the use of a wider range of crops including grasses, legumes, grains, corn and miscellaneous salvage crops that have suffered weather damage or weed infestation. The major disadvantages of silage compared with hay is that it requires more capital investment and labour. Also, silage has limited market potential, because trucking costs limit distance to market, it must be produced near the location where it will be fed.
B33: These budgets may be adjusted by putting in your own figures. As a producer, you are encouraged to calculate your own costs of production for your silage crops. On each farm, costs and yields differ due to soil type, climate and agronomic practices.
B37: This tool is available as an Excel worksheet at:
B44: is also available to help
B45: determine machinery costs.
B52: Note: This budget is only a guide and is not intended as an in depth study of the cost of production of this industry. Interpretation and use of this information is the responsibility of the user. If you need help with a budget, contact a Farm Management Specialist.

Sheet Summary
A1: ="Silage Production Cost Summary - "&Introduction!L9 -> Silage Production Cost Summary - 2024
C3: Barley Silage | G3: Corn Silage | K3: Alfalfa-Grass Silage
C4: Annual | H4: Annual | K4: Year 1 Forage | L4: ="Annual (Years 2 to "&Production!F19+1&")" -> Annual (Years 2 to 8)
C5: Production Costs | H5: Production Costs | K5: Establishment 1 | L5: Production Costs
D6: (as fed) | E6: (Dry Matter-DM) | H6: (as fed) | I6: (DM) | M6: (as fed) | N6: (DM)
C7: $/acre | D7: $/ton | E7: $/ton | G7: $/acre | H7: $/ton | I7: $/ton | K7: $/acre | L7: $/acre | M7: $/ton | N7: $/ton | P7: Your Farm
A8: A. Operating Costs
B9: Seed & Treatment | C9: ='Seed, Fertilizer & Chemical'!J5 -> 29.25 | G9: ='Seed, Fertilizer & Chemical'!J6 -> 96 | K9: ='Seed, Fertilizer & Chemical'!J8 -> 36 | L9: -
B10: Nurse Crop Seed | C10: - | G10: - | K10: ='Seed, Fertilizer & Chemical'!J9 -> 15 | L10: -
B11: Establishment (amortized) | C11: - | G11: - | K11: - | L11: =SUM(-K51/Production!F19) -> 29.81982406
B12: Fertilizer | C12: ='Seed, Fertilizer & Chemical'!O28 -> 88.05035048 | G12: ='Seed, Fertilizer & Chemical'!O29 -> 160.242425 | K12: ='Seed, Fertilizer & Chemical'!O32 -> 99.71916712 | L12: ='Seed, Fertilizer & Chemical'!O31 -> 79.08871195
B13: Herbicide/Insecticide | C13: ='Seed, Fertilizer & Chemical'!J45 -> 16 | G13: ='Seed, Fertilizer & Chemical'!J46 -> 16 | K13: ='Seed, Fertilizer & Chemical'!J49 -> 35 | L13: ='Seed, Fertilizer & Chemical'!J48 -> 0
B14: Field Fuel Costs | C14: ='Op. Cost Input'!E14 -> 21.364 | G14: ='Op. Cost Input'!F14 -> 21.728 | K14: ='Op. Cost Input'!G14 -> 28.644 | L14: ='Op. Cost Input'!H14 -> 15.582
B15: Moving Fuel Costs | C15: ='Op. Cost Input'!E19 -> 3.579975 | G15: ='Op. Cost Input'!F19 -> 7.15995 | K15: ='Op. Cost Input'!G19 -> 1.9475064 | L15: ='Op. Cost Input'!H19 -> 3.0119523
B16: Packing Fuel Costs | C16: ='Op. Cost Input'!E23 -> 3.5 | G16: ='Op. Cost Input'!F23 -> 7 | K16: ='Op. Cost Input'!G23 -> 1.904 | L16: ='Op. Cost Input'!H23 -> 2.944666667
B17: Machinery Operating | C17: =SUM('Fixed Cost Input'!$D$53*'Op. Cost Input'!$E$4) -> 16.1 | G17: =SUM('Fixed Cost Input'!$D$53*'Op. Cost Input'!$E$4) -> 16.1 | K17: =SUM('Fixed Cost Input'!$D$53*'Op. Cost Input'!$E$4) -> 16.1 | L17: =SUM('Fixed Cost Input'!$D$53*'Op. Cost Input'!$E$4) -> 16.1
B18: Machinery Lease | C18: ='Fixed Cost Input'!$D$70 -> 4.8 | G18: ='Fixed Cost Input'!$D$70 -> 4.8 | K18: ='Fixed Cost Input'!$D$70 -> 4.8 | L18: ='Fixed Cost Input'!$D$70 -> 4.8
B19: Crop Insurance | C19: ='Op. Cost Input'!E27 -> 18.12 | G19: ='Op. Cost Input'!F27 -> 28.54 | K19: ='Op. Cost Input'!G27 -> 5 | L19: ='Op. Cost Input'!H27 -> 19.74
B20: Miscellaneous | C20: ='Op. Cost Input'!E29 -> 7.5 | G20: ='Op. Cost Input'!F29 -> 8.5 | K20: ='Op. Cost Input'!G29 -> 2 | L20: ='Op. Cost Input'!H29 -> 4.5
B21: Land Taxes | C21: ='Op. Cost Input'!$E$6 -> 10 | G21: ='Op. Cost Input'!$E$6 -> 10 | K21: ='Op. Cost Input'!$E$6 -> 10 | L21: ='Op. Cost Input'!$E$6 -> 10
B22: Rental & Custom Costs | C22: ='Op. Cost Input'!E36 -> 0 | G22: ='Op. Cost Input'!F36 -> 0 | K22: ='Op. Cost Input'!G36 -> 0 | L22: ='Op. Cost Input'!H36 -> 0
B23: Interest on Operating | C23: =ROUND(SUM(C9:C21)/2*('Op. Cost Input'!$E$3),2) -> 9.82 | G23: =ROUND(SUM(G9:G21)/2*('Op. Cost Input'!$E$3),2) -> 16.92 | K23: =ROUND(SUM(K9:K21)/2*('Op. Cost Input'!$E$3),2) -> 11.53 | L23: =ROUND(SUM(L9:L21)/2*('Op. Cost Input'!$E$3),2) -> 8.35
B24: Total Operating | C24: =SUM(C9:C23) -> 228.0843255 | G24: =SUM(G9:G23) -> 392.990375 | K24: =SUM(K9:K23) -> 267.6446735 | L24: =SUM(L9:L23) -> 193.937155 | P24: =IF(SUM(P9:P23)=0,"",SUM(P9:P23)) -> 
A26: B. Fixed Costs
B27: Land Costs | C27: ='Fixed Cost Input'!D12 -> 80.40545057 | G27: ='Fixed Cost Input'!D12 -> 80.40545057 | K27: ='Fixed Cost Input'!D12 -> 80.40545057 | L27: ='Fixed Cost Input'!D12 -> 80.40545057
B28: Machinery Costs | C28: ='Fixed Cost Input'!J14 -> 58.83187518 | G28: ='Fixed Cost Input'!J14 -> 58.83187518 | K28: ='Fixed Cost Input'!J14 -> 58.83187518 | L28: ='Fixed Cost Input'!J14 -> 58.83187518
B29: Storage Costs | C29: ='Fixed Cost Input'!D27 -> 4.102769159 | G29: ='Fixed Cost Input'!D27 -> 4.102769159 | K29: ='Fixed Cost Input'!D27 -> 4.102769159 | L29: ='Fixed Cost Input'!D27 -> 4.102769159
B30: Total Fixed | C30: =SUM(C27:C29) -> 143.3400949 | G30: =SUM(G27:G29) -> 143.3400949 | K30: =SUM(K27:K29) -> 143.3400949 | L30: =SUM(L27:L29) -> 143.3400949 | P30: =IF(SUM(P27:P28)=0,"",SUM(P27:P28)) -> 
B32: Total Operating & Fixed | C32: =+C24+C30 -> 371.4244204 | G32: =+G24+G30 -> 536.3304699 | K32: =+K24+K30 -> 410.9847684 | L32: =+L24+L30 -> 337.2772499 | P32: =IF(OR(P24="",P30=""),"",+P24+P30) -> 
A34: C. Owner - Labour & Living | C34: ='Op. Cost Input'!E45 -> 41.364 | G34: ='Op. Cost Input'!F45 -> 61.857 | K34: ='Op. Cost Input'!G45 -> 41.364 | L34: ='Op. Cost Input'!H45 -> 24.489
A36: Total Costs | C36: =+C24+C30+C34 -> 412.7884204 | D36: =SUM(C36/Production!$D$17) -> 55.03845605 | E36: =SUM(C36/Production!$D$18) -> 149.5610219 | G36: =+G24+G30+G34 -> 598.1874699 | H36: =SUM(G36/Production!$E$17) -> 39.87916466 | I36: =SUM(G36/Production!$E$18) -> 113.9404705 | K36: =+K24+K30+K34 -> 452.3487684 | L36: =+L32+L34 -> 361.7662499 | M36: =SUM(L36/Production!$F$17) -> 57.33221076 | N36: =SUM(L36/Production!$F$18) -> 132.7134508 | P36: =IF(P24="","",SUM(P34+P27+#REF!+P28+#REF!+P9+P10+P11+P12+P13+P14+P15+P17+P19+P20+P21+P23)) -> 
A38: Total Costs ($/lb.) | D38: =SUM(D36/2000) -> 0.02751922803 | E38: =SUM(E36/2000) -> 0.07478051094 | H38: =SUM(H36/2000) -> 0.01993958233 | I38: =SUM(I36/2000) -> 0.05697023523 | M38: =SUM(M36/2000) -> 0.02866610538 | N38: =SUM(N36/2000) -> 0.06635672542
A40: Profitability & Breakeven Analysis
A42: Estimated Farmgate | D42: As Fed | E42: DM | H42: As Fed | I42: DM | M42: As Fed | N42: DM
B43: Price $ per ton | D43: =Production!D40 -> 60 | E43: =SUM(D46/E44) -> 163.0434783 | H43: =Production!E40 -> 52 | I43: =SUM(H46/I44) -> 148.5714286 | K43: =Production!F40 -> 59.70892449 | M43: =Production!F40 -> 59.70892449 | N43: =SUM(M46/N44) -> 138.2138874
B44: Yield per acre (ton) | D44: =Production!D17 -> 7.5 | E44: =Production!D18 -> 2.76 | H44: =Production!E17 -> 15 | I44: =Production!E18 -> 5.25 | K44: =Production!F5 -> 4.08 | M44: =Production!F17 -> 6.31 | N44: =Production!F18 -> 2.72592
B45: ="Total Yield (tons/"&'Fixed Cost Input'!D4&" acres)" -> Total Yield (tons/300 acres) | D45: =SUM(D44*'Fixed Cost Input'!$D$4) -> 2250 | E45: =SUM(E44*'Fixed Cost Input'!$D$4) -> 828 | H45: =SUM(H44*'Fixed Cost Input'!$D$4) -> 4500 | I45: =SUM(I44*'Fixed Cost Input'!$D$4) -> 1575 | M45: =SUM(M44*'Fixed Cost Input'!$D$4) -> 1893 | N45: =SUM(N44*'Fixed Cost Input'!$D$4) -> 817.776
B46: Gross Revenue | D46: =ROUND((D43*D44),2) -> 450 | H46: =ROUND((H43*H44),2) -> 780 | K46: =ROUND((K43*K44),2) -> 243.61 | M46: =ROUND((M43*M44),2) -> 376.76 | P46: =IF(OR(P43="",P44=""),"",ROUND((P43*P44),2)) -> 
D48: (as fed) | E48: (DM) | H48: (as fed) | I48: (DM) | M48: (as fed) | N48: (DM)
A49: Marginal Returns | C49: $/acre | D49: $/ton | E49: $/ton | G49: $/acre | H49: $/ton | I49: $/ton | K49: $/acre | L49: $/acre | M49: $/ton | N49: $/ton
B50: Over Operating Costs | C50: =SUM(D46-C24) -> 221.9156745 | D50: =SUM(C50/Production!$D$17) -> 29.5887566 | E50: =SUM(C50/Production!$D$18) -> 80.4042299 | G50: =SUM(H46-G24) -> 387.009625 | H50: =SUM(G50/Production!$E$17) -> 25.80064167 | I50: =SUM(G50/Production!$E$18) -> 73.71611905 | K50: =SUM(K46-K24) -> -24.03467352 | L50: =SUM(M46-L24) -> 182.822845 | M50: =SUM(L50/Production!$F$17) -> 28.97350951 | N50: =SUM(L50/Production!$F$18) -> 67.06830906 | P50: =IF(OR(P24="",P46=""),"",P46-P24) -> 
B51: Over Total Costs (Net Profit) | C51: =SUM(D46-C36) -> 37.2115796 | D51: =SUM(C51/Production!$D$17) -> 4.961543947 | E51: =SUM(C51/Production!$D$18) -> 13.48245638 | G51: =SUM(H46-G36) -> 181.8125301 | H51: =SUM(G51/Production!$E$17) -> 12.12083534 | I51: =SUM(G51/Production!$E$18) -> 34.63095811 | K51: =SUM(K46-K36) -> -208.7387684 | L51: =SUM(M46-L36) -> 14.99375011 | M51: =SUM(L51/Production!$F$17) -> 2.376188607 | N51: =SUM(L51/Production!$F$18) -> 5.500436589 | P51: =IF(OR(P36="",P46=""),"",P46-P36) -> 
B52: Operating Expense Ratio | C52: =SUM(C24/D46) -> 0.5068540566 | G52: =SUM(G24/H46) -> 0.5038338141 | K52: =SUM(K24/K46) -> 1.098660455 | L52: =SUM(L24/M46) -> 0.514749854 | P52: =IF(OR(P24="",P46=""),"",P24/P46) -> 
A54: Breakeven Price Per Ton
B55: Operating Costs | D55: =SUM(C24/Production!$D$17) -> 30.4112434 | E55: =SUM(C24/Production!$D$18) -> 82.63924836 | H55: =SUM(G24/Production!$E$17) -> 26.19935833 | I55: =SUM(G24/Production!$E$18) -> 74.85530952 | M55: =SUM(L24/Production!$F$17) -> 30.73488985 | N55: =SUM(L24/Production!$F$18) -> 71.14557836
B56: Total Costs | D56: =SUM(C36/Production!$D$17) -> 55.03845605 | E56: =SUM(C36/Production!$D$18) -> 149.5610219 | H56: =SUM(G36/Production!$E$17) -> 39.87916466 | I56: =SUM(G36/Production!$E$18) -> 113.9404705 | M56: =SUM(L36/Production!$F$17) -> 57.33221076 | N56: =SUM(M36/Production!$F$17) -> 9.085928805
A58: Breakeven Yield (tons per acre)
B59: Operating Costs | D59: =C24/D43 -> 3.801405425 | H59: =G24/H43 -> 7.557507211 | M59: =L24/M43 -> 3.248043013
B60: Total Costs | D60: =C36/D43 -> 6.879807007 | H60: =G36/H43 -> 11.50360519 | M60: =L36/M43 -> 6.058830451
A62: Cost of Standing Silage ($/lb.) | D62: =(((SUM(C9+C12+C13+C19+(C17*0.2)+(C18*0.2)+((C20-2.5)/2)+C21+C27)+(C14*0.4)+(C34*0.2)+ROUND(SUM(C9+C12+C13+C19+(C17*0.2)+(C18*0.2)*((C20-2.5)/2)+C21+(C14*0.4))/2*('Op. Cost Input'!$E$3),4))*1)/Production!$D$17)/2000 -> 0.01821504007 | E62: 2 | H62: =(((SUM(G9+G12+G13+G19+(G17*0.2)+(G18*0.2)+((G20-3.5)/2)+G21+G27)+(G14*0.4)+(G34*0.2)+ROUND(SUM(G9+G12+G13+G19+(G17*0.2)+(G18*0.2)*((G20-3.5)/2)+G21+(G14*0.4))/2*('Op. Cost Input'!$E$3),4))*1)/Production!$E$17)/2000 -> 0.01445198919 | I62: 2 | M62: =(((SUM(L11+L12+L13+L19+((L20-2.5)/2)+L21+L27)+(L14*0.05)+(L34*0.05)+ROUND(SUM(L11+L12+L13+L19+((L20-2.5)/2)+L21+(L14*0.05))/2*('Op. Cost Input'!$E$3),4))*1)/Production!$F$17)/2000 -> 0.01809641336 | N62: 3
A63: Cost of Standing Silage ($/ton) | D63: =(((SUM(C9+C12+C13+C19+(C17*0.2)+(C18*0.2)+((C20-2.5)/2)+C21+C27)+(C14*0.4)+(C34*0.2)+ROUND(SUM(C9+C12+C13+C19+(C17*0.2)+(C18*0.2)*((C20-2.5)/2)+C21+(C14*0.4))/2*('Op. Cost Input'!$E$3),4))*1)/Production!$D$17) -> 36.43008014 | E63: 2 | H63: =(((SUM(G9+G12+G13+G19+(G17*0.2)+(G18*0.2)+((G20-3.5)/2)+G21+G27)+(G14*0.4)+(G34*0.2)+ROUND(SUM(G9+G12+G13+G19+(G17*0.2)+(G18*0.2)*((G20-3.5)/2)+G21+(G14*0.4))/2*('Op. Cost Input'!$E$3),4))*1)/Production!$E$17) -> 28.90397837 | I63: 2 | M63: =(((SUM(L11+L12+L13+L19+((L20-2.5)/2)+L21+L27)+(L14*0.05)+(L34*0.05)+ROUND(SUM(L11+L12+L13+L19+((L20-2.5)/2)+L21+(L14*0.05))/2*('Op. Cost Input'!$E$3),4))*1)/Production!$F$17) -> 36.19282672 | N63: 3
A64: On-Farm Harvest Cost ($/ton) | D64: =SUM(D36-D63) -> 18.60837591 | H64: =SUM(H36-H63) -> 10.97518629 | M64: =SUM(M36-M63) -> 21.13938404
A66: TDN & Crude Protein Cost Analysis
C67: =C3 -> Barley Silage | G67: =G3 -> Corn Silage | K67: =K3 -> Alfalfa-Grass Silage
C68: Nutrient Cost ($/pound DM) | G68: Nutrient Cost ($/pound DM) | K68: Nutrient Cost ($/pound DM)
C69: ="TDN ("&Production!D30&"%)" -> TDN (62.8%) | E69: ="Crude Protein ("&Production!D29&"%)" -> Crude Protein (11.1%) | G69: ="TDN ("&Production!E30&"%)" -> TDN (64.6%) | I69: ="Crude Protein ("&Production!E29&"%)" -> Crude Protein (8.7%) | K69: ="TDN ("&Production!F30&"%)" -> TDN (60.4%) | M69: ="Crude Protein ("&Production!F29&"%)" -> Crude Protein (14.6%)
A70: Without Storage Loss | C70: =(($E$36)/((2000*(Production!D30/100)))) -> 0.1190772467 | E70: =(($E$36)/((2000*(Production!D29/100)))) -> 0.6736982968 | G70: =(($I$36)/((2000*(Production!E30/100)))) -> 0.08818921862 | I70: =(($I$36)/((2000*(Production!E29/100)))) -> 0.65483029 | K70: =(($N$36)/((2000*(Production!F30/100)))) -> 0.1098621282 | M70: =(($N$36)/((2000*(Production!F29/100)))) -> 0.4544981193
A71: ="With "&Production!D24*100&"% Storage Loss (as fed)" -> With 5% Storage Loss (as fed) | C71: =(($E$36/((2000*(1-Production!$D$24)*(Production!D30/100))))) -> 0.1253444702 | E71: =(($E$36)/((2000*(1-Production!$D$24)*(Production!D29/100)))) -> 0.7091561019 | G71: =(($I$36/((2000*(1-Production!$D$24)*(Production!E30/100))))) -> 0.09283075644 | I71: =(($I$36)/((2000*(1-Production!$D$24)*(Production!E29/100)))) -> 0.6892950421 | K71: =(($N$36/((2000*(1-Production!$D$24)*(Production!F30/100))))) -> 0.1156443454 | M71: =(($N$36)/((2000*(1-Production!$D$24)*(Production!F29/100)))) -> 0.4784190729
A74: ="1. Alfalfa-grass establishment (with oat silage nurse crop) net cost of $"&TEXT(-K51,"0.00")&" (total cost minus estimated gross revenue) were amortized over "&Production!F19&" silage production years." -> 1. Alfalfa-grass establishment (with oat silage nurse crop) net cost of $208.74 (total cost minus estimated gross revenue) were amortized over 7 silage production years.
A75: ="2. Cost of barley and corn standing silage (includes: seed; fertilizer; pesticide; land taxes; crop insurance; 40% of fuel; 20% of labour,machinery lease, and machinery operating; 50% of other costs, and land costs.)" -> 2. Cost of barley and corn standing silage (includes: seed; fertilizer; pesticide; land taxes; crop insurance; 40% of fuel; 20% of labour,machinery lease, and machinery operating; 50% of other costs, and land costs.)
A77: ="3. Cost of alfalfa and alfalfa-grass standing silage (includes: establishment, fertilizer, pesticide, land taxes, crop insurance, 5% of fuel and labour, 50% of other costs, and land costs.)" -> 3. Cost of alfalfa and alfalfa-grass standing silage (includes: establishment, fertilizer, pesticide, land taxes, crop insurance, 5% of fuel and labour, 50% of other costs, and land costs.)
A80: Note: This budget is only a guide and is not intended as an in depth study of the cost of production of this industry. Interpretation and utilization of this information is the responsibility of the user.

Sheet Risk Analysis
A1: Risk & Sensitivity Analysis (Stress Test)
F3: Barley | H3: Corn | J3: Alfalfa Grass
A4: Baseline Values: | F4: Silage | H4: Silage | J4: Silage
B5: Production (Tons per acre) | F5: =Production!D17 -> 7.5 | H5: =Production!E17 -> 15 | J5: =Production!F17 -> 6.31
B6: Production Cost ($ per ton as fed) | F6: =Summary!D36 -> 55.03845605 | H6: =Summary!H36 -> 39.87916466 | J6: =Summary!M36 -> 57.33221076
B7: Production Cost ($ per lb. as fed) | F7: =Summary!D38 -> 0.02751922803 | H7: =Summary!H38 -> 0.01993958233 | J7: =Summary!M38 -> 0.02866610538
E9: Amount Added | F9: Changed Cost ($ per ton)
A10: Change in Silage Yield (tons per acre) | E10: -1.75 | F10: =((Summary!$C$36/(Production!D17+$E$10))-(Summary!$C$36/Production!$D$17)) -> 16.75083445 | H10: =((Summary!$G$36/(Production!E17+$E$10))-(Summary!$G$36/Production!$E$17)) -> 5.267059483 | J10: =((Summary!$L$36/(Production!F17+$E$10))-(Summary!$L$36/Production!$F$17)) -> 22.00249316
A11: Change in Land Value | D11: ="(from "&TEXT('Fixed Cost Input'!D3,"$#,###")&")" -> (from $3,000) | E11: 500 | F11: =(-(Summary!$C$27-ROUND((-PMT('Fixed Cost Input'!$C$9,'Fixed Cost Input'!$D$9,('Fixed Cost Input'!$D$3+$E$11)*'Fixed Cost Input'!$D$6,0)+(('Fixed Cost Input'!$D$3+$E$11)*'Fixed Cost Input'!$D$5*'Fixed Cost Input'!$D$7)),2))/Production!$D$17) -> 1.787273257 | H11: =(-(Summary!$G$27-ROUND((-PMT('Fixed Cost Input'!$C$9,'Fixed Cost Input'!$D$9,('Fixed Cost Input'!$D$3+$E$11)*'Fixed Cost Input'!$D$6,0)+(('Fixed Cost Input'!$D$3+$E$11)*'Fixed Cost Input'!$D$5*'Fixed Cost Input'!$D$7)),2))/Production!$E$17) -> 0.8936366284 | J11: =(-(Summary!$L$27-ROUND((-PMT('Fixed Cost Input'!$C$9,'Fixed Cost Input'!$D$9,('Fixed Cost Input'!$D$3+$E$11)*'Fixed Cost Input'!$D$6,0)+(('Fixed Cost Input'!$D$3+$E$11)*'Fixed Cost Input'!$D$5*'Fixed Cost Input'!$D$7)),2))/Production!$F$17) -> 2.124334299
A12: Percent Change in Owned Land Equity | D12: ="(from "&'Fixed Cost Input'!D5*100&"%)" -> (from 85%) | E12: -0.05 | F12: =(-(Summary!$C$27-ROUND((-PMT('Fixed Cost Input'!$C$9,'Fixed Cost Input'!$D$9,('Fixed Cost Input'!$D$3)*('Fixed Cost Input'!$D$6-$E$12),0)+(('Fixed Cost Input'!$D$3)*('Fixed Cost Input'!$D$5+$E$12)*'Fixed Cost Input'!$D$7)),2))/Production!$D$17) -> 1.573939924 | H12: =(-(Summary!$G$27-ROUND((-PMT('Fixed Cost Input'!$C$9,'Fixed Cost Input'!$D$9,('Fixed Cost Input'!$D$3)*('Fixed Cost Input'!$D$6-$E$12),0)+(('Fixed Cost Input'!$D$3)*('Fixed Cost Input'!$D$5+$E$12)*'Fixed Cost Input'!$D$7)),2))/Production!$E$17) -> 0.7869699618 | J12: =(-(Summary!$L$27-ROUND((-PMT('Fixed Cost Input'!$C$9,'Fixed Cost Input'!$D$9,('Fixed Cost Input'!$D$3)*('Fixed Cost Input'!$D$6-$E$12),0)+(('Fixed Cost Input'!$D$3)*('Fixed Cost Input'!$D$5+$E$12)*'Fixed Cost Input'!$D$7)),2))/Production!$F$17) -> 1.87076853
A13: Change in Land Interest Rate | D13: ="(from "&ROUND('Fixed Cost Input'!C9*100,3)&"%)" -> (from 8%) | E13: 0.015 | F13: =(-(Summary!$C$27-ROUND((-PMT('Fixed Cost Input'!$C$9+$E$13,'Fixed Cost Input'!$D$9,('Fixed Cost Input'!$D$3)*('Fixed Cost Input'!$D$6),0)+(('Fixed Cost Input'!$D$3)*('Fixed Cost Input'!$D$5)*'Fixed Cost Input'!$D$7)),2))/Production!$D$17) -> 0.7366065902 | H13: =(-(Summary!$G$27-ROUND((-PMT('Fixed Cost Input'!$C$9+$E$13,'Fixed Cost Input'!$D$9,('Fixed Cost Input'!$D$3)*('Fixed Cost Input'!$D$6),0)+(('Fixed Cost Input'!$D$3)*('Fixed Cost Input'!$D$5)*'Fixed Cost Input'!$D$7)),2))/Production!$E$17) -> 0.3683032951 | J13: =(-(Summary!$L$27-ROUND((-PMT('Fixed Cost Input'!$C$9+$E$13,'Fixed Cost Input'!$D$9,('Fixed Cost Input'!$D$3)*('Fixed Cost Input'!$D$6),0)+(('Fixed Cost Input'!$D$3)*('Fixed Cost Input'!$D$5)*'Fixed Cost Input'!$D$7)),2))/Production!$F$17) -> 0.8755228885
A14: Change in Machinery Interest Rate | D14: ="(from "&ROUND('Fixed Cost Input'!H10*100,3)&"%)" -> (from 8.5%) | E14: 0.015 | F14: =(-(Summary!$C$28-'Fixed Cost Input'!$J$12-ROUND((-PMT('Fixed Cost Input'!$H$10+$E$14,'Fixed Cost Input'!$I$10,('Fixed Cost Input'!$J$3)*('Fixed Cost Input'!$J$7),0)+(('Fixed Cost Input'!$J$3)*('Fixed Cost Input'!$J$6)*'Fixed Cost Input'!$J$8)),2))/Production!$D$17) -> 0.2417499755 | H14: =(-(Summary!$G$28-'Fixed Cost Input'!$J$12-ROUND((-PMT('Fixed Cost Input'!$H$10+$E$14,'Fixed Cost Input'!$I$10,('Fixed Cost Input'!$J$3)*('Fixed Cost Input'!$J$7),0)+(('Fixed Cost Input'!$J$3)*('Fixed Cost Input'!$J$6)*'Fixed Cost Input'!$J$8)),2))/Production!$E$17) -> 0.1208749877 | J14: =(-(Summary!$L$28-'Fixed Cost Input'!$J$12-ROUND((-PMT('Fixed Cost Input'!$H$10+$E$14,'Fixed Cost Input'!$I$10,('Fixed Cost Input'!$J$3)*('Fixed Cost Input'!$J$7),0)+(('Fixed Cost Input'!$J$3)*('Fixed Cost Input'!$J$6)*'Fixed Cost Input'!$J$8)),2))/Production!$F$17) -> 0.2873414922
A15: Change in Fertilizer Cost ($ per tonne) | E15: 150 | F15: =(('Seed, Fertilizer & Chemical'!$O$66-'Seed, Fertilizer & Chemical'!$O$28)/Production!$D$17) -> 1.975953593 | H15: =(('Seed, Fertilizer & Chemical'!$O$67-'Seed, Fertilizer & Chemical'!$O$29)/Production!$E$17) -> 1.907528457 | J15: =(((-Summary!$L$11-((Summary!K51+Summary!K12-'Seed, Fertilizer & Chemical'!O70)/Production!F19))+('Seed, Fertilizer & Chemical'!O69-'Seed, Fertilizer & Chemical'!O31))/Production!$F$17) -> 2.848405181
E16: ="Total Change in Cost ($ per ton)" -> Total Change in Cost ($ per ton) | F16: =SUM(F10:F15) -> 23.06635779 | H16: =SUM(H10:H15) -> 9.344372813 | J16: =SUM(J10:J15) -> 30.00886556
E18: ="'Stress Test' Production Cost ($ per ton)" -> 'Stress Test' Production Cost ($ per ton) | F18: =F16+(Summary!D36) -> 78.10481384 | H18: =H16+(Summary!H36) -> 49.22353747 | J18: =J16+(Summary!M36) -> 87.34107632
E19: ="($ per lb.)" -> ($ per lb.) | F19: =SUM(F18/2000) -> 0.03905240692 | H19: =SUM(H18/2000) -> 0.02461176874 | J19: =SUM(J18/2000) -> 0.04367053816
A78: Forage Cost Comparison Analysis
F79: Barley | H79: Corn | J79: Alfalfa Grass
F80: Silage | H80: Silage | J80: Silage
A81: Cost of Silage ($/wet ton) | F81: =Summary!D36 -> 55.03845605 | H81: =Summary!H36 -> 39.87916466 | J81: =Summary!M36 -> 57.33221076
A83: Equivalent Dry Hay Value (TDN Basis) for Breakeven Purchase Decision:
A84: ="Alfalfa/Grass - "&Production!D47&"% H2O, "&Production!D46&"% TDN" -> Alfalfa/Grass - 12.6% H2O, 60% TDN | E84: ($/ton) | F84: =SUM(2000*(1-(Production!D47/100))*(Production!D46/100))*Summary!C70 -> 124.8882164 | H84: =SUM(2000*(1-(Production!D47/100))*(Production!D46/100))*Summary!G70 -> 92.49285249 | J84: =SUM(2000*(1-(Production!D47/100))*(Production!D46/100))*Summary!K70 -> 115.2234
E85: ($/lb.) | F85: =SUM(F84/2000) -> 0.06244410818 | H85: =SUM(H84/2000) -> 0.04624642624 | J85: =SUM(J84/2000) -> 0.05761170001
A87: ="Alfalfa - "&Production!E47&"% H2O, "&Production!E46&"%TDN" -> Alfalfa - 12.1% H2O, 61.5%TDN | E87: ($/ton) | F87: =SUM(2000*(1-(Production!E47/100))*(Production!E46/100))*Summary!C70 -> 128.7427468 | H87: =SUM(2000*(1-(Production!E47/100))*(Production!E46/100))*Summary!G70 -> 95.34753749 | J87: =SUM(2000*(1-(Production!E47/100))*(Production!E46/100))*Summary!K70 -> 118.7796371
E88: ($/lb.) | F88: =SUM(F87/2000) -> 0.06437137342 | H88: =SUM(H87/2000) -> 0.04767376875 | J88: =SUM(J87/2000) -> 0.05938981856
A90: Equivalent Dry Hay Value (CP Basis) for Breakeven Purchase Decision:
A91: ="Alfalfa/Grass - "&Production!D47&"% H2O, "&Production!D45&"% CP" -> Alfalfa/Grass - 12.6% H2O, 14% CP | E91: ($/ton) | F91: =SUM(2000*(1-(Production!D47/100))*(Production!D45/100))*Summary!E70 -> 164.8674472 | H91: =SUM(2000*(1-(Production!D47/100))*(Production!D45/100))*Summary!I70 -> 160.2500686 | J91: =SUM(2000*(1-(Production!D47/100))*(Production!D45/100))*Summary!M70 -> 111.2247798
E92: ($/lb.) | F92: =SUM(F91/2000) -> 0.08243372359 | H92: =SUM(H91/2000) -> 0.08012503428 | J92: =SUM(J91/2000) -> 0.05561238988
A94: ="Alfalfa - "&Production!E47&"% H2O, "&Production!E45&"% CP" -> Alfalfa - 12.1% H2O, 18.2% CP | E94: ($/ton) | F94: =SUM(2000*(1-(Production!E47/100))*(Production!E45/100))*Summary!E70 -> 215.5538122 | H94: =SUM(2000*(1-(Production!E47/100))*(Production!E45/100))*Summary!I70 -> 209.5168803 | J94: =SUM(2000*(1-(Production!E47/100))*(Production!E45/100))*Summary!M70 -> 145.4194003
E95: ($/lb.) | F95: =SUM(F94/2000) -> 0.1077769061 | H95: =SUM(H94/2000) -> 0.1047584401 | J95: =SUM(J94/2000) -> 0.07270970013
A97: Note: This budget is only a guide and is not intended as an in depth study of the cost of production of this industry. Interpretation and utilization of this information is the responsibility of the user.

Sheet Forage Insurance
A1: AgriInsurance Analysis
B4: Forage Region 6 | C4: Barley Silage | D4: Corn Silage | E4: Alfalfa Grass Silage
B5: Risk Area 14 | E5: Basic Hay option | G5: Select Hay option
E6: =B93 -> 80% Coverage | G6: More Than 4 Year Stand | I6: 4 Years or Less Stand
B7: *Based on 2024 MASC data* | C7: 80% Coverage | D7: 80% Coverage | E7: Low - $23/tonne | F7: High - $38/tonne | G7: 70% Coverage | H7: 80% Coverage | I7: 70% Coverage | J7: 80% Coverage
A9: A. | B9: Silage Acres | C9: 160 | D9: 160 | E9: 160 | F9: 160 | G9: 160 | H9: 160 | I9: 160 | J9: 160
A11: Coverage
A12: B. | B12: Probable Yield - IC (tons/acre) | C12: =HLOOKUP($B$5,'DATA (HIDE)'!$A$114:$P$126,2,FALSE) -> 4.654 | D12: =HLOOKUP($B$5,'DATA (HIDE)'!$A$130:$P$142,2,FALSE) -> 13.158 | E12: =HLOOKUP($B$4,'DATA (HIDE)'!$A$81:$G$93,2,FALSE) -> 3.138 | F12: =HLOOKUP($B$4,'DATA (HIDE)'!$I$81:$O$93,2,FALSE) -> 3.138 | G12: =HLOOKUP($B$4,'DATA (HIDE)'!$I$63:$O$75,2,FALSE) -> 2.788 | H12: =HLOOKUP($B$4,'DATA (HIDE)'!$A$63:$G$75,2,FALSE) -> 2.788 | I12: =HLOOKUP($B$4,'DATA (HIDE)'!$I$45:$O$57,2,FALSE) -> 4.347 | J12: =HLOOKUP($B$4,'DATA (HIDE)'!$A$45:$G$57,2,FALSE) -> 4.347
A13: C. | B13: Premium ($/Acre) | C13: =HLOOKUP($B$5,'DATA (HIDE)'!$A$114:$P$126,5,FALSE) -> 17.6 | D13: =HLOOKUP($B$5,'DATA (HIDE)'!$A$130:$P$142,5,FALSE) -> 28.02 | E13: =HLOOKUP($B$4,'DATA (HIDE)'!$A$81:$G$93,5,FALSE) -> 5.68 | F13: =HLOOKUP($B$4,'DATA (HIDE)'!$I$81:$O$93,5,FALSE) -> 9.22 | G13: =HLOOKUP($B$4,'DATA (HIDE)'!$I$63:$O$75,5,FALSE) -> 13.56 | H13: =HLOOKUP($B$4,'DATA (HIDE)'!$A$63:$G$75,5,FALSE) -> 19.74 | I13: =HLOOKUP($B$4,'DATA (HIDE)'!$I$45:$O$57,5,FALSE) -> 13.56 | J13: =HLOOKUP($B$4,'DATA (HIDE)'!$A$45:$G$57,5,FALSE) -> 19.74
A14: D. | B14: Premium (Total $) = A x C | C14: =C13*C9 -> 2816 | D14: 4483.2 | E14: 908.8 | F14: 1475.2 | G14: 2169.6 | H14: 3158.4 | I14: 2169.6 | J14: 3158.4
A15: E. | B15: Premium Cost (% of Insured) = C/H | C15: =C13/C20 -> 0.07929528121 | D15: 0.03246316902 | E15: 0.07105946817 | F15: 0.06940342124 | G15: 0.07946603933 | H15: 0.1012225047 | I15: 0.05097960996 | J15: 0.06493696999
A17: Coverage Calculation
A18: F. | B18: Coverage (tons/acre) = B x % | C18: =HLOOKUP($B$5,'DATA (HIDE)'!$A$114:$P$126,3,FALSE) -> 3.723 | D18: =HLOOKUP($B$5,'DATA (HIDE)'!$A$130:$P$142,3,FALSE) -> 10.526 | E18: =HLOOKUP($B$4,'DATA (HIDE)'!$A$81:$G$93,3,FALSE) -> 2.51 | F18: =HLOOKUP($B$4,'DATA (HIDE)'!$I$81:$O$93,3,FALSE) -> 2.51 | G18: =HLOOKUP($B$4,'DATA (HIDE)'!$I$63:$O$75,3,FALSE) -> 1.952 | H18: =HLOOKUP($B$4,'DATA (HIDE)'!$A$63:$G$93,3,FALSE) -> 2.23 | I18: =HLOOKUP($B$4,'DATA (HIDE)'!$I$45:$O$57,3,FALSE) -> 3.043 | J18: =HLOOKUP($B$4,'DATA (HIDE)'!$A$45:$G$57,3,FALSE) -> 3.478
A19: G. | B19: Coverage ($/ton) | C19: ='DATA (HIDE)'!D3 -> 59.61771562 | D19: ='DATA (HIDE)'!C4 -> 82 | E19: ='DATA (HIDE)'!D7 -> 31.84 | F19: ='DATA (HIDE)'!D8 -> 52.91 | G19: ='DATA (HIDE)'!$D$2 -> 87.44 | H19: ='DATA (HIDE)'!$D$2 -> 87.44 | I19: ='DATA (HIDE)'!$D$2 -> 87.44 | J19: ='DATA (HIDE)'!$D$2 -> 87.44
A20: H. | B20: Coverage ($/acre) = F x G | C20: =HLOOKUP($B$5,'DATA (HIDE)'!$A$114:$P$126,4,FALSE) -> 221.9552 | D20: =HLOOKUP($B$5,'DATA (HIDE)'!$A$130:$P$142,4,FALSE) -> 863.132 | E20: =HLOOKUP($B$4,'DATA (HIDE)'!$A$81:$G$93,4,FALSE) -> 79.93304969 | F20: =HLOOKUP($B$4,'DATA (HIDE)'!$I$81:$O$93,4,FALSE) -> 132.8464769 | G20: =HLOOKUP($B$4,'DATA (HIDE)'!$I$63:$O$75,4,FALSE) -> 170.638931 | H20: =HLOOKUP($B$4,'DATA (HIDE)'!$A$63:$G$75,4,FALSE) -> 195.0159211 | I20: =HLOOKUP($B$4,'DATA (HIDE)'!$I$45:$O$57,4,FALSE) -> 265.9886965 | J20: =HLOOKUP($B$4,'DATA (HIDE)'!$A$45:$G$57,4,FALSE) -> 303.9870817
A21: I. | B21: Coverage (Total $) = A x H | C21: =C20*C9 -> 35512.832 | D21: 138101.12 | E21: 12789.28795 | F21: 21255.43631 | G21: 27302.22896 | H21: 31202.54738 | I21: 42558.19143 | J21: 48637.93307
A23: Indmenity Calculation
A24: J. | B24: Avg.Silage Yield (tons/acre) | C24: 1.75
A25: K. | B25: Avg. Total No. of tons | C25: =$C$24*C9 -> 280 | D25: 280 | E25: 280 | F25: 280 | G25: 280 | H25: 280 | I25: 280 | J25: 280
A26: L. | B26: Percent of Probable Yield | C26: =$C$24/C12 -> 0.3760206274 | D26: 0.132998936 | E26: 0.557680051 | F26: 0.557680051 | G26: 0.6276901004 | H26: 0.6276901004 | I26: 0.4025764895 | J26: 0.4025764895
A27: M. | B27: Forage Indemnity (tons/acre) = F - J | C27: =IF(C18-$C$24<0,0,C18-$C$24) -> 1.973 | D27: 8.776 | E27: 0.76 | F27: 0.76 | G27: 0.202 | H27: 0.48 | I27: 1.293 | J27: 1.728
A28: N. | B28: Forage Indemnity (% of coverage) | C28: =C27/C18 -> 0.5299489659 | D28: 0.8337450124 | E28: 0.3027888446 | F28: 0.3027888446 | G28: 0.1034836066 | H28: 0.2152466368 | I28: 0.4249096287 | J28: 0.4968372628
A29: O. | B29: Est. Forage Indemnity ($/acre) = G x M | C29: =C27*C19 -> 117.6257529 | D29: 719.632 | E29: 24.1984 | F29: 40.2116 | G29: 17.66288 | H29: 41.9712 | I29: 113.05992 | J29: 151.09632
A30: P. | B30: Estimated Forage Indemnity = A x O | C30: =SUM(C27*C19*C9) -> 18820.12047 | D30: 115141.12 | E30: 3871.744 | F30: 6433.856 | G30: 2826.0608 | H30: 6715.392 | I30: 18089.5872 | J30: 24175.4112
A32: Hay Disaster Benefit Calculation | E32: (more than 20% of the producers insured by AgriInsurance have less than 50% of their long-term probable yield)
A33: Q. | B33: Significant MB hay yield loss | C33: Yes
A34: R. | B34: ="Est. HDB ($/acre) = M x $"&'DATA (HIDE)'!D9&"/ton" -> Est. HDB ($/acre) = M x $19.73/ton | C34: n/a | D34: n/a | E34: =IF($C$33="Yes",E27*'DATA (HIDE)'!D9,0) -> 14.9948 | F34: =IF($C$33="Yes",F27*'DATA (HIDE)'!D9,0) -> 14.9948 | G34: =IF($C$33="Yes",G27*'DATA (HIDE)'!D9,0) -> 3.98546 | H34: =IF($C$33="Yes",H27*'DATA (HIDE)'!D9,0) -> 9.4704 | I34: =IF($C$33="Yes",I27*'DATA (HIDE)'!D9,0) -> 25.51089 | J34: =IF($C$33="Yes",J27*'DATA (HIDE)'!D9,0) -> 34.09344
A35: S. | B35: Est. Hay Disaster Benefit = A x R | C35: n/a | D35: n/a | E35: =IF($C$33="Yes",E27*'DATA (HIDE)'!D9*E9,0) -> 2399.168 | F35: =IF($C$33="Yes",F27*'DATA (HIDE)'!D9*F9,0) -> 2399.168 | G35: =IF($C$33="Yes",G27*'DATA (HIDE)'!D9*G9,0) -> 637.6736 | H35: =IF($C$33="Yes",H27*'DATA (HIDE)'!D9*H9,0) -> 1515.264 | I35: =IF($C$33="Yes",I27*'DATA (HIDE)'!D9*I9,0) -> 4081.7424 | J35: =IF($C$33="Yes",J27*'DATA (HIDE)'!D9*J9,0) -> 5454.9504
A37: Total Indemnity + HDB
A38: T. | B38: Est. Indemnity + HDB ($/acre) = O + R | C38: =C29 -> 117.6257529 | D38: =D29 -> 719.632 | E38: =E34+E29 -> 39.1932 | F38: 55.2064 | G38: 21.64834 | H38: 51.4416 | I38: 138.57081 | J38: 185.18976
A39: U. | B39: Est.Indemnity + HDB = P + S | C39: =C30 -> 18820.12047 | D39: =D30 -> 115141.12 | E39: 6270.912 | F39: 8833.024 | G39: 3463.7344 | H39: 8230.656 | I39: 22171.3296 | J39: 29630.3616
A41: Breakeven Calculation
B42: Est. Breakeven yield (tons/acre) | C42: =C18-(C13/C19) -> 3.427785737 | D42: 10.18429268 | E42: 2.33160804 | F42: 2.335741826 | G42: 1.796922232 | H42: 2.004245197 | I42: 2.887922232 | J42: 3.252245197
A44: Costs Not Covered By AgriInsurance
B45: Operating Costs | C45: =HLOOKUP($B$5,'DATA (HIDE)'!$A$114:$P$126,8,FALSE) -> 6.129125483 | D45: =HLOOKUP($B$5,'DATA (HIDE)'!$A$130:$P$142,8,FALSE) -> 0 | E45: =HLOOKUP($B$4,'DATA (HIDE)'!$A$81:$G$93,8,FALSE) -> 114.0041053 | F45: =HLOOKUP($B$4,'DATA (HIDE)'!$I$81:$O$93,8,FALSE) -> 61.09067803 | G45: =HLOOKUP($B$4,'DATA (HIDE)'!$I$63:$O$75,8,FALSE) -> 23.298224 | H45: =HLOOKUP($B$4,'DATA (HIDE)'!$A$63:$G$75,8,FALSE) -> 0 | I45: =HLOOKUP($B$4,'DATA (HIDE)'!$I$45:$O$57,8,FALSE) -> 0 | J45: =HLOOKUP($B$4,'DATA (HIDE)'!$A$45:$G$57,8,FALSE) -> 0
B46: Operating & Fixed Costs | C46: =HLOOKUP($B$5,'DATA (HIDE)'!$A$114:$P$126,9,FALSE) -> 149.4692204 | D46: =HLOOKUP($B$5,'DATA (HIDE)'!$A$130:$P$142,9,FALSE) -> 0 | E46: =HLOOKUP($B$4,'DATA (HIDE)'!$A$81:$G$93,9,FALSE) -> 257.3442002 | F46: =HLOOKUP($B$4,'DATA (HIDE)'!$I$81:$O$93,9,FALSE) -> 204.4307729 | G46: =HLOOKUP($B$4,'DATA (HIDE)'!$I$63:$O$75,9,FALSE) -> 166.6383189 | H46: =HLOOKUP($B$4,'DATA (HIDE)'!$A$63:$G$75,9,FALSE) -> 142.2613288 | I46: =HLOOKUP($B$4,'DATA (HIDE)'!$I$45:$O$57,9,FALSE) -> 71.28855343 | J46: =HLOOKUP($B$4,'DATA (HIDE)'!$A$45:$G$57,9,FALSE) -> 33.29016822
B47: Total Costs | C47: =HLOOKUP($B$5,'DATA (HIDE)'!$A$114:$P$126,10,FALSE) -> 190.8332204 | D47: =HLOOKUP($B$5,'DATA (HIDE)'!$A$130:$P$142,10,FALSE) -> 0 | E47: =HLOOKUP($B$4,'DATA (HIDE)'!$A$81:$G$93,10,FALSE) -> 281.8332002 | F47: =HLOOKUP($B$4,'DATA (HIDE)'!$I$81:$O$93,10,FALSE) -> 228.9197729 | G47: =HLOOKUP($B$4,'DATA (HIDE)'!$I$63:$O$75,10,FALSE) -> 191.1273189 | H47: =HLOOKUP($B$4,'DATA (HIDE)'!$A$63:$G$75,10,FALSE) -> 166.7503288 | I47: =HLOOKUP($B$4,'DATA (HIDE)'!$I$45:$O$57,10,FALSE) -> 95.77755343 | J47: =HLOOKUP($B$4,'DATA (HIDE)'!$A$45:$G$57,10,FALSE) -> 57.77916822
A49: AgriInsurance Risk Ratio | E49: (AgriInsurance Coverage / Cost)
B50: Operating Costs | C50: =HLOOKUP($B$5,'DATA (HIDE)'!$A$114:$P$126,12,FALSE) -> 0.9731278093 | D50: =HLOOKUP($B$5,'DATA (HIDE)'!$A$130:$P$142,12,FALSE) -> 2.196318421 | E50: =HLOOKUP($B$4,'DATA (HIDE)'!$A$81:$G$93,12,FALSE) -> 0.4121595457 | F50: =HLOOKUP($B$4,'DATA (HIDE)'!$I$81:$O$93,12,FALSE) -> 0.6849975548 | G50: =HLOOKUP($B$4,'DATA (HIDE)'!$I$63:$O$75,12,FALSE) -> 0.8798671456 | H50: =HLOOKUP($B$4,'DATA (HIDE)'!$A$63:$G$75,12,FALSE) -> 1.005562452 | I50: =HLOOKUP($B$4,'DATA (HIDE)'!$I$45:$O$57,12,FALSE) -> 1.37152005 | J50: =HLOOKUP($B$4,'DATA (HIDE)'!$A$45:$G$57,12,FALSE) -> 1.567451486
B51: Total Costs | C51: =HLOOKUP($B$5,'DATA (HIDE)'!$A$114:$P$126,13,FALSE) -> 0.5376972537 | D51: =HLOOKUP($B$5,'DATA (HIDE)'!$A$130:$P$142,13,FALSE) -> 1.442912203 | E51: =HLOOKUP($B$4,'DATA (HIDE)'!$A$81:$G$93,13,FALSE) -> 0.2209522025 | F51: =HLOOKUP($B$4,'DATA (HIDE)'!$I$81:$O$93,13,FALSE) -> 0.3672163365 | G51: =HLOOKUP($B$4,'DATA (HIDE)'!$I$63:$O$75,13,FALSE) -> 0.4716828367 | H51: =HLOOKUP($B$4,'DATA (HIDE)'!$A$63:$G$75,13,FALSE) -> 0.5390660991 | I51: =HLOOKUP($B$4,'DATA (HIDE)'!$I$45:$O$57,13,FALSE) -> 0.7352501693 | J51: =HLOOKUP($B$4,'DATA (HIDE)'!$A$45:$G$57,13,FALSE) -> 0.8402859077
H69: Forage Insurance Indemnity
B86: 4 Years or Less Stand | C86: Forage Region 1 | G86: Risk Area 1
B87: More Than 4 Year Stand | C87: Forage Region 2 | G87: Risk Area 2
C88: Forage Region 3 | G88: Risk Area 3
B89: ='DATA (HIDE)'!F7 -> Low - $32/tonne | C89: Forage Region 4 | G89: Risk Area 4
B90: ='DATA (HIDE)'!F8 -> High - $53/tonne | C90: Forage Region 5 | G90: Risk Area 5
C91: Forage Region 6 | G91: Risk Area 6
B92: 70% Coverage | G92: Risk Area 7
B93: 80% Coverage | G93: Risk Area 8
G94: Risk Area 9
B95: Yes | G95: Risk Area 10
B96: No | G96: Risk Area 11
G97: Risk Area 12
G98: Risk Area 14
G99: Risk Area 15
G100: Risk Area 16

Sheet Charts

Sheet Chart data (HIDE) (hidden)
A1: ="Barley Silage ($"&ROUND(B23,0)&" per acre)" -> Barley Silage ($413 per acre)
A2: ="Corn Silage ($"&ROUND(C23,0)&" per acre)" -> Corn Silage ($598 per acre)
A3: ="Alfalfa-Grass Silage ($"&ROUND(D23,0)&" per acre)" -> Alfalfa-Grass Silage ($362 per acre)
B4: =Summary!C3 -> Barley Silage | C4: =Summary!G3 -> Corn Silage | D4: =Summary!K3 -> Alfalfa-Grass Silage
A5: =Summary!B9 -> Seed & Treatment | B5: =Summary!C9 -> 29.25 | C5: =Summary!G9 -> 96 | D5: =Summary!L9 -> -
A6: =Summary!B11 -> Establishment (amortized) | B6: =Summary!C11 -> - | C6: =Summary!G11 -> - | D6: =Summary!L11 -> 29.81982406
A7: =Summary!B12 -> Fertilizer | B7: =Summary!C12 -> 88.05035048 | C7: =Summary!G12 -> 160.242425 | D7: =Summary!L12 -> 79.08871195
A8: =Summary!B14 -> Field Fuel Costs | B8: =Summary!C14 -> 21.364 | C8: =Summary!G14 -> 21.728 | D8: =Summary!L14 -> 15.582
A9: =Summary!B15 -> Moving Fuel Costs | B9: =Summary!C15 -> 3.579975 | C9: =Summary!G15 -> 7.15995 | D9: =Summary!L15 -> 3.0119523
A10: =Summary!B16 -> Packing Fuel Costs | B10: =Summary!C16 -> 3.5 | C10: =Summary!G16 -> 7 | D10: =Summary!L16 -> 2.944666667
A11: =Summary!B17 -> Machinery Operating | B11: =Summary!C17 -> 16.1 | C11: =Summary!G17 -> 16.1 | D11: =Summary!L17 -> 16.1
A12: =Summary!B18 -> Machinery Lease | B12: =Summary!C18 -> 4.8 | C12: =Summary!G18 -> 4.8 | D12: =Summary!L18 -> 4.8
A13: =Summary!B19 -> Crop Insurance | B13: =Summary!C19 -> 18.12 | C13: =Summary!G19 -> 28.54 | D13: =Summary!L19 -> 19.74
A14: =Summary!B20 -> Miscellaneous | B14: =Summary!C20 -> 7.5 | C14: =Summary!G20 -> 8.5 | D14: =Summary!L20 -> 4.5
A15: =Summary!B21 -> Land Taxes | B15: =Summary!C21 -> 10 | C15: =Summary!G21 -> 10 | D15: =Summary!L21 -> 10
A16: =Summary!B22 -> Rental & Custom Costs | B16: =Summary!C22 -> 0 | C16: =Summary!G22 -> 0 | D16: =Summary!L22 -> 0
A17: =Summary!B23 -> Interest on Operating | B17: =Summary!C23 -> 9.82 | C17: =Summary!G23 -> 16.92 | D17: =Summary!L23 -> 8.35
A18: =Summary!B27 -> Land Costs | B18: =Summary!C27 -> 80.40545057 | C18: =Summary!G27 -> 80.40545057 | D18: =Summary!L27 -> 80.40545057
A19: =Summary!#REF! ->  | B19: =Summary!#REF! ->  | C19: =Summary!#REF! ->  | D19: =Summary!#REF! -> 
A20: =Summary!B28 -> Machinery Costs | B20: =Summary!C28 -> 58.83187518 | C20: =Summary!G28 -> 58.83187518 | D20: =Summary!L28 -> 58.83187518
A21: =Summary!#REF! ->  | B21: =Summary!#REF!+Summary!C29 ->  | C21: =Summary!#REF!+Summary!G29 ->  | D21: =Summary!#REF!+Summary!L29 ->  | F21: storage?
A22: Labour | B22: =Summary!C34 -> 41.364 | C22: =Summary!G34 -> 61.857 | D22: =Summary!L34 -> 24.489
A23: Total | B23: =Summary!C36 -> 412.7884204 | C23: =Summary!G36 -> 598.1874699 | D23: =Summary!L36 -> 361.7662499
A27: Without Storage Loss | E27: With Storage Loss
B28: TDN Cost ($/lb DM) | C28: CP Cost ($/lb DM) | F28: TDN Cost ($/lb) | G28: CP Cost ($/lb) | L28: DM Cost ($/lb) | P28: As Fed Cost ($/ton) | Q28: DM Cost ($/ton)
A29: =Summary!C67 -> Barley Silage | B29: =Summary!C70 -> 0.1190772467 | C29: =Summary!E70 -> 0.6736982968 | E29: =A29 -> Barley Silage | F29: =Summary!C71 -> 0.1253444702 | G29: =Summary!E71 -> 0.7091561019 | K29: =A29 -> Barley Silage | L29: =Summary!E38 -> 0.07478051094 | O29: =A29 -> Barley Silage | P29: =Summary!D36 -> 55.03845605 | Q29: =Summary!E36 -> 149.5610219
A30: =Summary!G67 -> Corn Silage | B30: =Summary!G70 -> 0.08818921862 | C30: =Summary!I70 -> 0.65483029 | E30: Corn Silage | F30: =Summary!G71 -> 0.09283075644 | G30: =Summary!I71 -> 0.6892950421 | K30: =A30 -> Corn Silage | L30: =Summary!I38 -> 0.05697023523 | O30: =A30 -> Corn Silage | P30: =Summary!H36 -> 39.87916466 | Q30: =Summary!I36 -> 113.9404705
A31: =Summary!K67 -> Alfalfa-Grass Silage | B31: =Summary!K70 -> 0.1098621282 | C31: =Summary!M70 -> 0.4544981193 | E31: Alfalfa-Grass Silage | F31: =Summary!K71 -> 0.1156443454 | G31: =Summary!M71 -> 0.4784190729 | K31: Alfalfa-Grass Silage | L31: =Summary!N38 -> 0.06635672542 | O31: Alfalfa-Grass Silage | P31: =Summary!M36 -> 57.33221076 | Q31: =Summary!N36 -> 132.7134508
A32: =Production!D51 -> Alfalfa Hay | B32: =Production!D$61 -> 0.1094498997 | C32: =Production!D$62 -> 0.3698444413 | E32: Alfalfa Hay | F32: =Production!D63 -> 0.1368123746 | G32: =Production!D64 -> 0.4623055516 | K32: Alfalfa Hay | L32: =Production!D$56/2000 -> 0.06731168831 | O32: Alfalfa Hay | P32: =Production!D57 -> 118.4685714 | Q32: =Production!D56 -> 134.6233766
A33: =Production!E51 -> Alfalfa-Grass Hay | B33: =Production!E$61 -> 0.1223189891 | C33: =Production!E$62 -> 0.5242242389 | E33: Alfalfa-Grass Hay | F33: =Production!E63 -> 0.1528987363 | G33: =Production!E64 -> 0.6552802986 | K33: Alfalfa-Grass Hay | L33: =Production!E$56/2000 -> 0.07339139344 | O33: Alfalfa-Grass Hay | P33: =Production!E57 -> 128.3691756 | Q33: =Production!E56 -> 146.7827869
A34: =Production!F51 -> Greenfeed Hay | B34: =Production!F$61 -> 0.141013445 | C34: =Production!F$62 -> 0.8318368874 | E34: Greenfeed Hay | F34: =Production!F63 -> 0.1762668062 | G34: =Production!F64 -> 1.039796109 | K34: Greenfeed Hay | L34: =Production!F$56/2000 -> 0.08235185185 | O34: Greenfeed Hay | P34: =Production!F57 -> 141.4240283 | Q34: =Production!F56 -> 164.7037037
A35: =Production!G51 -> Alfalfa Baled Silage | B35: =Production!G$61 -> 0.1201924638 | C35: =Production!G$62 -> 0.4127488454 | E35: Alfalfa Baled Silage | F35: =Production!G63 -> 0.1265183829 | G35: =Production!G64 -> 0.4344724688 | K35: Alfalfa Baled Silage | L35: =Production!G$56/2000 -> 0.07512028986 | O35: Alfalfa Baled Silage | P35: =Production!G57 -> 75.22931785 | Q35: =Production!G56 -> 150.2405797
A36: =Production!H51 -> Alfalfa-Grass Baled Silage | B36: =Production!H$61 -> 0.1314223856 | C36: =Production!H$62 -> 0.5436926088 | E36: Alfalfa-Grass Baled Silage | F36: =Production!H63 -> 0.1383393532 | G36: =Production!H64 -> 0.5723080092 | K36: Alfalfa-Grass Baled Silage | L36: =Production!H$56/2000 -> 0.07937912088 | O36: Alfalfa-Grass Baled Silage | P36: =Production!H57 -> 79.52477064 | Q36: =Production!H56 -> 158.7582418
A37: =Production!I51 -> Greenfeed Baled Silage | B37: =Production!I$61 -> 0.139294798 | C37: =Production!I$62 -> 0.793717528 | E37: Greenfeed Baled Silage | F37: =Production!I63 -> 0.1466261031 | G37: =Production!I64 -> 0.8354921348 | K37: Greenfeed Baled Silage | L37: =Production!I$56/2000 -> 0.08413405797 | O37: Greenfeed Baled Silage | P37: =Production!I57 -> 84.13405797 | Q37: =Production!I56 -> 168.2681159
A38: =Production!L51 -> 0 | B38: =Production!L61 -> 0 | C38: =Production!L62 -> 0 | E38: 0 | F38: =B38 -> 0 | G38: 0 | K38: 0 | L38: =Production!L56 -> 0
A39: =Production!M51 -> 0 | B39: =Production!M61 -> 0 | C39: =Production!M62 -> 0 | E39: 0 | F39: 0 | G39: 0 | K39: 0 | L39: =Production!M56 -> 0
A40: =Production!N51 -> 0 | B40: =Production!N61 -> 0 | C40: =Production!N62 -> 0 | E40: 0 | F40: 0 | G40: 0 | K40: =A40 -> 0 | L40: =Production!N56 -> 0
A84: ="AgriInsurance Insured Value Analysis - "&Introduction!L9&" Manitoba - "&'Forage Insurance'!B4&"/"&'Forage Insurance'!B5 -> AgriInsurance Insured Value Analysis - 2024 Manitoba - Forage Region 6/Risk Area 14
A85: ="AgriInsurance Risk Analysis - "&Introduction!L9&" Manitoba - "&'Forage Insurance'!B4&"/"&'Forage Insurance'!B5 -> AgriInsurance Risk Analysis - 2024 Manitoba - Forage Region 6/Risk Area 14
C86: 80% Insured Value | D86: 80% Coverage of Operating Costs | E86: 80% Coverage of Total Costs (Risk) | F86: Premium Cost (% of Insured)
A87: Barley Silage | C87: ='Forage Insurance'!C20 -> 221.9552 | D87: ='Forage Insurance'!C50 -> 0.9731278093 | E87: ='Forage Insurance'!C51 -> 0.5376972537 | F87: ='Forage Insurance'!C15 -> 0.07929528121
A88: Corn Silage | C88: ='Forage Insurance'!D20 -> 863.132 | D88: ='Forage Insurance'!D50 -> 2.196318421 | E88: ='Forage Insurance'!D51 -> 1.442912203 | F88: ='Forage Insurance'!D15 -> 0.03246316902
A89: Alfalfa Grass Select Hay >4 years | C89: ='Forage Insurance'!H20 -> 195.0159211 | D89: ='Forage Insurance'!H50 -> 1.005562452 | E89: ='Forage Insurance'!H51 -> 0.5390660991 | F89: ='Forage Insurance'!H15 -> 0.1012225047
A90: Alfalfa Grass Basic Hay (High) | C90: ='Forage Insurance'!F20 -> 132.8464769 | D90: ='Forage Insurance'!F50 -> 0.6849975548 | E90: ='Forage Insurance'!F51 -> 0.3672163365 | F90: ='Forage Insurance'!F15 -> 0.06940342124
F93: ="(HDB = Hay Disaster Benefit = $"&'DATA (HIDE)'!D9&"/tonne, if more than 20% of the producers insured by AgriInsurance have less than 50% of their long-term probable yield)" -> (HDB = Hay Disaster Benefit = $19.73/tonne, if more than 20% of the producers insured by AgriInsurance have less than 50% of their long-term probable yield)
F94: ='Forage Insurance'!B4&" AgriInsurance Indemnity + HDB ($ per acre) @ "&'Forage Insurance'!C24&" Ton per Acre Yield" -> Forage Region 6 AgriInsurance Indemnity + HDB ($ per acre) @ 1.75 Ton per Acre Yield
B95: 44 | C95: 35 | F95: ='Forage Insurance'!B4&" AgriInsurance Indemnity ($ per acre) @ "&'Forage Insurance'!C24&" Ton per Acre Yield" -> Forage Region 6 AgriInsurance Indemnity ($ per acre) @ 1.75 Ton per Acre Yield
B96: Indem + HDB | C96: ="Indemnity ($/ac) @ "&'Forage Insurance'!C24&" ton/ac yield" -> Indemnity ($/ac) @ 1.75 ton/ac yield | D96: ='Forage Insurance'!B12 -> Probable Yield - IC (tons/acre) | E96: AgriInsurance Coverage (tons/ac) | F96: ="Est. Actual Yield ("&'Forage Insurance'!C24&" ton/ac)" -> Est. Actual Yield (1.75 ton/ac)
A97: ="Barley 80% ($"&'Forage Insurance'!C13&"/acre, $"&'DATA (HIDE)'!E3&"/tonne)" -> Barley 80% ($17.6/acre, $60/tonne) | B97: =C97 -> 117.6257529 | C97: ='Forage Insurance'!C$29 -> 117.6257529 | D97: ='Forage Insurance'!C$12 -> 4.654 | E97: ='Forage Insurance'!C$18 -> 3.723 | F97: ='Forage Insurance'!$C$24 -> 1.75
A98: ="Corn 80% ($"&'Forage Insurance'!D13&"/acre, $"&'DATA (HIDE)'!E4&"/tonne)" -> Corn 80% ($28.02/acre, $82/tonne) | B98: =C98 -> 719.632 | C98: ='Forage Insurance'!D$29 -> 719.632 | D98: ='Forage Insurance'!D$12 -> 13.158 | E98: ='Forage Insurance'!D$18 -> 10.526 | F98: ='Forage Insurance'!$C$24 -> 1.75
A99: ="Basic Hay Low ($"&'Forage Insurance'!E13&"/acre, $"&'DATA (HIDE)'!E7&"/ton)" -> Basic Hay Low ($5.68/acre, $32/ton) | B99: ='Forage Insurance'!E$38 -> 39.1932 | C99: ='Forage Insurance'!E$29 -> 24.1984 | D99: ='Forage Insurance'!E$12 -> 3.138 | E99: ='Forage Insurance'!E$18 -> 2.51 | F99: ='Forage Insurance'!$C$24 -> 1.75
A100: ="Basic Hay High ($"&'Forage Insurance'!F13&"/acre, $"&'DATA (HIDE)'!E8&"/ton)" -> Basic Hay High ($9.22/acre, $53/ton) | B100: ='Forage Insurance'!F$38 -> 55.2064 | C100: ='Forage Insurance'!F$29 -> 40.2116 | D100: ='Forage Insurance'!F$12 -> 3.138 | E100: ='Forage Insurance'!F$18 -> 2.51 | F100: ='Forage Insurance'!$C$24 -> 1.75
A101: ="Alfalfa Grass >4 years 70% ($"&'Forage Insurance'!G13&"/acre, $"&'DATA (HIDE)'!E2&"/ton)" -> Alfalfa Grass >4 years 70% ($13.56/acre, $87/ton) | B101: ='Forage Insurance'!G$38 -> 21.64834 | C101: ='Forage Insurance'!G$29 -> 17.66288 | D101: ='Forage Insurance'!G$12 -> 2.788 | E101: ='Forage Insurance'!G$18 -> 1.952 | F101: ='Forage Insurance'!$C$24 -> 1.75
A102: ="Alfalfa Grass >4 years 80% ($"&'Forage Insurance'!H13&"/acre, $"&'DATA (HIDE)'!E2&"/ton)" -> Alfalfa Grass >4 years 80% ($19.74/acre, $87/ton) | B102: ='Forage Insurance'!H$38 -> 51.4416 | C102: ='Forage Insurance'!H$29 -> 41.9712 | D102: ='Forage Insurance'!H$12 -> 2.788 | E102: ='Forage Insurance'!H$18 -> 2.23 | F102: ='Forage Insurance'!$C$24 -> 1.75
A103: ="Alfalfa Grass <=4 years 70% ($"&'Forage Insurance'!I13&"/acre, $"&'DATA (HIDE)'!E2&"/ton)" -> Alfalfa Grass <=4 years 70% ($13.56/acre, $87/ton) | B103: ='Forage Insurance'!I$38 -> 138.57081 | C103: ='Forage Insurance'!I$29 -> 113.05992 | D103: ='Forage Insurance'!I$12 -> 4.347 | E103: ='Forage Insurance'!I$18 -> 3.043 | F103: ='Forage Insurance'!$C$24 -> 1.75
A104: ="Alfalfa Grass <=4 years 80% ($"&'Forage Insurance'!J13&"/acre, $"&'DATA (HIDE)'!E2&"/ton)" -> Alfalfa Grass <=4 years 80% ($19.74/acre, $87/ton) | B104: ='Forage Insurance'!J$38 -> 185.18976 | C104: ='Forage Insurance'!J$29 -> 151.09632 | D104: ='Forage Insurance'!J$12 -> 4.347 | E104: ='Forage Insurance'!J$18 -> 3.478 | F104: ='Forage Insurance'!$C$24 -> 1.75
A105: insured and premium chart
A106: cost per ton as fed and DM chart
B161: ="Impact of Silage Yield on Cost Per Ton" -> Impact of Silage Yield on Cost Per Ton
B163: Ton Yield | C163: ="Barley Silage (from "&Production!D17&" tons/ac)" -> Barley Silage (from 7.5 tons/ac) | D163: ="Corn Silage (from "&Production!E17&" tons/ac)" -> Corn Silage (from 15 tons/ac) | E163: ="Alfalfa Grass Silage (from "&Production!F17&" tons/ac)" -> Alfalfa Grass Silage (from 6.31 tons/ac)
B164: =SUM(B166*3) -> -5.25 | C164: =IF(Production!$D$17+B164<=0,NA(),((Summary!$C$36/(Production!$D$17+B164))-(Summary!$C$36/Production!$D$17))+Summary!$D$36) -> 183.4615202 | D164: =IF(Production!$E$17+B164<=0,NA(),((Summary!$G$36/(Production!$E$17+B164))-(Summary!$G$36/Production!$E$17))+Summary!$H$36) -> 61.35256102 | E164: =IF(Production!$F$17+B164<=0,NA(),((Summary!$L$36/(Production!$F$17+B164))-(Summary!$L$36/Production!$F$17))+Summary!$M$36) -> 341.288915
B165: =SUM(B166*2) -> -3.5 | C165: =IF(Production!$D$17+B165<=0,NA(),((Summary!$C$36/(Production!$D$17+B165))-(Summary!$C$36/Production!$D$17))+Summary!$D$36) -> 103.1971051 | D165: =IF(Production!$E$17+B165<=0,NA(),((Summary!$G$36/(Production!$E$17+B165))-(Summary!$G$36/Production!$E$17))+Summary!$H$36) -> 52.01630173 | E165: =IF(Production!$F$17+B165<=0,NA(),((Summary!$L$36/(Production!$F$17+B165))-(Summary!$L$36/Production!$F$17))+Summary!$M$36) -> 128.7424377
B166: =-ABS('Risk Analysis'!$E$10) -> -1.75 | C166: =IF(Production!$D$17+B166<=0,NA(),((Summary!$C$36/(Production!$D$17+B166))-(Summary!$C$36/Production!$D$17))+Summary!$D$36) -> 71.7892905 | D166: =IF(Production!$E$17+B166<=0,NA(),((Summary!$G$36/(Production!$E$17+B166))-(Summary!$G$36/Production!$E$17))+Summary!$H$36) -> 45.14622414 | E166: =IF(Production!$F$17+B166<=0,NA(),((Summary!$L$36/(Production!$F$17+B166))-(Summary!$L$36/Production!$F$17))+Summary!$M$36) -> 79.33470392
B167: 0 | C167: =Summary!$D$36 -> 55.03845605 | D167: =Summary!$H$36 -> 39.87916466 | E167: =Summary!$M$36 -> 57.33221076
B168: =ABS('Risk Analysis'!$E$10) -> 1.75 | C168: =IF(Production!$D$17+B168<=0,NA(),((Summary!$C$36/(Production!$D$17+B168))-(Summary!$C$36/Production!$D$17))+Summary!$D$36) -> 44.62577518 | D168: =IF(Production!$E$17+B168<=0,NA(),((Summary!$G$36/(Production!$E$17+B168))-(Summary!$G$36/Production!$E$17))+Summary!$H$36) -> 35.71268477 | E168: =IF(Production!$F$17+B168<=0,NA(),((Summary!$L$36/(Production!$F$17+B168))-(Summary!$L$36/Production!$F$17))+Summary!$M$36) -> 44.88415011
B169: =SUM(B168*2) -> 3.5 | C169: =IF(Production!$D$17+B169<=0,NA(),((Summary!$C$36/(Production!$D$17+B169))-(Summary!$C$36/Production!$D$17))+Summary!$D$36) -> 37.52622004 | D169: =IF(Production!$E$17+B169<=0,NA(),((Summary!$G$36/(Production!$E$17+B169))-(Summary!$G$36/Production!$E$17))+Summary!$H$36) -> 32.33445783 | E169: =IF(Production!$F$17+B169<=0,NA(),((Summary!$L$36/(Production!$F$17+B169))-(Summary!$L$36/Production!$F$17))+Summary!$M$36) -> 36.87729357
B170: =SUM(B168*3) -> 5.25 | C170: =IF(Production!$D$17+B170<=0,NA(),((Summary!$C$36/(Production!$D$17+B170))-(Summary!$C$36/Production!$D$17))+Summary!$D$36) -> 32.37556238 | D170: =IF(Production!$E$17+B170<=0,NA(),((Summary!$G$36/(Production!$E$17+B170))-(Summary!$G$36/Production!$E$17))+Summary!$H$36) -> 29.54012197 | E170: =IF(Production!$F$17+B170<=0,NA(),((Summary!$L$36/(Production!$F$17+B170))-(Summary!$L$36/Production!$F$17))+Summary!$M$36) -> 31.2946583
B172: ="Impact of Fertilizer Cost on Cost Per Ton" -> Impact of Fertilizer Cost on Cost Per Ton
B174: Fertilizer Cost | C174: Barley Silage | D174: Corn Silage | E174: Alfalfa Grass Silage
B175: =SUM(B177*3) -> -450 | C175: =-(('Seed, Fertilizer & Chemical'!$O$108-'Seed, Fertilizer & Chemical'!$O$28)/Production!$D$17)+Summary!$D$36 -> 49.11059527 | D175: =-(('Seed, Fertilizer & Chemical'!$O$109-'Seed, Fertilizer & Chemical'!$O$29)/Production!$E$17)+Summary!$H$36 -> 34.15657929 | E175: =-(((-Summary!$L$11-((Summary!$K$51+Summary!$K$12-'Seed, Fertilizer & Chemical'!$O$111)/Production!$F$17))+('Seed, Fertilizer & Chemical'!$O$111-'Seed, Fertilizer & Chemical'!$O$31))/Production!$F$17)+Summary!$M$36 -> 48.86087867
B176: =SUM(B177*2) -> -300 | C176: =-(('Seed, Fertilizer & Chemical'!$O$87-'Seed, Fertilizer & Chemical'!$O$28)/Production!$D$17)+Summary!$D$36 -> 51.08654887 | D176: =-(('Seed, Fertilizer & Chemical'!$O$88-'Seed, Fertilizer & Chemical'!$O$29)/Production!$E$17)+Summary!$H$36 -> 36.06410775 | E176: =-(((-Summary!$L$11-((Summary!$K$51+Summary!$K$12-'Seed, Fertilizer & Chemical'!$O$90)/Production!$F$17))+('Seed, Fertilizer & Chemical'!$O$90-'Seed, Fertilizer & Chemical'!$O$31))/Production!$F$17)+Summary!$M$36 -> 51.68511461
B177: =-ABS('Risk Analysis'!$E$15) -> -150 | C177: =-(('Seed, Fertilizer & Chemical'!$O$66-'Seed, Fertilizer & Chemical'!$O$28)/Production!$D$17)+Summary!$D$36 -> 53.06250246 | D177: =-(('Seed, Fertilizer & Chemical'!$O$67-'Seed, Fertilizer & Chemical'!$O$29)/Production!$E$17)+Summary!$H$36 -> 37.9716362 | E177: =-(((-Summary!$L$11-((Summary!$K$51+Summary!$K$12-'Seed, Fertilizer & Chemical'!$O$69)/Production!$F$17))+('Seed, Fertilizer & Chemical'!$O$69-'Seed, Fertilizer & Chemical'!$O$31))/Production!$F$17)+Summary!$M$36 -> 54.50935056
B178: 0 | C178: =Summary!$D$36 -> 55.03845605 | D178: =Summary!$H$36 -> 39.87916466 | E178: =Summary!$M$36 -> 57.33221076
B179: =ABS('Risk Analysis'!$E$15) -> 150 | C179: =(('Seed, Fertilizer & Chemical'!$O$66-'Seed, Fertilizer & Chemical'!$O$28)/Production!$D$17)+Summary!$D$36 -> 57.01440965 | D179: =(('Seed, Fertilizer & Chemical'!$O$67-'Seed, Fertilizer & Chemical'!$O$29)/Production!$E$17)+Summary!$H$36 -> 41.78669312 | E179: =(((-Summary!$L$11-((Summary!$K$51+Summary!$K$12-'Seed, Fertilizer & Chemical'!$O$69)/Production!$F$17))+('Seed, Fertilizer & Chemical'!$O$69-'Seed, Fertilizer & Chemical'!$O$31))/Production!$F$17)+Summary!$M$36 -> 60.15507096
B180: =SUM(B179*2) -> 300 | C180: =(('Seed, Fertilizer & Chemical'!$O$87-'Seed, Fertilizer & Chemical'!$O$28)/Production!$D$17)+Summary!$D$36 -> 58.99036324 | D180: =(('Seed, Fertilizer & Chemical'!$O$88-'Seed, Fertilizer & Chemical'!$O$29)/Production!$E$17)+Summary!$H$36 -> 43.69422157 | E180: =(((-Summary!$L$11-((Summary!$K$51+Summary!$K$12-'Seed, Fertilizer & Chemical'!$O$90)/Production!$F$17))+('Seed, Fertilizer & Chemical'!$O$90-'Seed, Fertilizer & Chemical'!$O$31))/Production!$F$17)+Summary!$M$36 -> 62.97930691
B181: =SUM(B179*3) -> 450 | C181: =(('Seed, Fertilizer & Chemical'!$O$108-'Seed, Fertilizer & Chemical'!$O$28)/Production!$D$17)+Summary!$D$36 -> 60.96631683 | D181: =(('Seed, Fertilizer & Chemical'!$O$109-'Seed, Fertilizer & Chemical'!$O$29)/Production!$E$17)+Summary!$H$36 -> 45.60175003 | E181: =(((-Summary!$L$11-((Summary!$K$51+Summary!$K$12-'Seed, Fertilizer & Chemical'!$O$111)/Production!$F$17))+('Seed, Fertilizer & Chemical'!$O$111-'Seed, Fertilizer & Chemical'!$O$31))/Production!$F$17)+Summary!$M$36 -> 65.80354285
B183: ="Impact of Land Value on Cost Per Ton (from $"&TEXT('Fixed Cost Input'!D3,"#,###")&"/acre, "&'Fixed Cost Input'!D5*100&"% equity @ "&'Fixed Cost Input'!C9*100&"% for "&'Fixed Cost Input'!D9&" yrs) " -> Impact of Land Value on Cost Per Ton (from $3,000/acre, 85% equity @ 8% for 25 yrs)
B185: Land Value | C185: Barley Silage | D185: Corn Silage | E185: Alfalfa Grass Silage
B186: =SUM(B188*3) -> -1500 | C186: =IF('Fixed Cost Input'!$D$3+B186<0,NA(),(-(Summary!$C$27-ROUND((-PMT('Fixed Cost Input'!$C$9,'Fixed Cost Input'!$D$9,('Fixed Cost Input'!$D$3+B186)*'Fixed Cost Input'!$D$6,0)+(('Fixed Cost Input'!$D$3+B186)*'Fixed Cost Input'!$D$5*'Fixed Cost Input'!$D$7)),2))/Production!$D$17)+Summary!$D$36) -> 49.67772931 | D186: =IF('Fixed Cost Input'!$D$3+B186<0,NA(),(-(Summary!$G$27-ROUND((-PMT('Fixed Cost Input'!$C$9,'Fixed Cost Input'!$D$9,('Fixed Cost Input'!$D$3+B186)*'Fixed Cost Input'!$D$6,0)+(('Fixed Cost Input'!$D$3+B186)*'Fixed Cost Input'!$D$5*'Fixed Cost Input'!$D$7)),2))/Production!$E$17)+Summary!$H$36) -> 37.19880129 | E186: =IF('Fixed Cost Input'!$D$3+B186<0,NA(),(-(Summary!$L$27-ROUND((-PMT('Fixed Cost Input'!$C$9,'Fixed Cost Input'!$D$9,('Fixed Cost Input'!$D$3+B186)*'Fixed Cost Input'!$D$6,0)+(('Fixed Cost Input'!$D$3+B186)*'Fixed Cost Input'!$D$5*'Fixed Cost Input'!$D$7)),2))/Production!$F$17)+Summary!$M$36) -> 50.96050702
B187: =SUM(B188*2) -> -1000 | C187: =IF('Fixed Cost Input'!$D$3+B187<0,NA(),(-(Summary!$C$27-ROUND((-PMT('Fixed Cost Input'!$C$9,'Fixed Cost Input'!$D$9,('Fixed Cost Input'!$D$3+B187)*'Fixed Cost Input'!$D$6,0)+(('Fixed Cost Input'!$D$3+B187)*'Fixed Cost Input'!$D$5*'Fixed Cost Input'!$D$7)),2))/Production!$D$17)+Summary!$D$36) -> 51.46439598 | D187: =IF('Fixed Cost Input'!$D$3+B187<0,NA(),(-(Summary!$G$27-ROUND((-PMT('Fixed Cost Input'!$C$9,'Fixed Cost Input'!$D$9,('Fixed Cost Input'!$D$3+B187)*'Fixed Cost Input'!$D$6,0)+(('Fixed Cost Input'!$D$3+B187)*'Fixed Cost Input'!$D$5*'Fixed Cost Input'!$D$7)),2))/Production!$E$17)+Summary!$H$36) -> 38.09213462 | E187: =IF('Fixed Cost Input'!$D$3+B187<0,NA(),(-(Summary!$L$27-ROUND((-PMT('Fixed Cost Input'!$C$9,'Fixed Cost Input'!$D$9,('Fixed Cost Input'!$D$3+B187)*'Fixed Cost Input'!$D$6,0)+(('Fixed Cost Input'!$D$3+B187)*'Fixed Cost Input'!$D$5*'Fixed Cost Input'!$D$7)),2))/Production!$F$17)+Summary!$M$36) -> 53.08412034
B188: =-ABS('Risk Analysis'!$E$11) -> -500 | C188: =IF('Fixed Cost Input'!$D$3+B188<0,NA(),(-(Summary!$C$27-ROUND((-PMT('Fixed Cost Input'!$C$9,'Fixed Cost Input'!$D$9,('Fixed Cost Input'!$D$3+B188)*'Fixed Cost Input'!$D$6,0)+(('Fixed Cost Input'!$D$3+B188)*'Fixed Cost Input'!$D$5*'Fixed Cost Input'!$D$7)),2))/Production!$D$17)+Summary!$D$36) -> 53.25106264 | D188: =IF('Fixed Cost Input'!$D$3+B188<0,NA(),(-(Summary!$G$27-ROUND((-PMT('Fixed Cost Input'!$C$9,'Fixed Cost Input'!$D$9,('Fixed Cost Input'!$D$3+B188)*'Fixed Cost Input'!$D$6,0)+(('Fixed Cost Input'!$D$3+B188)*'Fixed Cost Input'!$D$5*'Fixed Cost Input'!$D$7)),2))/Production!$E$17)+Summary!$H$36) -> 38.98546795 | E188: =IF('Fixed Cost Input'!$D$3+B188<0,NA(),(-(Summary!$L$27-ROUND((-PMT('Fixed Cost Input'!$C$9,'Fixed Cost Input'!$D$9,('Fixed Cost Input'!$D$3+B188)*'Fixed Cost Input'!$D$6,0)+(('Fixed Cost Input'!$D$3+B188)*'Fixed Cost Input'!$D$5*'Fixed Cost Input'!$D$7)),2))/Production!$F$17)+Summary!$M$36) -> 55.20773365
B189: 0 | C189: =Summary!$D$36 -> 55.03845605 | D189: =Summary!$H$36 -> 39.87916466 | E189: =Summary!$M$36 -> 57.33221076
B190: =ABS('Risk Analysis'!$E$11) -> 500 | C190: =IF('Fixed Cost Input'!$D$3+B190<0,NA(),(-(Summary!$C$27-ROUND((-PMT('Fixed Cost Input'!$C$9,'Fixed Cost Input'!$D$9,('Fixed Cost Input'!$D$3+B190)*'Fixed Cost Input'!$D$6,0)+(('Fixed Cost Input'!$D$3+B190)*'Fixed Cost Input'!$D$5*'Fixed Cost Input'!$D$7)),2))/Production!$D$17)+Summary!$D$36) -> 56.82572931 | D190: =IF('Fixed Cost Input'!$D$3+B190<0,NA(),(-(Summary!$G$27-ROUND((-PMT('Fixed Cost Input'!$C$9,'Fixed Cost Input'!$D$9,('Fixed Cost Input'!$D$3+B190)*'Fixed Cost Input'!$D$6,0)+(('Fixed Cost Input'!$D$3+B190)*'Fixed Cost Input'!$D$5*'Fixed Cost Input'!$D$7)),2))/Production!$E$17)+Summary!$H$36) -> 40.77280129 | E190: =IF('Fixed Cost Input'!$D$3+B190<0,NA(),(-(Summary!$L$27-ROUND((-PMT('Fixed Cost Input'!$C$9,'Fixed Cost Input'!$D$9,('Fixed Cost Input'!$D$3+B190)*'Fixed Cost Input'!$D$6,0)+(('Fixed Cost Input'!$D$3+B190)*'Fixed Cost Input'!$D$5*'Fixed Cost Input'!$D$7)),2))/Production!$F$17)+Summary!$M$36) -> 59.45654506
B191: =SUM(B190*2) -> 1000 | C191: =IF('Fixed Cost Input'!$D$3+B191<0,NA(),(-(Summary!$C$27-ROUND((-PMT('Fixed Cost Input'!$C$9,'Fixed Cost Input'!$D$9,('Fixed Cost Input'!$D$3+B191)*'Fixed Cost Input'!$D$6,0)+(('Fixed Cost Input'!$D$3+B191)*'Fixed Cost Input'!$D$5*'Fixed Cost Input'!$D$7)),2))/Production!$D$17)+Summary!$D$36) -> 58.61239598 | D191: =IF('Fixed Cost Input'!$D$3+B191<0,NA(),(-(Summary!$G$27-ROUND((-PMT('Fixed Cost Input'!$C$9,'Fixed Cost Input'!$D$9,('Fixed Cost Input'!$D$3+B191)*'Fixed Cost Input'!$D$6,0)+(('Fixed Cost Input'!$D$3+B191)*'Fixed Cost Input'!$D$5*'Fixed Cost Input'!$D$7)),2))/Production!$E$17)+Summary!$H$36) -> 41.66613462 | E191: =IF('Fixed Cost Input'!$D$3+B191<0,NA(),(-(Summary!$L$27-ROUND((-PMT('Fixed Cost Input'!$C$9,'Fixed Cost Input'!$D$9,('Fixed Cost Input'!$D$3+B191)*'Fixed Cost Input'!$D$6,0)+(('Fixed Cost Input'!$D$3+B191)*'Fixed Cost Input'!$D$5*'Fixed Cost Input'!$D$7)),2))/Production!$F$17)+Summary!$M$36) -> 61.58015837
B192: =SUM(B190*3) -> 1500 | C192: =IF('Fixed Cost Input'!$D$3+B192<0,NA(),(-(Summary!$C$27-ROUND((-PMT('Fixed Cost Input'!$C$9,'Fixed Cost Input'!$D$9,('Fixed Cost Input'!$D$3+B192)*'Fixed Cost Input'!$D$6,0)+(('Fixed Cost Input'!$D$3+B192)*'Fixed Cost Input'!$D$5*'Fixed Cost Input'!$D$7)),2))/Production!$D$17)+Summary!$D$36) -> 60.39906264 | D192: =IF('Fixed Cost Input'!$D$3+B192<0,NA(),(-(Summary!$G$27-ROUND((-PMT('Fixed Cost Input'!$C$9,'Fixed Cost Input'!$D$9,('Fixed Cost Input'!$D$3+B192)*'Fixed Cost Input'!$D$6,0)+(('Fixed Cost Input'!$D$3+B192)*'Fixed Cost Input'!$D$5*'Fixed Cost Input'!$D$7)),2))/Production!$E$17)+Summary!$H$36) -> 42.55946795 | E192: =IF('Fixed Cost Input'!$D$3+B192<0,NA(),(-(Summary!$L$27-ROUND((-PMT('Fixed Cost Input'!$C$9,'Fixed Cost Input'!$D$9,('Fixed Cost Input'!$D$3+B192)*'Fixed Cost Input'!$D$6,0)+(('Fixed Cost Input'!$D$3+B192)*'Fixed Cost Input'!$D$5*'Fixed Cost Input'!$D$7)),2))/Production!$F$17)+Summary!$M$36) -> 63.70377168
B194: ="Impact of Owned Land Equity on Cost Per Ton (from "&'Fixed Cost Input'!D5*100&"% equity, $"&TEXT('Fixed Cost Input'!D3,"#,###")&"/acre @ "&'Fixed Cost Input'!C9*100&"% for "&'Fixed Cost Input'!D9&" yrs) " -> Impact of Owned Land Equity on Cost Per Ton (from 85% equity, $3,000/acre @ 8% for 25 yrs)
B196: Owned Equity | C196: Barley Silage | D196: Corn Silage | E196: Alfalfa Grass Silage
B197: =SUM(B199*3) -> -0.15 | C197: =IF('Fixed Cost Input'!$D$5+B197>100%,NA(),(-(Summary!$C$27-ROUND((-PMT('Fixed Cost Input'!$C$9,'Fixed Cost Input'!$D$9,('Fixed Cost Input'!$D$3)*('Fixed Cost Input'!$D$6-B197),0)+(('Fixed Cost Input'!$D$3)*('Fixed Cost Input'!$D$5+B197)*'Fixed Cost Input'!$D$7)),2))/Production!$D$17)+Summary!$D$36) -> 59.75906264 | D197: =IF('Fixed Cost Input'!$D$5+B197>100%,NA(),(-(Summary!$G$27-ROUND((-PMT('Fixed Cost Input'!$C$9,'Fixed Cost Input'!$D$9,('Fixed Cost Input'!$D$3)*('Fixed Cost Input'!$D$6-B197),0)+(('Fixed Cost Input'!$D$3)*('Fixed Cost Input'!$D$5+B197)*'Fixed Cost Input'!$D$7)),2))/Production!$E$17)+Summary!$H$36) -> 42.23946795 | E197: =IF('Fixed Cost Input'!$D$5+B197>100%,NA(),(-(Summary!$L$27-ROUND((-PMT('Fixed Cost Input'!$C$9,'Fixed Cost Input'!$D$9,('Fixed Cost Input'!$D$3)*('Fixed Cost Input'!$D$6-B197),0)+(('Fixed Cost Input'!$D$3)*('Fixed Cost Input'!$D$5+B197)*'Fixed Cost Input'!$D$7)),2))/Production!$F$17)+Summary!$M$36) -> 62.94307438
B198: =SUM(B199*2) -> -0.1 | C198: =IF('Fixed Cost Input'!$D$5+B198>100%,NA(),(-(Summary!$C$27-ROUND((-PMT('Fixed Cost Input'!$C$9,'Fixed Cost Input'!$D$9,('Fixed Cost Input'!$D$3)*('Fixed Cost Input'!$D$6-B198),0)+(('Fixed Cost Input'!$D$3)*('Fixed Cost Input'!$D$5+B198)*'Fixed Cost Input'!$D$7)),2))/Production!$D$17)+Summary!$D$36) -> 58.18572931 | D198: =IF('Fixed Cost Input'!$D$5+B198>100%,NA(),(-(Summary!$G$27-ROUND((-PMT('Fixed Cost Input'!$C$9,'Fixed Cost Input'!$D$9,('Fixed Cost Input'!$D$3)*('Fixed Cost Input'!$D$6-B198),0)+(('Fixed Cost Input'!$D$3)*('Fixed Cost Input'!$D$5+B198)*'Fixed Cost Input'!$D$7)),2))/Production!$E$17)+Summary!$H$36) -> 41.45280129 | E198: =IF('Fixed Cost Input'!$D$5+B198>100%,NA(),(-(Summary!$L$27-ROUND((-PMT('Fixed Cost Input'!$C$9,'Fixed Cost Input'!$D$9,('Fixed Cost Input'!$D$3)*('Fixed Cost Input'!$D$6-B198),0)+(('Fixed Cost Input'!$D$3)*('Fixed Cost Input'!$D$5+B198)*'Fixed Cost Input'!$D$7)),2))/Production!$F$17)+Summary!$M$36) -> 61.07302683
B199: =-ABS('Risk Analysis'!$E$12) -> -0.05 | C199: =IF('Fixed Cost Input'!$D$5+B199>100%,NA(),(-(Summary!$C$27-ROUND((-PMT('Fixed Cost Input'!$C$9,'Fixed Cost Input'!$D$9,('Fixed Cost Input'!$D$3)*('Fixed Cost Input'!$D$6-B199),0)+(('Fixed Cost Input'!$D$3)*('Fixed Cost Input'!$D$5+B199)*'Fixed Cost Input'!$D$7)),2))/Production!$D$17)+Summary!$D$36) -> 56.61239598 | D199: =IF('Fixed Cost Input'!$D$5+B199>100%,NA(),(-(Summary!$G$27-ROUND((-PMT('Fixed Cost Input'!$C$9,'Fixed Cost Input'!$D$9,('Fixed Cost Input'!$D$3)*('Fixed Cost Input'!$D$6-B199),0)+(('Fixed Cost Input'!$D$3)*('Fixed Cost Input'!$D$5+B199)*'Fixed Cost Input'!$D$7)),2))/Production!$E$17)+Summary!$H$36) -> 40.66613462 | E199: =IF('Fixed Cost Input'!$D$5+B199>100%,NA(),(-(Summary!$L$27-ROUND((-PMT('Fixed Cost Input'!$C$9,'Fixed Cost Input'!$D$9,('Fixed Cost Input'!$D$3)*('Fixed Cost Input'!$D$6-B199),0)+(('Fixed Cost Input'!$D$3)*('Fixed Cost Input'!$D$5+B199)*'Fixed Cost Input'!$D$7)),2))/Production!$F$17)+Summary!$M$36) -> 59.20297929
B200: 0 | C200: =Summary!$D$36 -> 55.03845605 | D200: =Summary!$H$36 -> 39.87916466 | E200: =Summary!$M$36 -> 57.33221076
B201: =ABS('Risk Analysis'!$E$12) -> 0.05 | C201: =IF('Fixed Cost Input'!$D$5+B201>100%,NA(),(-(Summary!$C$27-ROUND((-PMT('Fixed Cost Input'!$C$9,'Fixed Cost Input'!$D$9,('Fixed Cost Input'!$D$3)*('Fixed Cost Input'!$D$6-B201),0)+(('Fixed Cost Input'!$D$3)*('Fixed Cost Input'!$D$5+B201)*'Fixed Cost Input'!$D$7)),2))/Production!$D$17)+Summary!$D$36) -> 53.46439598 | D201: =IF('Fixed Cost Input'!$D$5+B201>100%,NA(),(-(Summary!$G$27-ROUND((-PMT('Fixed Cost Input'!$C$9,'Fixed Cost Input'!$D$9,('Fixed Cost Input'!$D$3)*('Fixed Cost Input'!$D$6-B201),0)+(('Fixed Cost Input'!$D$3)*('Fixed Cost Input'!$D$5+B201)*'Fixed Cost Input'!$D$7)),2))/Production!$E$17)+Summary!$H$36) -> 39.09213462 | E201: =IF('Fixed Cost Input'!$D$5+B201>100%,NA(),(-(Summary!$L$27-ROUND((-PMT('Fixed Cost Input'!$C$9,'Fixed Cost Input'!$D$9,('Fixed Cost Input'!$D$3)*('Fixed Cost Input'!$D$6-B201),0)+(('Fixed Cost Input'!$D$3)*('Fixed Cost Input'!$D$5+B201)*'Fixed Cost Input'!$D$7)),2))/Production!$F$17)+Summary!$M$36) -> 55.46129942
B202: =SUM(B201*2) -> 0.1 | C202: =IF('Fixed Cost Input'!$D$5+B202>100%,NA(),(-(Summary!$C$27-ROUND((-PMT('Fixed Cost Input'!$C$9,'Fixed Cost Input'!$D$9,('Fixed Cost Input'!$D$3)*('Fixed Cost Input'!$D$6-B202),0)+(('Fixed Cost Input'!$D$3)*('Fixed Cost Input'!$D$5+B202)*'Fixed Cost Input'!$D$7)),2))/Production!$D$17)+Summary!$D$36) -> 51.89106264 | D202: =IF('Fixed Cost Input'!$D$5+B202>100%,NA(),(-(Summary!$G$27-ROUND((-PMT('Fixed Cost Input'!$C$9,'Fixed Cost Input'!$D$9,('Fixed Cost Input'!$D$3)*('Fixed Cost Input'!$D$6-B202),0)+(('Fixed Cost Input'!$D$3)*('Fixed Cost Input'!$D$5+B202)*'Fixed Cost Input'!$D$7)),2))/Production!$E$17)+Summary!$H$36) -> 38.30546795 | E202: =IF('Fixed Cost Input'!$D$5+B202>100%,NA(),(-(Summary!$L$27-ROUND((-PMT('Fixed Cost Input'!$C$9,'Fixed Cost Input'!$D$9,('Fixed Cost Input'!$D$3)*('Fixed Cost Input'!$D$6-B202),0)+(('Fixed Cost Input'!$D$3)*('Fixed Cost Input'!$D$5+B202)*'Fixed Cost Input'!$D$7)),2))/Production!$F$17)+Summary!$M$36) -> 53.59125187
B203: =SUM(B201*3) -> 0.15 | C203: =IF('Fixed Cost Input'!$D$5+B203>100%,NA(),(-(Summary!$C$27-ROUND((-PMT('Fixed Cost Input'!$C$9,'Fixed Cost Input'!$D$9,('Fixed Cost Input'!$D$3)*('Fixed Cost Input'!$D$6-B203),0)+(('Fixed Cost Input'!$D$3)*('Fixed Cost Input'!$D$5+B203)*'Fixed Cost Input'!$D$7)),2))/Production!$D$17)+Summary!$D$36) -> 50.31772931 | D203: =IF('Fixed Cost Input'!$D$5+B203>100%,NA(),(-(Summary!$G$27-ROUND((-PMT('Fixed Cost Input'!$C$9,'Fixed Cost Input'!$D$9,('Fixed Cost Input'!$D$3)*('Fixed Cost Input'!$D$6-B203),0)+(('Fixed Cost Input'!$D$3)*('Fixed Cost Input'!$D$5+B203)*'Fixed Cost Input'!$D$7)),2))/Production!$E$17)+Summary!$H$36) -> 37.51880129 | E203: =IF('Fixed Cost Input'!$D$5+B203>100%,NA(),(-(Summary!$L$27-ROUND((-PMT('Fixed Cost Input'!$C$9,'Fixed Cost Input'!$D$9,('Fixed Cost Input'!$D$3)*('Fixed Cost Input'!$D$6-B203),0)+(('Fixed Cost Input'!$D$3)*('Fixed Cost Input'!$D$5+B203)*'Fixed Cost Input'!$D$7)),2))/Production!$F$17)+Summary!$M$36) -> 51.72120433
B205: ="Impact of Land Interest Rates on Cost Per Ton (from "&'Fixed Cost Input'!C9*100&"% @ $"&TEXT('Fixed Cost Input'!D3,"#,###")&"/acre, "&'Fixed Cost Input'!D5*100&"% equity, for "&'Fixed Cost Input'!D9&" yrs) " -> Impact of Land Interest Rates on Cost Per Ton (from 8% @ $3,000/acre, 85% equity, for 25 yrs)
B207: Interest Rate | C207: Barley Silage | D207: Corn Silage | E207: Alfalfa Grass Silage
B208: =SUM(B210*3) -> -0.045 | C208: =IF('Fixed Cost Input'!$C$9+B208<0%,NA(),(-(Summary!$C$27-ROUND((-PMT('Fixed Cost Input'!$C$9+B208,'Fixed Cost Input'!$D$9,('Fixed Cost Input'!$D$3)*('Fixed Cost Input'!$D$6),0)+(('Fixed Cost Input'!$D$3)*('Fixed Cost Input'!$D$5)*'Fixed Cost Input'!$D$7)),2))/Production!$D$17)+Summary!$D$36) -> 53.05772931 | D208: =IF('Fixed Cost Input'!$C$9+B208<0%,NA(),(-(Summary!$G$27-ROUND((-PMT('Fixed Cost Input'!$C$9+B208,'Fixed Cost Input'!$D$9,('Fixed Cost Input'!$D$3)*('Fixed Cost Input'!$D$6),0)+(('Fixed Cost Input'!$D$3)*('Fixed Cost Input'!$D$5)*'Fixed Cost Input'!$D$7)),2))/Production!$E$17)+Summary!$H$36) -> 38.88880129 | E208: =IF('Fixed Cost Input'!$C$9+B208<0%,NA(),(-(Summary!$L$27-ROUND((-PMT('Fixed Cost Input'!$C$9+B208,'Fixed Cost Input'!$D$9,('Fixed Cost Input'!$D$3)*('Fixed Cost Input'!$D$6),0)+(('Fixed Cost Input'!$D$3)*('Fixed Cost Input'!$D$5)*'Fixed Cost Input'!$D$7)),2))/Production!$F$17)+Summary!$M$36) -> 54.97793967
B209: =SUM(B210*2) -> -0.03 | C209: =IF('Fixed Cost Input'!$C$9+B209<0%,NA(),(-(Summary!$C$27-ROUND((-PMT('Fixed Cost Input'!$C$9+B209,'Fixed Cost Input'!$D$9,('Fixed Cost Input'!$D$3)*('Fixed Cost Input'!$D$6),0)+(('Fixed Cost Input'!$D$3)*('Fixed Cost Input'!$D$5)*'Fixed Cost Input'!$D$7)),2))/Production!$D$17)+Summary!$D$36) -> 53.67506264 | D209: =IF('Fixed Cost Input'!$C$9+B209<0%,NA(),(-(Summary!$G$27-ROUND((-PMT('Fixed Cost Input'!$C$9+B209,'Fixed Cost Input'!$D$9,('Fixed Cost Input'!$D$3)*('Fixed Cost Input'!$D$6),0)+(('Fixed Cost Input'!$D$3)*('Fixed Cost Input'!$D$5)*'Fixed Cost Input'!$D$7)),2))/Production!$E$17)+Summary!$H$36) -> 39.19746795 | E209: =IF('Fixed Cost Input'!$C$9+B209<0%,NA(),(-(Summary!$L$27-ROUND((-PMT('Fixed Cost Input'!$C$9+B209,'Fixed Cost Input'!$D$9,('Fixed Cost Input'!$D$3)*('Fixed Cost Input'!$D$6),0)+(('Fixed Cost Input'!$D$3)*('Fixed Cost Input'!$D$5)*'Fixed Cost Input'!$D$7)),2))/Production!$F$17)+Summary!$M$36) -> 55.71169561
B210: =-ABS('Risk Analysis'!$E$13) -> -0.015 | C210: =IF('Fixed Cost Input'!$C$9+B210<0%,NA(),(-(Summary!$C$27-ROUND((-PMT('Fixed Cost Input'!$C$9+B210,'Fixed Cost Input'!$D$9,('Fixed Cost Input'!$D$3)*('Fixed Cost Input'!$D$6),0)+(('Fixed Cost Input'!$D$3)*('Fixed Cost Input'!$D$5)*'Fixed Cost Input'!$D$7)),2))/Production!$D$17)+Summary!$D$36) -> 54.33639598 | D210: =IF('Fixed Cost Input'!$C$9+B210<0%,NA(),(-(Summary!$G$27-ROUND((-PMT('Fixed Cost Input'!$C$9+B210,'Fixed Cost Input'!$D$9,('Fixed Cost Input'!$D$3)*('Fixed Cost Input'!$D$6),0)+(('Fixed Cost Input'!$D$3)*('Fixed Cost Input'!$D$5)*'Fixed Cost Input'!$D$7)),2))/Production!$E$17)+Summary!$H$36) -> 39.52813462 | E210: =IF('Fixed Cost Input'!$C$9+B210<0%,NA(),(-(Summary!$L$27-ROUND((-PMT('Fixed Cost Input'!$C$9+B210,'Fixed Cost Input'!$D$9,('Fixed Cost Input'!$D$3)*('Fixed Cost Input'!$D$6),0)+(('Fixed Cost Input'!$D$3)*('Fixed Cost Input'!$D$5)*'Fixed Cost Input'!$D$7)),2))/Production!$F$17)+Summary!$M$36) -> 56.4977495
B211: 0 | C211: =Summary!$D$36 -> 55.03845605 | D211: =Summary!$H$36 -> 39.87916466 | E211: =Summary!$M$36 -> 57.33221076
B212: =ABS('Risk Analysis'!$E$13) -> 0.015 | C212: =IF('Fixed Cost Input'!$C$9+B212<0%,NA(),(-(Summary!$C$27-ROUND((-PMT('Fixed Cost Input'!$C$9+B212,'Fixed Cost Input'!$D$9,('Fixed Cost Input'!$D$3)*('Fixed Cost Input'!$D$6),0)+(('Fixed Cost Input'!$D$3)*('Fixed Cost Input'!$D$5)*'Fixed Cost Input'!$D$7)),2))/Production!$D$17)+Summary!$D$36) -> 55.77506264 | D212: =IF('Fixed Cost Input'!$C$9+B212<0%,NA(),(-(Summary!$G$27-ROUND((-PMT('Fixed Cost Input'!$C$9+B212,'Fixed Cost Input'!$D$9,('Fixed Cost Input'!$D$3)*('Fixed Cost Input'!$D$6),0)+(('Fixed Cost Input'!$D$3)*('Fixed Cost Input'!$D$5)*'Fixed Cost Input'!$D$7)),2))/Production!$E$17)+Summary!$H$36) -> 40.24746795 | E212: =IF('Fixed Cost Input'!$C$9+B212<0%,NA(),(-(Summary!$L$27-ROUND((-PMT('Fixed Cost Input'!$C$9+B212,'Fixed Cost Input'!$D$9,('Fixed Cost Input'!$D$3)*('Fixed Cost Input'!$D$6),0)+(('Fixed Cost Input'!$D$3)*('Fixed Cost Input'!$D$5)*'Fixed Cost Input'!$D$7)),2))/Production!$F$17)+Summary!$M$36) -> 58.20773365
B213: =SUM(B212*2) -> 0.03 | C213: =IF('Fixed Cost Input'!$C$9+B213<0%,NA(),(-(Summary!$C$27-ROUND((-PMT('Fixed Cost Input'!$C$9+B213,'Fixed Cost Input'!$D$9,('Fixed Cost Input'!$D$3)*('Fixed Cost Input'!$D$6),0)+(('Fixed Cost Input'!$D$3)*('Fixed Cost Input'!$D$5)*'Fixed Cost Input'!$D$7)),2))/Production!$D$17)+Summary!$D$36) -> 56.54172931 | D213: =IF('Fixed Cost Input'!$C$9+B213<0%,NA(),(-(Summary!$G$27-ROUND((-PMT('Fixed Cost Input'!$C$9+B213,'Fixed Cost Input'!$D$9,('Fixed Cost Input'!$D$3)*('Fixed Cost Input'!$D$6),0)+(('Fixed Cost Input'!$D$3)*('Fixed Cost Input'!$D$5)*'Fixed Cost Input'!$D$7)),2))/Production!$E$17)+Summary!$H$36) -> 40.63080129 | E213: =IF('Fixed Cost Input'!$C$9+B213<0%,NA(),(-(Summary!$L$27-ROUND((-PMT('Fixed Cost Input'!$C$9+B213,'Fixed Cost Input'!$D$9,('Fixed Cost Input'!$D$3)*('Fixed Cost Input'!$D$6),0)+(('Fixed Cost Input'!$D$3)*('Fixed Cost Input'!$D$5)*'Fixed Cost Input'!$D$7)),2))/Production!$F$17)+Summary!$M$36) -> 59.11898563
B214: =SUM(B212*3) -> 0.045 | C214: =IF('Fixed Cost Input'!$C$9+B214<0%,NA(),(-(Summary!$C$27-ROUND((-PMT('Fixed Cost Input'!$C$9+B214,'Fixed Cost Input'!$D$9,('Fixed Cost Input'!$D$3)*('Fixed Cost Input'!$D$6),0)+(('Fixed Cost Input'!$D$3)*('Fixed Cost Input'!$D$5)*'Fixed Cost Input'!$D$7)),2))/Production!$D$17)+Summary!$D$36) -> 57.33372931 | D214: =IF('Fixed Cost Input'!$C$9+B214<0%,NA(),(-(Summary!$G$27-ROUND((-PMT('Fixed Cost Input'!$C$9+B214,'Fixed Cost Input'!$D$9,('Fixed Cost Input'!$D$3)*('Fixed Cost Input'!$D$6),0)+(('Fixed Cost Input'!$D$3)*('Fixed Cost Input'!$D$5)*'Fixed Cost Input'!$D$7)),2))/Production!$E$17)+Summary!$H$36) -> 41.02680129 | E214: =IF('Fixed Cost Input'!$C$9+B214<0%,NA(),(-(Summary!$L$27-ROUND((-PMT('Fixed Cost Input'!$C$9+B214,'Fixed Cost Input'!$D$9,('Fixed Cost Input'!$D$3)*('Fixed Cost Input'!$D$6),0)+(('Fixed Cost Input'!$D$3)*('Fixed Cost Input'!$D$5)*'Fixed Cost Input'!$D$7)),2))/Production!$F$17)+Summary!$M$36) -> 60.06034855

Sheet DATA (HIDE) (hidden)
A1: Select Hay - 80% | B1: Dollar Value ($/tonne) | C1: Dollar Value ($/ton) | D1: Greenfeed Silage Dollar Value ($/ton)
A2: Alfalfa-Grass | B2: 195 | C2: =SUM(B2/2204.62)*2000 -> 176.9012347 | D2: =ROUND(((C2*2000)/((2000*(1-(Production!$D$47/100))))*(2000*(1-(Production!$F$31/100))))/2000,2) -> 87.44 | E2: =ROUND(D2,0) -> 87 | G2: ***2024 MASC DATA***
A3: Greenfeed | C3: 139 | D3: =((C3*2000)/((2000*(1-(Production!$F$47/100))))*(2000*(1-(Production!$D$31/100))))/2000 -> 59.61771562 | E3: 60
A4: Corn Silage | C4: 82 | E4: =ROUND(C4,0) -> 82
A6: Basic Hay | B6: Dollar Value ($/tonne) | C6: Dollar Value ($/ton) | D6: Dollar Value Silage($/ton)
A7: Low Dollar Value | B7: 71 | C7: =SUM(B7/2204.62)*2000 -> 64.41019314 | D7: =ROUND(((C7*2000)/((2000*(1-(Production!$D$47/100))))*(2000*(1-(Production!$F$31/100))))/2000,2) -> 31.84 | E7: =ROUND(D7,0) -> 32 | F7: ="Low - $"&E7&"/tonne" -> Low - $32/tonne
A8: High Dollar Value | B8: 118 | C8: =SUM(B8/2204.62)*2000 -> 107.0479266 | D8: =ROUND(((C8*2000)/((2000*(1-(Production!$D$47/100))))*(2000*(1-(Production!$F$31/100))))/2000,2) -> 52.91 | E8: =ROUND(D8,0) -> 53 | F8: ="High - $"&E8&"/tonne" -> High - $53/tonne
A9: Hay Disaster Benefit Value (HDB) | B9: 44 | C9: =SUM(B9/2204.62)*2000 -> 39.91617603 | D9: =ROUND(((C9*2000)/((2000*(1-(Production!$D$47/100))))*(2000*(1-(Production!$F$31/100))))/2000,2) -> 19.73
A11: Corn Silage IPI | B11: =Production!E23 -> 1 | C11: (Linked to production tab)
A12: Alfalfa Grass IPI | B12: =Production!F23 -> 1
A13: Greenfeed (Barley) IPI | B13: =Production!D23 -> 1
E16: Select Hay-80% | I16: ="Basic Hay Low - $"&$B$7&"/tonne" -> Basic Hay Low - $71/tonne | M16: Greenfeed | P16: Silage Corn
E17: Alfalfa-Grass | G17: Alfalfa-Grass | I17: Alfalfa-Grass | K17: Alfalfa-Grass
E18: <=4 years | G18: >4 years | I18: <=4 years | K18: >4 years | N18: D soil zone | O18: 0.8 | Q18: D soil zone | R18: 0.8
A19: Forage Region | E19: Probable Yield (tonnes) | F19: Premium ($/Acre) | G19: Probable Yield (tonnes) | H19: Premium ($/Acre) | I19: Probable Yield (tonnes) | J19: Premium ($/Acre) | K19: Coverage per acre (tonnes) | L19: Premium ($/Acre) | M19: Risk Area | N19: Probable Yield (tons) | O19: Premium ($/Acre) | P19: Risk Area | Q19: Probable Yield (tons) | R19: Premium ($/Acre)
A20: 1 | E20: 1.947 | F20: 10.82 | G20: 1.305 | H20: =F20 -> 10.82 | I20: 1.392 | J20: 4.3 | K20: =I20 -> 1.392 | L20: =J20 -> 4.3 | M20: 1 | N20: 1.996 | O20: 18.5 | P20: 1 | Q20: 13.158 | R20: 27.7
A21: 2 | E21: 1.801 | F21: 16.18 | G21: 1.228 | H21: 16.18 | I21: 1.266 | J21: 3.71 | K21: =I21 -> 1.266 | L21: 3.71 | M21: 2 | N21: 1.996 | O21: 20.7 | P21: 2 | Q21: 13.158 | R21: 28.02
A22: 3 | E22: 1.798 | F22: 14.56 | G22: 1.357 | H22: 14.56 | I22: 1.332 | J22: 5.51 | K22: 1.332 | L22: 5.51 | M22: 3 | N22: 1.996 | O22: 20.22 | P22: 3 | Q22: 13.158 | R22: 28.02
A23: 4 | E23: 1.871 | F23: 14.27 | G23: 1.326 | H23: 14.27 | I23: 1.417 | J23: 4.92 | K23: 1.417 | L23: 4.92 | M23: 4 | N23: 1.996 | O23: 21.92 | P23: 4 | Q23: 13.158 | R23: 28.65
A24: 5 | E24: 2.167 | F24: 24.46 | G24: 1.507 | H24: 24.46 | I24: 1.692 | J24: 6.71 | K24: 1.692 | L24: 6.71 | M24: 5 | N24: 1.996 | O24: 20.21 | P24: 5 | Q24: 13.158 | R24: 27.7
A25: 6 | E25: 1.949 | F25: 19.74 | G25: 1.25 | H25: 19.74 | I25: 1.407 | J25: 5.68 | K25: 1.407 | L25: 5.68 | M25: 6 | N25: 1.996 | O25: 20.13 | P25: 6 | Q25: 13.158 | R25: 28.65
M26: 7 | N26: 1.996 | O26: 19.8 | P26: 7 | Q26: 13.158 | R26: 28.96
E27: Select Hay-70% | I27: ="Basic Hay High - $"&$B$8&"/tonne" -> Basic Hay High - $118/tonne | M27: 8 | N27: 1.996 | O27: 22.98 | P27: 8 | Q27: 13.158 | R27: 27.38
E28: Alfalfa-Grass | G28: Alfalfa-Grass | I28: Alfalfa-Grass | K28: Alfalfa-Grass | M28: 9 | N28: 1.996 | O28: 19.48 | P28: 9 | Q28: 13.158 | R28: 27.38
E29: <=4 years | G29: >4 years | I29: <=4 years | K29: >4 years | M29: 10 | N29: 1.996 | O29: 19.23 | P29: 10 | Q29: 13.158 | R29: 27.38
A30: Forage Region | E30: Probable Yield (tonnes) | F30: Premium ($/Acre) | G30: Probable Yield (tonnes) | H30: Premium ($/Acre) | I30: Probable Yield (tonnes) | J30: Premium ($/Acre) | K30: Coverage per acre (tonnes) | L30: Premium ($/Acre) | M30: 11 | N30: 1.996 | O30: 19.48 | P30: 11 | Q30: 13.158 | R30: 26.11
A31: 1 | E31: =E20 -> 1.947 | F31: 7.42 | G31: =G20 -> 1.305 | H31: =F31 -> 7.42 | I31: =I20 -> 1.392 | J31: 6.99 | K31: =K20 -> 1.392 | L31: =J31 -> 6.99 | M31: 12 | N31: 1.996 | O31: 18.17 | P31: 12 | Q31: 13.158 | R31: 27.38
A32: 2 | E32: =E21 -> 1.801 | F32: 11.1 | G32: =G21 -> 1.228 | H32: 11.1 | I32: 1.266 | J32: 6.02 | K32: 1.266 | L32: 6.02 | M32: 14 | N32: 1.996 | O32: 17.6 | P32: 14 | Q32: 13.158 | R32: 28.02
A33: 3 | E33: 1.798 | F33: 10.02 | G33: 1.357 | H33: 10.02 | I33: 1.332 | J33: 8.95 | K33: 1.332 | L33: 8.95 | M33: 15 | N33: 1.996 | O33: 16.63 | P33: 15 | Q33: 13.158 | R33: 25.79
A34: 4 | E34: 1.871 | F34: 9.84 | G34: 1.326 | H34: 9.84 | I34: 1.417 | J34: 7.97 | K34: 1.417 | L34: 7.97 | M34: 16 | N34: 1.996 | O34: 15.72 | P34: 16 | Q34: 13.158 | R34: 24.82
A35: 5 | E35: 2.167 | F35: 16.86 | G35: 1.507 | H35: 16.86 | I35: 1.692 | J35: 10.89 | K35: 1.692 | L35: 10.89
A36: 6 | E36: 1.949 | F36: 13.56 | G36: 1.25 | H36: 13.56 | I36: 1.407 | J36: 9.22 | K36: 1.407 | L36: 9.22
A43: Alfalfa-Grass | B43: 0.8 | I43: Alfalfa-Grass | J43: 0.7
A44: <=4 years | B44: Forage Region | I44: <=4 years | J44: Forage Region
B45: Forage Region 1 | C45: Forage Region 2 | D45: Forage Region 3 | E45: Forage Region 4 | F45: Forage Region 5 | G45: Forage Region 6 | J45: Forage Region 1 | K45: Forage Region 2 | L45: Forage Region 3 | M45: Forage Region 4 | N45: Forage Region 5 | O45: Forage Region 6
A46: Probable Yield x IPI (tons/acre) | B46: =ROUND((((E$20*2204.62)/2000*$B$12)*(1-(Production!$D$47/100))/(1-(Production!$F$31/100))),3) -> 4.342 | C46: =ROUND((((E$21*2204.62)/2000*$B$12)*(1-(Production!$D$47/100))/(1-(Production!$F$31/100))),3) -> 4.016 | D46: =ROUND((((E$22*2204.62)/2000*$B$12)*(1-(Production!$D$47/100))/(1-(Production!$F$31/100))),3) -> 4.01 | E46: =ROUND((((E$23*2204.62)/2000*$B$12)*(1-(Production!$D$47/100))/(1-(Production!$F$31/100))),3) -> 4.173 | F46: =ROUND((((E$24*2204.62)/2000*$B$12)*(1-(Production!$D$47/100))/(1-(Production!$F$31/100))),3) -> 4.833 | G46: =ROUND((((E$25*2204.62)/2000*$B$12)*(1-(Production!$D$47/100))/(1-(Production!$F$31/100))),3) -> 4.347 | I46: Probable Yield x IPI (tons/acre) | J46: =ROUND((((E$31*2204.62)/2000*$B$12)*(1-(Production!$D$47/100))/(1-(Production!$F$31/100))),3) -> 4.342 | K46: =ROUND((((E$32*2204.62)/2000*$B$12)*(1-(Production!$D$47/100))/(1-(Production!$F$31/100))),3) -> 4.016 | L46: =ROUND((((E$33*2204.62)/2000*$B$12)*(1-(Production!$D$47/100))/(1-(Production!$F$31/100))),3) -> 4.01 | M46: =ROUND((((E$34*2204.62)/2000*$B$12)*(1-(Production!$D$47/100))/(1-(Production!$F$31/100))),3) -> 4.173 | N46: =ROUND((((E$35*2204.62)/2000*$B$12)*(1-(Production!$D$47/100))/(1-(Production!$F$31/100))),3) -> 4.833 | O46: =ROUND((((E$36*2204.62)/2000*$B$12)*(1-(Production!$D$47/100))/(1-(Production!$F$31/100))),3) -> 4.347
A47: Coverage per acre (tons) | B47: =ROUND(B46*0.8,3) -> 3.474 | C47: 3.213 | D47: 3.208 | E47: 3.338 | F47: 3.866 | G47: 3.478 | I47: Coverage per acre (tons) | J47: =ROUND(J46*0.7,3) -> 3.039 | K47: =ROUND(K46*0.7,3) -> 2.811 | L47: 2.807 | M47: 2.921 | N47: 3.383 | O47: 3.043
A48: Dollar Coverage per acre | B48: =ROUND((($E$20*2204.62)/2000*$B$12),3)*0.8*$C$2 -> 303.7040397 | C48: =ROUND((($E$21*2204.62)/2000*$B$12),3)*0.8*$C$2 -> 280.9191607 | D48: =ROUND((($E$22*2204.62)/2000*$B$12),3)*0.8*$C$2 -> 280.4945977 | E48: =ROUND((($E$23*2204.62)/2000*$B$12),3)*0.8*$C$2 -> 291.8162767 | F48: =ROUND((($E$24*2204.62)/2000*$B$12),3)*0.8*$C$2 -> 338.0936397 | G48: =ROUND((($E$25*2204.62)/2000*$B$12),3)*0.8*$C$2 -> 303.9870817 | I48: Dollar Coverage per acre | J48: =ROUND((($E$31*2204.62)/2000*$B$12),3)*0.7*$C$2 -> 265.7410347 | K48: =ROUND((($E$32*2204.62)/2000*$B$12),3)*0.7*$C$2 -> 245.8042656 | L48: =ROUND((($E$33*2204.62)/2000*$B$12),3)*0.7*$C$2 -> 245.432773 | M48: =ROUND((($E$34*2204.62)/2000*$B$12),3)*0.7*$C$2 -> 255.3392421 | N48: =ROUND((($E$35*2204.62)/2000*$B$12),3)*0.7*$C$2 -> 295.8319348 | O48: =ROUND((($E$36*2204.62)/2000*$B$12),3)*0.7*$C$2 -> 265.9886965
A49: Premium ($/Acre) | B49: =F$20 -> 10.82 | C49: =F$21 -> 16.18 | D49: =F$22 -> 14.56 | E49: =F$23 -> 14.27 | F49: =F$24 -> 24.46 | G49: =F$25 -> 19.74 | I49: Premium ($/Acre) | J49: =F$31 -> 7.42 | K49: =F$32 -> 11.1 | L49: =F$33 -> 10.02 | M49: =F$34 -> 9.84 | N49: =F$35 -> 16.86 | O49: =F$36 -> 13.56
A50: Premium Cost (% of Insured) | B50: =SUM(B49/B48) -> 0.03562678985 | C50: 0.05759664083 | D50: 0.05190830811 | E50: 0.04890063077 | F50: 0.0723468209 | G50: 0.06493696999 | I50: Premium Cost (% of Insured) | J50: =SUM(J49/J48) -> 0.02792192033 | K50: 0.04515788192 | L50: 0.04082584358 | M50: 0.0385369672 | N50: 0.05699181873 | O50: 0.05097960996
A51: Costs Not Covered by AgriInsurance | I51: Costs Not Covered by AgriInsurance
A52: Operating Costs | B52: =IF(Summary!$L$24-B48<0,0,SUM(Summary!$L$24-B48)) -> 0 | C52: =IF(Summary!$L$24-C48<0,0,SUM(Summary!$L$24-C48)) -> 0 | D52: =IF(Summary!$L$24-D48<0,0,SUM(Summary!$L$24-D48)) -> 0 | E52: =IF(Summary!$L$24-E48<0,0,SUM(Summary!$L$24-E48)) -> 0 | F52: =IF(Summary!$L$24-F48<0,0,SUM(Summary!$L$24-F48)) -> 0 | G52: =IF(Summary!$L$24-G48<0,0,SUM(Summary!$L$24-G48)) -> 0 | I52: Operating Costs | J52: =IF(Summary!$L$24-J48<0,0,SUM(Summary!$L$24-J48)) -> 0 | K52: =IF(Summary!$L$24-K48<0,0,SUM(Summary!$L$24-K48)) -> 0 | L52: =IF(Summary!$L$24-L48<0,0,SUM(Summary!$L$24-L48)) -> 0 | M52: =IF(Summary!$L$24-M48<0,0,SUM(Summary!$L$24-M48)) -> 0 | N52: =IF(Summary!$L$24-N48<0,0,SUM(Summary!$L$24-N48)) -> 0 | O52: =IF(Summary!$L$24-O48<0,0,SUM(Summary!$L$24-O48)) -> 0
A53: Operating & Fixed Costs | B53: =IF(Summary!$L$32-B48<0,0,SUM(Summary!$L$32-B48)) -> 33.57321019 | C53: =IF(Summary!$L$32-C48<0,0,SUM(Summary!$L$32-C48)) -> 56.35808922 | D53: =IF(Summary!$L$32-D48<0,0,SUM(Summary!$L$32-D48)) -> 56.78265218 | E53: =IF(Summary!$L$32-E48<0,0,SUM(Summary!$L$32-E48)) -> 45.46097316 | F53: =IF(Summary!$L$32-F48<0,0,SUM(Summary!$L$32-F48)) -> 0 | G53: =IF(Summary!$L$32-G48<0,0,SUM(Summary!$L$32-G48)) -> 33.29016822 | I53: Operating & Fixed Costs | J53: =IF(Summary!$L$32-J48<0,0,SUM(Summary!$L$32-J48)) -> 71.53621516 | K53: =IF(Summary!$L$32-K48<0,0,SUM(Summary!$L$32-K48)) -> 91.4729843 | L53: =IF(Summary!$L$32-L48<0,0,SUM(Summary!$L$32-L48)) -> 91.8444769 | M53: =IF(Summary!$L$32-M48<0,0,SUM(Summary!$L$32-M48)) -> 81.93800776 | N53: =IF(Summary!$L$32-N48<0,0,SUM(Summary!$L$32-N48)) -> 41.44531514 | O53: =IF(Summary!$L$32-O48<0,0,SUM(Summary!$L$32-O48)) -> 71.28855343
A54: Total Costs | B54: =IF(Summary!$L$36-B48<0,0,SUM(Summary!$L$36-B48)) -> 58.06221019 | C54: =IF(Summary!$L$36-C48<0,0,SUM(Summary!$L$36-C48)) -> 80.84708922 | D54: =IF(Summary!$L$36-D48<0,0,SUM(Summary!$L$36-D48)) -> 81.27165218 | E54: =IF(Summary!$L$36-E48<0,0,SUM(Summary!$L$36-E48)) -> 69.94997316 | F54: =IF(Summary!$L$36-F48<0,0,SUM(Summary!$L$36-F48)) -> 23.67261017 | G54: =IF(Summary!$L$36-G48<0,0,SUM(Summary!$L$36-G48)) -> 57.77916822 | I54: Total Costs | J54: =IF(Summary!$L$36-J48<0,0,SUM(Summary!$L$36-J48)) -> 96.02521516 | K54: =IF(Summary!$L$36-K48<0,0,SUM(Summary!$L$36-K48)) -> 115.9619843 | L54: =IF(Summary!$L$36-L48<0,0,SUM(Summary!$L$36-L48)) -> 116.3334769 | M54: =IF(Summary!$L$36-M48<0,0,SUM(Summary!$L$36-M48)) -> 106.4270078 | N54: =IF(Summary!$L$36-N48<0,0,SUM(Summary!$L$36-N48)) -> 65.93431514 | O54: =IF(Summary!$L$36-O48<0,0,SUM(Summary!$L$36-O48)) -> 95.77755343
A55: AgriInsurance Risk Ratio | I55: AgriInsurance Risk Ratio
A56: Operating Costs | B56: =B48/Summary!$L$24 -> 1.565992034 | C56: =C48/Summary!$L$24 -> 1.448506145 | D56: =D48/Summary!$L$24 -> 1.446316967 | E56: =E48/Summary!$L$24 -> 1.504695048 | F56: =F48/Summary!$L$24 -> 1.743315456 | G56: =G48/Summary!$L$24 -> 1.567451486 | I56: Operating Costs | J56: =J48/Summary!$L$24 -> 1.370243029 | K56: =K48/Summary!$L$24 -> 1.267442877 | L56: =L48/Summary!$L$24 -> 1.265527346 | M56: =M48/Summary!$L$24 -> 1.316608167 | N56: =N48/Summary!$L$24 -> 1.525401024 | O56: =O48/Summary!$L$24 -> 1.37152005
A57: Total Costs | B57: =B48/Summary!$L$36 -> 0.8395035186 | C57: =C48/Summary!$L$36 -> 0.776521195 | D57: =D48/Summary!$L$36 -> 0.7753476113 | E57: =E48/Summary!$L$36 -> 0.8066431758 | F57: =F48/Summary!$L$36 -> 0.9345637959 | G57: =G48/Summary!$L$36 -> 0.8402859077 | I57: Total Costs | J57: =J48/Summary!$L$36 -> 0.7345655788 | K57: =K48/Summary!$L$36 -> 0.6794560456 | L57: =L48/Summary!$L$36 -> 0.6784291599 | M57: =M48/Summary!$L$36 -> 0.7058127789 | N57: =N48/Summary!$L$36 -> 0.8177433214 | O57: =O48/Summary!$L$36 -> 0.7352501693
A61: Alfalfa-Grass | B61: 0.8 | I61: Alfalfa-Grass | J61: 0.7
A62: >4 years | B62: Forage Region | I62: >4 years | J62: Forage Region
B63: Forage Region 1 | C63: Forage Region 2 | D63: Forage Region 3 | E63: Forage Region 4 | F63: Forage Region 5 | G63: Forage Region 6 | J63: Forage Region 1 | K63: Forage Region 2 | L63: Forage Region 3 | M63: Forage Region 4 | N63: Forage Region 5 | O63: Forage Region 6
A64: Probable Yield x IPI (tons/acre) | B64: =ROUND((((G$20*2204.62)/2000*$B$12)*(1-(Production!$D$47/100))/(1-(Production!$F$31/100))),3) -> 2.91 | C64: =ROUND((((G$21*2204.62)/2000*$B$12)*(1-(Production!$D$47/100))/(1-(Production!$F$31/100))),3) -> 2.739 | D64: =ROUND((((G$22*2204.62)/2000*$B$12)*(1-(Production!$D$47/100))/(1-(Production!$F$31/100))),3) -> 3.026 | E64: =ROUND((((G$23*2204.62)/2000*$B$12)*(1-(Production!$D$47/100))/(1-(Production!$F$31/100))),3) -> 2.957 | F64: =ROUND((((G$24*2204.62)/2000*$B$12)*(1-(Production!$D$47/100))/(1-(Production!$F$31/100))),3) -> 3.361 | G64: =ROUND((((G$25*2204.62)/2000*$B$12)*(1-(Production!$D$47/100))/(1-(Production!$F$31/100))),3) -> 2.788 | I64: Probable Yield x IPI (tons/acre) | J64: =ROUND((((G$31*2204.62)/2000*$B$12)*(1-(Production!$D$47/100))/(1-(Production!$F$31/100))),3) -> 2.91 | K64: =ROUND((((G$32*2204.62)/2000*$B$12)*(1-(Production!$D$47/100))/(1-(Production!$F$31/100))),3) -> 2.739 | L64: =ROUND((((G$33*2204.62)/2000*$B$12)*(1-(Production!$D$47/100))/(1-(Production!$F$31/100))),3) -> 3.026 | M64: =ROUND((((G$34*2204.62)/2000*$B$12)*(1-(Production!$D$47/100))/(1-(Production!$F$31/100))),3) -> 2.957 | N64: =ROUND((((G$35*2204.62)/2000*$B$12)*(1-(Production!$D$47/100))/(1-(Production!$F$31/100))),3) -> 3.361 | O64: =ROUND((((G$36*2204.62)/2000*$B$12)*(1-(Production!$D$47/100))/(1-(Production!$F$31/100))),3) -> 2.788
A65: Coverage per acre (tons) | B65: =ROUND(B64*0.8,3) -> 2.328 | C65: 2.191 | D65: 2.421 | E65: 2.366 | F65: 2.689 | G65: 2.23 | I65: Coverage per acre (tons) | J65: =ROUND(J64*0.7,3) -> 2.037 | K65: 1.917 | L65: 2.118 | M65: 2.07 | N65: 2.353 | O65: 1.952
A66: Dollar Coverage per acre | B66: =ROUND((($G$20*2204.62)/2000*$B$12),3)*0.8*$C$2 -> 203.6487014 | C66: =ROUND((($G$21*2204.62)/2000*$B$12),3)*0.8*$C$2 -> 191.6194174 | D66: =ROUND((($G$22*2204.62)/2000*$B$12),3)*0.8*$C$2 -> 211.7153977 | E66: =ROUND((($G$23*2204.62)/2000*$B$12),3)*0.8*$C$2 -> 206.9036841 | F66: =ROUND((($G$24*2204.62)/2000*$B$12),3)*0.8*$C$2 -> 235.0663606 | G66: =ROUND((($G$25*2204.62)/2000*$B$12),3)*0.8*$C$2 -> 195.0159211 | I66: Dollar Coverage per acre | J66: =ROUND((($G$31*2204.62)/2000*$B$12),3)*0.7*$C$2 -> 178.1926137 | K66: =ROUND((($G$32*2204.62)/2000*$B$12),3)*0.7*$C$2 -> 167.6669902 | L66: =ROUND((($G$33*2204.62)/2000*$B$12),3)*0.7*$C$2 -> 185.250973 | M66: =ROUND((($G$34*2204.62)/2000*$B$12),3)*0.7*$C$2 -> 181.0407236 | N66: =ROUND((($G$35*2204.62)/2000*$B$12),3)*0.7*$C$2 -> 205.6830656 | O66: =ROUND((($G$36*2204.62)/2000*$B$12),3)*0.7*$C$2 -> 170.638931
A67: Premium ($/Acre) | B67: =H$20 -> 10.82 | C67: =H$21 -> 16.18 | D67: =H$22 -> 14.56 | E67: =H$23 -> 14.27 | F67: =H$24 -> 24.46 | G67: =H$25 -> 19.74 | I67: Premium ($/Acre) | J67: =H$31 -> 7.42 | K67: =H$32 -> 11.1 | L67: =H$33 -> 10.02 | M67: =H$34 -> 9.84 | N67: =H$35 -> 16.86 | O67: =H$36 -> 13.56
A68: Premium Cost (% of Insured) | B68: =SUM(B67/B66) -> 0.05313070954 | C68: 0.08443820683 | D68: 0.06877156863 | E68: 0.06896928908 | F68: 0.1040557225 | G68: 0.1012225047 | I68: Premium Cost (% of Insured) | J68: =SUM(J67/J66) -> 0.04164033428 | K68: =SUM(K67/K66) -> 0.06620265554 | L68: 0.05408878474 | M68: 0.05435241202 | N68: 0.0819707736 | O68: 0.07946603933
A69: Costs Not Covered by AgriInsurance | I69: Costs Not Covered by AgriInsurance
A70: Operating Costs | B70: =IF(Summary!$L$24-B66<0,0,SUM(Summary!$L$24-B66)) -> 0 | C70: =IF(Summary!$L$24-C66<0,0,SUM(Summary!$L$24-C66)) -> 2.317737571 | D70: =IF(Summary!$L$24-D66<0,0,SUM(Summary!$L$24-D66)) -> 0 | E70: =IF(Summary!$L$24-E66<0,0,SUM(Summary!$L$24-E66)) -> 0 | F70: =IF(Summary!$L$24-F66<0,0,SUM(Summary!$L$24-F66)) -> 0 | G70: =IF(Summary!$L$24-G66<0,0,SUM(Summary!$L$24-G66)) -> 0 | I70: Operating Costs | J70: =IF(Summary!$L$24-J66<0,0,SUM(Summary!$L$24-J66)) -> 15.74454128 | K70: =IF(Summary!$L$24-K66<0,0,SUM(Summary!$L$24-K66)) -> 26.27016475 | L70: =IF(Summary!$L$24-L66<0,0,SUM(Summary!$L$24-L66)) -> 8.68618202 | M70: =IF(Summary!$L$24-M66<0,0,SUM(Summary!$L$24-M66)) -> 12.89643141 | N70: =IF(Summary!$L$24-N66<0,0,SUM(Summary!$L$24-N66)) -> 0 | O70: =IF(Summary!$L$24-O66<0,0,SUM(Summary!$L$24-O66)) -> 23.298224
A71: Operating & Fixed Costs | B71: =IF(Summary!$L$32-B66<0,0,SUM(Summary!$L$32-B66)) -> 133.6285485 | C71: =IF(Summary!$L$32-C66<0,0,SUM(Summary!$L$32-C66)) -> 145.6578325 | D71: =IF(Summary!$L$32-D66<0,0,SUM(Summary!$L$32-D66)) -> 125.5618522 | E71: =IF(Summary!$L$32-E66<0,0,SUM(Summary!$L$32-E66)) -> 130.3735658 | F71: =IF(Summary!$L$32-F66<0,0,SUM(Summary!$L$32-F66)) -> 102.2108892 | G71: =IF(Summary!$L$32-G66<0,0,SUM(Summary!$L$32-G66)) -> 142.2613288 | I71: Operating & Fixed Costs | J71: =IF(Summary!$L$32-J66<0,0,SUM(Summary!$L$32-J66)) -> 159.0846362 | K71: =IF(Summary!$L$32-K66<0,0,SUM(Summary!$L$32-K66)) -> 169.6102597 | L71: =IF(Summary!$L$32-L66<0,0,SUM(Summary!$L$32-L66)) -> 152.0262769 | M71: =IF(Summary!$L$32-M66<0,0,SUM(Summary!$L$32-M66)) -> 156.2365263 | N71: =IF(Summary!$L$32-N66<0,0,SUM(Summary!$L$32-N66)) -> 131.5941843 | O71: =IF(Summary!$L$32-O66<0,0,SUM(Summary!$L$32-O66)) -> 166.6383189
A72: Total Costs | B72: =IF(Summary!$L$36-B66<0,0,SUM(Summary!$L$36-B66)) -> 158.1175485 | C72: =IF(Summary!$L$36-C66<0,0,SUM(Summary!$L$36-C66)) -> 170.1468325 | D72: =IF(Summary!$L$36-D66<0,0,SUM(Summary!$L$36-D66)) -> 150.0508522 | E72: =IF(Summary!$L$36-E66<0,0,SUM(Summary!$L$36-E66)) -> 154.8625658 | F72: =IF(Summary!$L$36-F66<0,0,SUM(Summary!$L$36-F66)) -> 126.6998892 | G72: =IF(Summary!$L$36-G66<0,0,SUM(Summary!$L$36-G66)) -> 166.7503288 | I72: Total Costs | J72: =IF(Summary!$L$36-J66<0,0,SUM(Summary!$L$36-J66)) -> 183.5736362 | K72: =IF(Summary!$L$36-K66<0,0,SUM(Summary!$L$36-K66)) -> 194.0992597 | L72: =IF(Summary!$L$36-L66<0,0,SUM(Summary!$L$36-L66)) -> 176.5152769 | M72: =IF(Summary!$L$36-M66<0,0,SUM(Summary!$L$36-M66)) -> 180.7255263 | N72: =IF(Summary!$L$36-N66<0,0,SUM(Summary!$L$36-N66)) -> 156.0831843 | O72: =IF(Summary!$L$36-O66<0,0,SUM(Summary!$L$36-O66)) -> 191.1273189
A73: AgriInsurance Risk Ratio | I73: AgriInsurance Risk Ratio
A74: Operating Costs | B74: =B66/Summary!$L$24 -> 1.050075739 | C74: =C66/Summary!$L$24 -> 0.9880490277 | D74: =D66/Summary!$L$24 -> 1.091670122 | E74: =E66/Summary!$L$24 -> 1.066859438 | F74: =F66/Summary!$L$24 -> 1.212074915 | G74: =G66/Summary!$L$24 -> 1.005562452 | I74: Operating Costs | J74: =J66/Summary!$L$24 -> 0.9188162718 | K74: =K66/Summary!$L$24 -> 0.8645428992 | L74: =L66/Summary!$L$24 -> 0.9552113569 | M74: =M66/Summary!$L$24 -> 0.9335020079 | N74: =N66/Summary!$L$24 -> 1.060565551 | O74: =O66/Summary!$L$24 -> 0.8798671456
A75: Total Costs | B75: =B66/Summary!$L$36 -> 0.562928967 | C75: =C66/Summary!$L$36 -> 0.5296774297 | D75: =D66/Summary!$L$36 -> 0.5852270568 | E75: =E66/Summary!$L$36 -> 0.5719264418 | F75: =F66/Summary!$L$36 -> 0.6497741586 | G75: =G66/Summary!$L$36 -> 0.5390660991 | I75: Total Costs | J75: =J66/Summary!$L$36 -> 0.4925628462 | K75: =K66/Summary!$L$36 -> 0.463467751 | L75: =L66/Summary!$L$36 -> 0.5120736747 | M75: =M66/Summary!$L$36 -> 0.5004356366 | N75: =N66/Summary!$L$36 -> 0.5685523888 | O75: =O66/Summary!$L$36 -> 0.4716828367
A78: Basic Hay - Alfalfa Grass | I78: Basic Hay - Alfalfa Grass
A79: <=4 years | I79: <=4 years
A80: ="Low - $"&B7&"/tonne" -> Low - $71/tonne | B80: Forage Region | I80: ="High - $"&B8&"/tonne" -> High - $118/tonne | J80: Forage Region
B81: Forage Region 1 | C81: Forage Region 2 | D81: Forage Region 3 | E81: Forage Region 4 | F81: Forage Region 5 | G81: Forage Region 6 | J81: Forage Region 1 | K81: Forage Region 2 | L81: Forage Region 3 | M81: Forage Region 4 | N81: Forage Region 5 | O81: Forage Region 6
A82: Probable Yield x IPI (tons/acre) | B82: =ROUND(((($I$20*2204.62)/2000*$B$12)*(1-(Production!$D$47/100))/(1-(Production!$F$31/100))),3) -> 3.104 | C82: =ROUND(((($I$21*2204.62)/2000*$B$12)*(1-(Production!$D$47/100))/(1-(Production!$F$31/100))),3) -> 2.823 | D82: =ROUND(((($I$22*2204.62)/2000*$B$12)*(1-(Production!$D$47/100))/(1-(Production!$F$31/100))),3) -> 2.971 | E82: =ROUND(((($I$23*2204.62)/2000*$B$12)*(1-(Production!$D$47/100))/(1-(Production!$F$31/100))),3) -> 3.16 | F82: =ROUND(((($I$24*2204.62)/2000*$B$12)*(1-(Production!$D$47/100))/(1-(Production!$F$31/100))),3) -> 3.773 | G82: =ROUND(((($I$25*2204.62)/2000*$B$12)*(1-(Production!$D$47/100))/(1-(Production!$F$31/100))),3) -> 3.138 | I82: Probable Yield x IPI (tons/acre) | J82: =ROUND(((($I$31*2204.62)/2000*$B$12)*(1-(Production!$D$47/100))/(1-(Production!$F$31/100))),3) -> 3.104 | K82: =ROUND(((($I$32*2204.62)/2000*$B$12)*(1-(Production!$D$47/100))/(1-(Production!$F$31/100))),3) -> 2.823 | L82: =ROUND(((($I$33*2204.62)/2000*$B$12)*(1-(Production!$D$47/100))/(1-(Production!$F$31/100))),3) -> 2.971 | M82: =ROUND(((($I$34*2204.62)/2000*$B$12)*(1-(Production!$D$47/100))/(1-(Production!$F$31/100))),3) -> 3.16 | N82: =ROUND(((($I$35*2204.62)/2000*$B$12)*(1-(Production!$D$47/100))/(1-(Production!$F$31/100))),3) -> 3.773 | O82: =ROUND(((($I$36*2204.62)/2000*$B$12)*(1-(Production!$D$47/100))/(1-(Production!$F$31/100))),3) -> 3.138
A83: Coverage per acre (tons) | B83: =ROUND(B82*0.8,3) -> 2.483 | C83: 2.258 | D83: 2.377 | E83: 2.528 | F83: 3.018 | G83: 2.51 | I83: Coverage per acre (tons) | J83: =ROUND(J82*0.8,3) -> 2.483 | K83: 2.258 | L83: 2.377 | M83: 2.528 | N83: 3.018 | O83: 2.51
A84: Dollar Coverage per acre | B84: =ROUND((($I$20*2204.62)/2000*$B$12)*0.8,3)*$C$7 -> 79.09571718 | C84: =ROUND((($I$21*2204.62)/2000*$B$12)*0.8,3)*$C$7 -> 71.88177554 | D84: =ROUND((($I$22*2204.62)/2000*$B$12)*0.8,3)*$C$7 -> 75.68197694 | E84: =ROUND((($I$23*2204.62)/2000*$B$12)*0.8,3)*$C$7 -> 80.51274142 | F84: =ROUND((($I$24*2204.62)/2000*$B$12)*0.8,3)*$C$7 -> 96.10000816 | G84: =ROUND((($I$25*2204.62)/2000*$B$12)*0.8,3)*$C$7 -> 79.93304969 | I84: Dollar Coverage per acre | J84: =ROUND((($I$31*2204.62)/2000*$B$12)*0.8,3)*$C$8 -> 131.4548539 | K84: =ROUND((($I$32*2204.62)/2000*$B$12)*0.8,3)*$C$8 -> 119.4654861 | L84: =ROUND((($I$33*2204.62)/2000*$B$12)*0.8,3)*$C$8 -> 125.7813138 | M84: =ROUND((($I$34*2204.62)/2000*$B$12)*0.8,3)*$C$8 -> 133.8099083 | N84: =ROUND((($I$35*2204.62)/2000*$B$12)*0.8,3)*$C$8 -> 159.7155065 | O84: =ROUND((($I$36*2204.62)/2000*$B$12)*0.8,3)*$C$8 -> 132.8464769
A85: Premium ($/Acre) | B85: =J$20 -> 4.3 | C85: =J$21 -> 3.71 | D85: =J$22 -> 5.51 | E85: =J$23 -> 4.92 | F85: =J$24 -> 6.71 | G85: =J$25 -> 5.68 | I85: Premium ($/Acre) | J85: =$J$31 -> 6.99 | K85: =$J$32 -> 6.02 | L85: =$J$33 -> 8.95 | M85: =$J$34 -> 7.97 | N85: =$J$35 -> 10.89 | O85: =$J$36 -> 9.22
A86: Premium Cost (% of Insured) | B86: =SUM(B85/B84) -> 0.05436451117 | C86: 0.05161252587 | D86: 0.07280465208 | E86: 0.06110834028 | F86: 0.069823095 | G86: 0.07105946817 | I86: Premium Cost (% of Insured) | J86: =SUM(J85/J84) -> 0.05317414909 | K86: 0.05039112296 | L86: 0.07115524342 | M86: 0.05956210644 | N86: 0.06818373642 | O86: 0.06940342124
A87: Costs Not Covered by AgriInsurance | I87: Costs Not Covered by AgriInsurance
A88: Operating Costs | B88: =IF(Summary!$L$24-B84<0,0,SUM(Summary!$L$24-B84)) -> 114.8414378 | C88: =IF(Summary!$L$24-C84<0,0,SUM(Summary!$L$24-C84)) -> 122.0553794 | D88: =IF(Summary!$L$24-D84<0,0,SUM(Summary!$L$24-D84)) -> 118.255178 | E88: =IF(Summary!$L$24-E84<0,0,SUM(Summary!$L$24-E84)) -> 113.4244136 | F88: =IF(Summary!$L$24-F84<0,0,SUM(Summary!$L$24-F84)) -> 97.83714681 | G88: =IF(Summary!$L$24-G84<0,0,SUM(Summary!$L$24-G84)) -> 114.0041053 | I88: Operating Costs | J88: =IF(Summary!$L$24-J84<0,0,SUM(Summary!$L$24-J84)) -> 62.48230108 | K88: =IF(Summary!$L$24-K84<0,0,SUM(Summary!$L$24-K84)) -> 74.47166886 | L88: =IF(Summary!$L$24-L84<0,0,SUM(Summary!$L$24-L84)) -> 68.15584119 | M88: =IF(Summary!$L$24-M84<0,0,SUM(Summary!$L$24-M84)) -> 60.12724669 | N88: =IF(Summary!$L$24-N84<0,0,SUM(Summary!$L$24-N84)) -> 34.22164845 | O88: =IF(Summary!$L$24-O84<0,0,SUM(Summary!$L$24-O84)) -> 61.09067803
A89: Operating & Fixed Costs | B89: =IF(Summary!$L$32-B84<0,0,SUM(Summary!$L$32-B84)) -> 258.1815327 | C89: =IF(Summary!$L$32-C84<0,0,SUM(Summary!$L$32-C84)) -> 265.3954743 | D89: =IF(Summary!$L$32-D84<0,0,SUM(Summary!$L$32-D84)) -> 261.595273 | E89: =IF(Summary!$L$32-E84<0,0,SUM(Summary!$L$32-E84)) -> 256.7645085 | F89: =IF(Summary!$L$32-F84<0,0,SUM(Summary!$L$32-F84)) -> 241.1772417 | G89: =IF(Summary!$L$32-G84<0,0,SUM(Summary!$L$32-G84)) -> 257.3442002 | I89: Operating & Fixed Costs | J89: =IF(Summary!$L$32-J84<0,0,SUM(Summary!$L$32-J84)) -> 205.822396 | K89: =IF(Summary!$L$32-K84<0,0,SUM(Summary!$L$32-K84)) -> 217.8117638 | L89: =IF(Summary!$L$32-L84<0,0,SUM(Summary!$L$32-L84)) -> 211.4959361 | M89: =IF(Summary!$L$32-M84<0,0,SUM(Summary!$L$32-M84)) -> 203.4673416 | N89: =IF(Summary!$L$32-N84<0,0,SUM(Summary!$L$32-N84)) -> 177.5617434 | O89: =IF(Summary!$L$32-O84<0,0,SUM(Summary!$L$32-O84)) -> 204.4307729
A90: Total Costs | B90: =IF(Summary!$L$36-B84<0,0,SUM(Summary!$L$36-B84)) -> 282.6705327 | C90: =IF(Summary!$L$36-C84<0,0,SUM(Summary!$L$36-C84)) -> 289.8844743 | D90: =IF(Summary!$L$36-D84<0,0,SUM(Summary!$L$36-D84)) -> 286.084273 | E90: =IF(Summary!$L$36-E84<0,0,SUM(Summary!$L$36-E84)) -> 281.2535085 | F90: =IF(Summary!$L$36-F84<0,0,SUM(Summary!$L$36-F84)) -> 265.6662417 | G90: =IF(Summary!$L$36-G84<0,0,SUM(Summary!$L$36-G84)) -> 281.8332002 | I90: Total Costs | J90: =IF(Summary!$L$36-J84<0,0,SUM(Summary!$L$36-J84)) -> 230.311396 | K90: =IF(Summary!$L$36-K84<0,0,SUM(Summary!$L$36-K84)) -> 242.3007638 | L90: =IF(Summary!$L$36-L84<0,0,SUM(Summary!$L$36-L84)) -> 235.9849361 | M90: =IF(Summary!$L$36-M84<0,0,SUM(Summary!$L$36-M84)) -> 227.9563416 | N90: =IF(Summary!$L$36-N84<0,0,SUM(Summary!$L$36-N84)) -> 202.0507434 | O90: =IF(Summary!$L$36-O84<0,0,SUM(Summary!$L$36-O84)) -> 228.9197729
A91: AgriInsurance Risk Ratio | I91: AgriInsurance Risk Ratio
A92: Operating Costs | B92: =B84/Summary!$L$24 -> 0.4078420001 | C92: =C84/Summary!$L$24 -> 0.3706446841 | D92: =D84/Summary!$L$24 -> 0.3902396988 | E92: =E84/Summary!$L$24 -> 0.4151486157 | F92: =F84/Summary!$L$24 -> 0.4955213877 | G92: =G84/Summary!$L$24 -> 0.4121595457 | I92: Operating Costs | J92: =J84/Summary!$L$24 -> 0.6778219156 | K92: =K84/Summary!$L$24 -> 0.6160010243 | L92: =L84/Summary!$L$24 -> 0.6485673867 | M92: =M84/Summary!$L$24 -> 0.689965305 | N92: =N84/Summary!$L$24 -> 0.823542588 | O92: =O84/Summary!$L$24 -> 0.6849975548
A93: Total Costs | B93: =B84/Summary!$L$36 -> 0.2186376347 | C93: =C84/Summary!$L$36 -> 0.1986967429 | D93: =D84/Summary!$L$36 -> 0.2092013198 | E93: =E84/Summary!$L$36 -> 0.2225545955 | F93: =F84/Summary!$L$36 -> 0.2656411652 | G93: =G84/Summary!$L$36 -> 0.2209522025 | I93: Total Costs | J93: =J84/Summary!$L$36 -> 0.36336959 | K93: =K84/Summary!$L$36 -> 0.3302283896 | L93: =L84/Summary!$L$36 -> 0.3476867005 | M93: =M84/Summary!$L$36 -> 0.3698794686 | N93: =N84/Summary!$L$36 -> 0.4414881338 | O93: =O84/Summary!$L$36 -> 0.3672163365
A95: Basic Hay - Alfalfa Grass | I95: Basic Hay - Alfalfa Grass
A96: >4 years | I96: >4 years
A97: ="Low - $"&B7&"/tonne" -> Low - $71/tonne | B97: Forage Region | I97: ="High - $"&B8&"/tonne" -> High - $118/tonne | J97: Forage Region
B98: Forage Region 1 | C98: Forage Region 2 | D98: Forage Region 3 | E98: Forage Region 4 | F98: Forage Region 5 | G98: Forage Region 6 | J98: Forage Region 1 | K98: Forage Region 2 | L98: Forage Region 3 | M98: Forage Region 4 | N98: Forage Region 5 | O98: Forage Region 6
A99: Probable Yield x IPI (tons/acre) | B99: =ROUND(((($K$20*2204.62)/2000*$B$12)*(1-(Production!$D$47/100))/(1-(Production!$F$31/100))),3) -> 3.104 | C99: =ROUND(((($K$21*2204.62)/2000*$B$12)*(1-(Production!$D$47/100))/(1-(Production!$F$31/100))),3) -> 2.823 | D99: =ROUND(((($K$22*2204.62)/2000*$B$12)*(1-(Production!$D$47/100))/(1-(Production!$F$31/100))),3) -> 2.971 | E99: =ROUND(((($K$23*2204.62)/2000*$B$12)*(1-(Production!$D$47/100))/(1-(Production!$F$31/100))),3) -> 3.16 | F99: =ROUND(((($K$24*2204.62)/2000*$B$12)*(1-(Production!$D$47/100))/(1-(Production!$F$31/100))),3) -> 3.773 | G99: =ROUND(((($K$25*2204.62)/2000*$B$12)*(1-(Production!$D$47/100))/(1-(Production!$F$31/100))),3) -> 3.138 | I99: Probable Yield x IPI (tons/acre) | J99: =ROUND(((($K$31*2204.62)/2000*$B$12)*(1-(Production!$D$47/100))/(1-(Production!$F$31/100))),3) -> 3.104 | K99: =ROUND(((($K$32*2204.62)/2000*$B$12)*(1-(Production!$D$47/100))/(1-(Production!$F$31/100))),3) -> 2.823 | L99: =ROUND(((($K$33*2204.62)/2000*$B$12)*(1-(Production!$D$47/100))/(1-(Production!$F$31/100))),3) -> 2.971 | M99: =ROUND(((($K$34*2204.62)/2000*$B$12)*(1-(Production!$D$47/100))/(1-(Production!$F$31/100))),3) -> 3.16 | N99: =ROUND(((($K$35*2204.62)/2000*$B$12)*(1-(Production!$D$47/100))/(1-(Production!$F$31/100))),3) -> 3.773 | O99: =ROUND(((($K$36*2204.62)/2000*$B$12)*(1-(Production!$D$47/100))/(1-(Production!$F$31/100))),3) -> 3.138
A100: Coverage per acre (tons) | B100: =ROUND(B99*0.8,3) -> 2.483 | C100: 2.258 | D100: 2.377 | E100: 2.528 | F100: 3.018 | G100: 2.51 | I100: Coverage per acre (tons) | J100: =ROUND(J99*0.8,3) -> 2.483 | K100: 2.258 | L100: 2.377 | M100: 2.528 | N100: 3.018 | O100: 2.51
A101: Dollar Coverage per acre | B101: =ROUND((($K$20*2204.62)/2000*$B$12)*0.8,3)*$C$7 -> 79.09571718 | C101: =ROUND((($K$21*2204.62)/2000*$B$12)*0.8,3)*$C$7 -> 71.88177554 | D101: =ROUND((($K$22*2204.62)/2000*$B$12)*0.8,3)*$C$7 -> 75.68197694 | E101: =ROUND((($K$23*2204.62)/2000*$B$12)*0.8,3)*$C$7 -> 80.51274142 | F101: =ROUND((($K$24*2204.62)/2000*$B$12)*0.8,3)*$C$7 -> 96.10000816 | G101: =ROUND((($K$25*2204.62)/2000*$B$12)*0.8,3)*$C$7 -> 79.93304969 | I101: Dollar Coverage per acre | J101: =ROUND((($K$31*2204.62)/2000*$B$12)*0.8,3)*$C$8 -> 131.4548539 | K101: =ROUND((($K$32*2204.62)/2000*$B$12)*0.8,3)*$C$8 -> 119.4654861 | L101: =ROUND((($K$33*2204.62)/2000*$B$12)*0.8,3)*$C$8 -> 125.7813138 | M101: =ROUND((($K$34*2204.62)/2000*$B$12)*0.8,3)*$C$8 -> 133.8099083 | N101: =ROUND((($K$35*2204.62)/2000*$B$12)*0.8,3)*$C$8 -> 159.7155065 | O101: =ROUND((($K$36*2204.62)/2000*$B$12)*0.8,3)*$C$8 -> 132.8464769
A102: Premium ($/Acre) | B102: =L$20 -> 4.3 | C102: =L$21 -> 3.71 | D102: =L$22 -> 5.51 | E102: =L$23 -> 4.92 | F102: =L$24 -> 6.71 | G102: =L$25 -> 5.68 | I102: Premium ($/Acre) | J102: =$L$31 -> 6.99 | K102: =$L$32 -> 6.02 | L102: =$L$33 -> 8.95 | M102: =$L$34 -> 7.97 | N102: =$L$35 -> 10.89 | O102: =$L$36 -> 9.22
A103: Premium Cost (% of Insured) | B103: =SUM(B102/B101) -> 0.05436451117 | C103: 0.05161252587 | D103: 0.07280465208 | E103: 0.06110834028 | F103: 0.069823095 | G103: 0.07105946817 | I103: Premium Cost (% of Insured) | J103: =SUM(J102/J101) -> 0.05317414909 | K103: 0.05039112296 | L103: 0.07115524342 | M103: 0.05956210644 | N103: 0.06818373642 | O103: 0.06940342124
A104: Costs Not Covered by AgriInsurance | I104: Costs Not Covered by AgriInsurance
A105: Operating Costs | B105: =IF(Summary!$L$24-B101<0,0,SUM(Summary!$L$24-B101)) -> 114.8414378 | C105: =IF(Summary!$L$24-C101<0,0,SUM(Summary!$L$24-C101)) -> 122.0553794 | D105: =IF(Summary!$L$24-D101<0,0,SUM(Summary!$L$24-D101)) -> 118.255178 | E105: =IF(Summary!$L$24-E101<0,0,SUM(Summary!$L$24-E101)) -> 113.4244136 | F105: =IF(Summary!$L$24-F101<0,0,SUM(Summary!$L$24-F101)) -> 97.83714681 | G105: =IF(Summary!$L$24-G101<0,0,SUM(Summary!$L$24-G101)) -> 114.0041053 | I105: Operating Costs | J105: =IF(Summary!$L$24-J101<0,0,SUM(Summary!$L$24-J101)) -> 62.48230108 | K105: =IF(Summary!$L$24-K101<0,0,SUM(Summary!$L$24-K101)) -> 74.47166886 | L105: =IF(Summary!$L$24-L101<0,0,SUM(Summary!$L$24-L101)) -> 68.15584119 | M105: =IF(Summary!$L$24-M101<0,0,SUM(Summary!$L$24-M101)) -> 60.12724669 | N105: =IF(Summary!$L$24-N101<0,0,SUM(Summary!$L$24-N101)) -> 34.22164845 | O105: =IF(Summary!$L$24-O101<0,0,SUM(Summary!$L$24-O101)) -> 61.09067803
A106: Operating & Fixed Costs | B106: =IF(Summary!$L$32-B101<0,0,SUM(Summary!$L$32-B101)) -> 258.1815327 | C106: =IF(Summary!$L$32-C101<0,0,SUM(Summary!$L$32-C101)) -> 265.3954743 | D106: =IF(Summary!$L$32-D101<0,0,SUM(Summary!$L$32-D101)) -> 261.595273 | E106: =IF(Summary!$L$32-E101<0,0,SUM(Summary!$L$32-E101)) -> 256.7645085 | F106: =IF(Summary!$L$32-F101<0,0,SUM(Summary!$L$32-F101)) -> 241.1772417 | G106: =IF(Summary!$L$32-G101<0,0,SUM(Summary!$L$32-G101)) -> 257.3442002 | I106: Operating & Fixed Costs | J106: =IF(Summary!$L$32-J101<0,0,SUM(Summary!$L$32-J101)) -> 205.822396 | K106: =IF(Summary!$L$32-K101<0,0,SUM(Summary!$L$32-K101)) -> 217.8117638 | L106: =IF(Summary!$L$32-L101<0,0,SUM(Summary!$L$32-L101)) -> 211.4959361 | M106: =IF(Summary!$L$32-M101<0,0,SUM(Summary!$L$32-M101)) -> 203.4673416 | N106: =IF(Summary!$L$32-N101<0,0,SUM(Summary!$L$32-N101)) -> 177.5617434 | O106: =IF(Summary!$L$32-O101<0,0,SUM(Summary!$L$32-O101)) -> 204.4307729
A107: Total Costs | B107: =IF(Summary!$L$36-B101<0,0,SUM(Summary!$L$36-B101)) -> 282.6705327 | C107: =IF(Summary!$L$36-C101<0,0,SUM(Summary!$L$36-C101)) -> 289.8844743 | D107: =IF(Summary!$L$36-D101<0,0,SUM(Summary!$L$36-D101)) -> 286.084273 | E107: =IF(Summary!$L$36-E101<0,0,SUM(Summary!$L$36-E101)) -> 281.2535085 | F107: =IF(Summary!$L$36-F101<0,0,SUM(Summary!$L$36-F101)) -> 265.6662417 | G107: =IF(Summary!$L$36-G101<0,0,SUM(Summary!$L$36-G101)) -> 281.8332002 | I107: Total Costs | J107: =IF(Summary!$L$36-J101<0,0,SUM(Summary!$L$36-J101)) -> 230.311396 | K107: =IF(Summary!$L$36-K101<0,0,SUM(Summary!$L$36-K101)) -> 242.3007638 | L107: =IF(Summary!$L$36-L101<0,0,SUM(Summary!$L$36-L101)) -> 235.9849361 | M107: =IF(Summary!$L$36-M101<0,0,SUM(Summary!$L$36-M101)) -> 227.9563416 | N107: =IF(Summary!$L$36-N101<0,0,SUM(Summary!$L$36-N101)) -> 202.0507434 | O107: =IF(Summary!$L$36-O101<0,0,SUM(Summary!$L$36-O101)) -> 228.9197729
A108: AgriInsurance Risk Ratio | I108: AgriInsurance Risk Ratio
A109: Operating Costs | B109: =B101/Summary!$L$24 -> 0.4078420001 | C109: =C101/Summary!$L$24 -> 0.3706446841 | D109: =D101/Summary!$L$24 -> 0.3902396988 | E109: =E101/Summary!$L$24 -> 0.4151486157 | F109: =F101/Summary!$L$24 -> 0.4955213877 | G109: =G101/Summary!$L$24 -> 0.4121595457 | I109: Operating Costs | J109: =J101/Summary!$L$24 -> 0.6778219156 | K109: =K101/Summary!$L$24 -> 0.6160010243 | L109: =L101/Summary!$L$24 -> 0.6485673867 | M109: =M101/Summary!$L$24 -> 0.689965305 | N109: =N101/Summary!$L$24 -> 0.823542588 | O109: =O101/Summary!$L$24 -> 0.6849975548
A110: Total Costs | B110: =B101/Summary!$L$36 -> 0.2186376347 | C110: =C101/Summary!$L$36 -> 0.1986967429 | D110: =D101/Summary!$L$36 -> 0.2092013198 | E110: =E101/Summary!$L$36 -> 0.2225545955 | F110: =F101/Summary!$L$36 -> 0.2656411652 | G110: =G101/Summary!$L$36 -> 0.2209522025 | I110: Total Costs | J110: =J101/Summary!$L$36 -> 0.36336959 | K110: =K101/Summary!$L$36 -> 0.3302283896 | L110: =L101/Summary!$L$36 -> 0.3476867005 | M110: =M101/Summary!$L$36 -> 0.3698794686 | N110: =N101/Summary!$L$36 -> 0.4414881338 | O110: =O101/Summary!$L$36 -> 0.3672163365
A112: Greenfeed (Silage)
A113: 0.8 | B113: Risk Area
B114: Risk Area 1 | C114: Risk Area 2 | D114: Risk Area 3 | E114: Risk Area 4 | F114: Risk Area 5 | G114: Risk Area 6 | H114: Risk Area 7 | I114: Risk Area 8 | J114: Risk Area 9 | K114: Risk Area 10 | L114: Risk Area 11 | M114: Risk Area 12 | N114: Risk Area 14 | O114: Risk Area 15 | P114: Risk Area 16
A115: Probable Yield x IPI (tons/acre) | B115: =ROUND((($N20*$B$13)*(1-(Production!$F$47/100))/(1-(Production!$D$31/100))),3) -> 4.654 | C115: =ROUND((($N21*$B$13)*(1-(Production!$F$47/100))/(1-(Production!$D$31/100))),3) -> 4.654 | D115: =ROUND((($N22*$B$13)*(1-(Production!$F$47/100))/(1-(Production!$D$31/100))),3) -> 4.654 | E115: =ROUND((($N23*$B$13)*(1-(Production!$F$47/100))/(1-(Production!$D$31/100))),3) -> 4.654 | F115: =ROUND((($N24*$B$13)*(1-(Production!$F$47/100))/(1-(Production!$D$31/100))),3) -> 4.654 | G115: =ROUND((($N25*$B$13)*(1-(Production!$F$47/100))/(1-(Production!$D$31/100))),3) -> 4.654 | H115: =ROUND((($N26*$B$13)*(1-(Production!$F$47/100))/(1-(Production!$D$31/100))),3) -> 4.654 | I115: =ROUND((($N27*$B$13)*(1-(Production!$F$47/100))/(1-(Production!$D$31/100))),3) -> 4.654 | J115: =ROUND((($N28*$B$13)*(1-(Production!$F$47/100))/(1-(Production!$D$31/100))),3) -> 4.654 | K115: =ROUND((($N29*$B$13)*(1-(Production!$F$47/100))/(1-(Production!$D$31/100))),3) -> 4.654 | L115: =ROUND((($N30*$B$13)*(1-(Production!$F$47/100))/(1-(Production!$D$31/100))),3) -> 4.654 | M115: =ROUND((($N31*$B$13)*(1-(Production!$F$47/100))/(1-(Production!$D$31/100))),3) -> 4.654 | N115: =ROUND((($N32*$B$13)*(1-(Production!$F$47/100))/(1-(Production!$D$31/100))),3) -> 4.654 | O115: =ROUND((($N33*$B$13)*(1-(Production!$F$47/100))/(1-(Production!$D$31/100))),3) -> 4.654 | P115: =ROUND((($N34*$B$13)*(1-(Production!$F$47/100))/(1-(Production!$D$31/100))),3) -> 4.654
A116: Coverage per acre (tons) | B116: =ROUND(B115*0.8,3) -> 3.723 | C116: =ROUND(C115*0.8,3) -> 3.723 | D116: 3.723 | E116: 3.723 | F116: 3.723 | G116: 3.723 | H116: 3.723 | I116: 3.723 | J116: 3.723 | K116: 3.723 | L116: 3.723 | M116: 3.723 | N116: 3.723 | O116: 3.723 | P116: 3.723
A117: Dollar Coverage per acre | B117: =$N20*$B$13*0.8*$C$3 -> 221.9552 | C117: =$N21*$B$13*0.8*$C$3 -> 221.9552 | D117: =$N22*$B$13*0.8*$C$3 -> 221.9552 | E117: =$N23*$B$13*0.8*$C$3 -> 221.9552 | F117: =$N24*$B$13*0.8*$C$3 -> 221.9552 | G117: =$N25*$B$13*0.8*$C$3 -> 221.9552 | H117: =$N26*$B$13*0.8*$C$3 -> 221.9552 | I117: =$N27*$B$13*0.8*$C$3 -> 221.9552 | J117: =$N28*$B$13*0.8*$C$3 -> 221.9552 | K117: =$N29*$B$13*0.8*$C$3 -> 221.9552 | L117: =$N30*$B$13*0.8*$C$3 -> 221.9552 | M117: =$N31*$B$13*0.8*$C$3 -> 221.9552 | N117: =$N32*$B$13*0.8*$C$3 -> 221.9552 | O117: =$N33*$B$13*0.8*$C$3 -> 221.9552 | P117: =$N34*$B$13*0.8*$C$3 -> 221.9552
A118: Premium ($/Acre) | B118: =O$20 -> 18.5 | C118: =O$21 -> 20.7 | D118: =O$22 -> 20.22 | E118: =O$23 -> 21.92 | F118: =O$24 -> 20.21 | G118: =O$25 -> 20.13 | H118: =O$26 -> 19.8 | I118: =O$27 -> 22.98 | J118: =O$28 -> 19.48 | K118: =O$29 -> 19.23 | L118: =O$30 -> 19.48 | M118: =O$31 -> 18.17 | N118: =O$32 -> 17.6 | O118: =O$33 -> 16.63 | P118: =O$34 -> 15.72
A119: Premium Cost (% of Insured) | B119: =SUM(B118/B117) -> 0.08335015354 | C119: 0.0932620637 | D119: 0.09109946512 | E119: 0.09875866842 | F119: 0.09105441098 | G119: 0.09069397788 | H119: 0.08920719136 | I119: 0.1035344069 | J119: 0.08776545898 | K119: 0.08663910555 | L119: 0.08776545898 | M119: 0.08186336702 | N119: 0.07929528121 | O119: 0.07492502992 | P119: =SUM(P118/P117) -> 0.07082510344
A120: Costs Not Covered by AgriInsurance
A121: Operating Costs | B121: =IF(Summary!$C$24-B117<0,0,SUM(Summary!$C$24-B117)) -> 6.129125483 | C121: =IF(Summary!$C$24-C117<0,0,SUM(Summary!$C$24-C117)) -> 6.129125483 | D121: =IF(Summary!$C$24-D117<0,0,SUM(Summary!$C$24-D117)) -> 6.129125483 | E121: =IF(Summary!$C$24-E117<0,0,SUM(Summary!$C$24-E117)) -> 6.129125483 | F121: =IF(Summary!$C$24-F117<0,0,SUM(Summary!$C$24-F117)) -> 6.129125483 | G121: =IF(Summary!$C$24-G117<0,0,SUM(Summary!$C$24-G117)) -> 6.129125483 | H121: =IF(Summary!$C$24-H117<0,0,SUM(Summary!$C$24-H117)) -> 6.129125483 | I121: =IF(Summary!$C$24-I117<0,0,SUM(Summary!$C$24-I117)) -> 6.129125483 | J121: =IF(Summary!$C$24-J117<0,0,SUM(Summary!$C$24-J117)) -> 6.129125483 | K121: =IF(Summary!$C$24-K117<0,0,SUM(Summary!$C$24-K117)) -> 6.129125483 | L121: =IF(Summary!$C$24-L117<0,0,SUM(Summary!$C$24-L117)) -> 6.129125483 | M121: =IF(Summary!$C$24-M117<0,0,SUM(Summary!$C$24-M117)) -> 6.129125483 | N121: =IF(Summary!$C$24-N117<0,0,SUM(Summary!$C$24-N117)) -> 6.129125483 | O121: =IF(Summary!$C$24-O117<0,0,SUM(Summary!$C$24-O117)) -> 6.129125483 | P121: =IF(Summary!$C$24-P117<0,0,SUM(Summary!$C$24-P117)) -> 6.129125483
A122: Operating & Fixed Costs | B122: =IF(Summary!$C$32-B117<0,0,SUM(Summary!$C$32-B117)) -> 149.4692204 | C122: =IF(Summary!$C$32-C117<0,0,SUM(Summary!$C$32-C117)) -> 149.4692204 | D122: =IF(Summary!$C$32-D117<0,0,SUM(Summary!$C$32-D117)) -> 149.4692204 | E122: =IF(Summary!$C$32-E117<0,0,SUM(Summary!$C$32-E117)) -> 149.4692204 | F122: =IF(Summary!$C$32-F117<0,0,SUM(Summary!$C$32-F117)) -> 149.4692204 | G122: =IF(Summary!$C$32-G117<0,0,SUM(Summary!$C$32-G117)) -> 149.4692204 | H122: =IF(Summary!$C$32-H117<0,0,SUM(Summary!$C$32-H117)) -> 149.4692204 | I122: =IF(Summary!$C$32-I117<0,0,SUM(Summary!$C$32-I117)) -> 149.4692204 | J122: =IF(Summary!$C$32-J117<0,0,SUM(Summary!$C$32-J117)) -> 149.4692204 | K122: =IF(Summary!$C$32-K117<0,0,SUM(Summary!$C$32-K117)) -> 149.4692204 | L122: =IF(Summary!$C$32-L117<0,0,SUM(Summary!$C$32-L117)) -> 149.4692204 | M122: =IF(Summary!$C$32-M117<0,0,SUM(Summary!$C$32-M117)) -> 149.4692204 | N122: =IF(Summary!$C$32-N117<0,0,SUM(Summary!$C$32-N117)) -> 149.4692204 | O122: =IF(Summary!$C$32-O117<0,0,SUM(Summary!$C$32-O117)) -> 149.4692204 | P122: =IF(Summary!$C$32-P117<0,0,SUM(Summary!$C$32-P117)) -> 149.4692204
A123: Total Costs | B123: =IF(Summary!$C$36-B117<0,0,SUM(Summary!$C$36-B117)) -> 190.8332204 | C123: =IF(Summary!$C$36-C117<0,0,SUM(Summary!$C$36-C117)) -> 190.8332204 | D123: =IF(Summary!$C$36-D117<0,0,SUM(Summary!$C$36-D117)) -> 190.8332204 | E123: =IF(Summary!$C$36-E117<0,0,SUM(Summary!$C$36-E117)) -> 190.8332204 | F123: =IF(Summary!$C$36-F117<0,0,SUM(Summary!$C$36-F117)) -> 190.8332204 | G123: =IF(Summary!$C$36-G117<0,0,SUM(Summary!$C$36-G117)) -> 190.8332204 | H123: =IF(Summary!$C$36-H117<0,0,SUM(Summary!$C$36-H117)) -> 190.8332204 | I123: =IF(Summary!$C$36-I117<0,0,SUM(Summary!$C$36-I117)) -> 190.8332204 | J123: =IF(Summary!$C$36-J117<0,0,SUM(Summary!$C$36-J117)) -> 190.8332204 | K123: =IF(Summary!$C$36-K117<0,0,SUM(Summary!$C$36-K117)) -> 190.8332204 | L123: =IF(Summary!$C$36-L117<0,0,SUM(Summary!$C$36-L117)) -> 190.8332204 | M123: =IF(Summary!$C$36-M117<0,0,SUM(Summary!$C$36-M117)) -> 190.8332204 | N123: =IF(Summary!$C$36-N117<0,0,SUM(Summary!$C$36-N117)) -> 190.8332204 | O123: =IF(Summary!$C$36-O117<0,0,SUM(Summary!$C$36-O117)) -> 190.8332204 | P123: =IF(Summary!$C$36-P117<0,0,SUM(Summary!$C$36-P117)) -> 190.8332204
A124: AgriInsurance Risk Ratio
A125: Operating Costs | B125: =B117/Summary!$C$24 -> 0.9731278093 | C125: =C117/Summary!$C$24 -> 0.9731278093 | D125: =D117/Summary!$C$24 -> 0.9731278093 | E125: =E117/Summary!$C$24 -> 0.9731278093 | F125: =F117/Summary!$C$24 -> 0.9731278093 | G125: =G117/Summary!$C$24 -> 0.9731278093 | H125: =H117/Summary!$C$24 -> 0.9731278093 | I125: =I117/Summary!$C$24 -> 0.9731278093 | J125: =J117/Summary!$C$24 -> 0.9731278093 | K125: =K117/Summary!$C$24 -> 0.9731278093 | L125: =L117/Summary!$C$24 -> 0.9731278093 | M125: =M117/Summary!$C$24 -> 0.9731278093 | N125: =N117/Summary!$C$24 -> 0.9731278093 | O125: =O117/Summary!$C$24 -> 0.9731278093 | P125: =P117/Summary!$C$24 -> 0.9731278093
A126: Total Costs | B126: =B117/Summary!$C$36 -> 0.5376972537 | C126: =C117/Summary!$C$36 -> 0.5376972537 | D126: =D117/Summary!$C$36 -> 0.5376972537 | E126: =E117/Summary!$C$36 -> 0.5376972537 | F126: =F117/Summary!$C$36 -> 0.5376972537 | G126: =G117/Summary!$C$36 -> 0.5376972537 | H126: =H117/Summary!$C$36 -> 0.5376972537 | I126: =I117/Summary!$C$36 -> 0.5376972537 | J126: =J117/Summary!$C$36 -> 0.5376972537 | K126: =K117/Summary!$C$36 -> 0.5376972537 | L126: =L117/Summary!$C$36 -> 0.5376972537 | M126: =M117/Summary!$C$36 -> 0.5376972537 | N126: =N117/Summary!$C$36 -> 0.5376972537 | O126: =O117/Summary!$C$36 -> 0.5376972537 | P126: =P117/Summary!$C$36 -> 0.5376972537
A128: Corn (Silage)
A129: 0.8 | B129: Risk Area
B130: Risk Area 1 | C130: Risk Area 2 | D130: Risk Area 3 | E130: Risk Area 4 | F130: Risk Area 5 | G130: Risk Area 6 | H130: Risk Area 7 | I130: Risk Area 8 | J130: Risk Area 9 | K130: Risk Area 10 | L130: Risk Area 11 | M130: Risk Area 12 | N130: Risk Area 14 | O130: Risk Area 15 | P130: Risk Area 16
A131: Probable Yield x IPI (tons/acre) | B131: =ROUND($Q20*$B$11,3) -> 13.158 | C131: =ROUND($Q21*$B$11,3) -> 13.158 | D131: =ROUND($Q22*$B$11,3) -> 13.158 | E131: =ROUND($Q23*$B$11,3) -> 13.158 | F131: =ROUND($Q24*$B$11,3) -> 13.158 | G131: =ROUND($Q25*$B$11,3) -> 13.158 | H131: =ROUND($Q26*$B$11,3) -> 13.158 | I131: =ROUND($Q27*$B$11,3) -> 13.158 | J131: =ROUND($Q28*$B$11,3) -> 13.158 | K131: =ROUND($Q29*$B$11,3) -> 13.158 | L131: =ROUND($Q30*$B$11,3) -> 13.158 | M131: =ROUND($Q31*$B$11,3) -> 13.158 | N131: =ROUND($Q32*$B$11,3) -> 13.158 | O131: =ROUND($Q33*$B$11,3) -> 13.158 | P131: =ROUND($Q34*$B$11,3) -> 13.158
A132: Coverage per acre (tons) | B132: =ROUND(B131*0.8,3) -> 10.526 | C132: =ROUND(C131*0.8,3) -> 10.526 | D132: 10.526 | E132: 10.526 | F132: 10.526 | G132: 10.526 | H132: 10.526 | I132: 10.526 | J132: 10.526 | K132: 10.526 | L132: 10.526 | M132: 10.526 | N132: 10.526 | O132: 10.526 | P132: =ROUND(P131*0.8,3) -> 10.526
A133: Dollar Coverage per acre | B133: =B132*$C$4 -> 863.132 | C133: =C132*$C$4 -> 863.132 | D133: 863.132 | E133: 863.132 | F133: 863.132 | G133: 863.132 | H133: 863.132 | I133: 863.132 | J133: 863.132 | K133: 863.132 | L133: 863.132 | M133: 863.132 | N133: 863.132 | O133: 863.132 | P133: =P132*$C$4 -> 863.132
A134: Premium ($/Acre) | B134: =$R20 -> 27.7 | C134: =$R21 -> 28.02 | D134: =$R22 -> 28.02 | E134: =$R23 -> 28.65 | F134: =$R24 -> 27.7 | G134: =$R25 -> 28.65 | H134: =$R26 -> 28.96 | I134: =$R27 -> 27.38 | J134: =$R28 -> 27.38 | K134: =$R29 -> 27.38 | L134: =$R30 -> 26.11 | M134: =$R31 -> 27.38 | N134: =$R32 -> 28.02 | O134: =$R33 -> 25.79 | P134: =$R34 -> 24.82
A135: Premium Cost (% of Insured) | B135: =SUM(B134/B133) -> 0.03209242619 | C135: 0.03246316902 | D135: 0.03246316902 | E135: 0.03319306896 | F135: 0.03209242619 | G135: 0.03319306896 | H135: 0.03355222608 | I135: 0.03172168336 | J135: 0.03172168336 | K135: 0.03172168336 | L135: 0.03025029775 | M135: 0.03172168336 | N135: 0.03246316902 | O135: 0.02987955492 | P135: =SUM(P134/P133) -> 0.02875574072
A136: Costs Not Covered by AgriInsurance
A137: Operating Costs | B137: =IF(Summary!$G$24-B133<0,0,SUM(Summary!$G$24-B133)) -> 0 | C137: =IF(Summary!$G$24-C133<0,0,SUM(Summary!$G$24-C133)) -> 0 | D137: =IF(Summary!$G$24-D133<0,0,SUM(Summary!$G$24-D133)) -> 0 | E137: =IF(Summary!$G$24-E133<0,0,SUM(Summary!$G$24-E133)) -> 0 | F137: =IF(Summary!$G$24-F133<0,0,SUM(Summary!$G$24-F133)) -> 0 | G137: =IF(Summary!$G$24-G133<0,0,SUM(Summary!$G$24-G133)) -> 0 | H137: =IF(Summary!$G$24-H133<0,0,SUM(Summary!$G$24-H133)) -> 0 | I137: =IF(Summary!$G$24-I133<0,0,SUM(Summary!$G$24-I133)) -> 0 | J137: =IF(Summary!$G$24-J133<0,0,SUM(Summary!$G$24-J133)) -> 0 | K137: =IF(Summary!$G$24-K133<0,0,SUM(Summary!$G$24-K133)) -> 0 | L137: =IF(Summary!$G$24-L133<0,0,SUM(Summary!$G$24-L133)) -> 0 | M137: =IF(Summary!$G$24-M133<0,0,SUM(Summary!$G$24-M133)) -> 0 | N137: =IF(Summary!$G$24-N133<0,0,SUM(Summary!$G$24-N133)) -> 0 | O137: =IF(Summary!$G$24-O133<0,0,SUM(Summary!$G$24-O133)) -> 0 | P137: =IF(Summary!$G$24-P133<0,0,SUM(Summary!$G$24-P133)) -> 0
A138: Operating & Fixed Costs | B138: =IF(Summary!$G$32-B133<0,0,SUM(Summary!$G$32-B133)) -> 0 | C138: =IF(Summary!$G$32-C133<0,0,SUM(Summary!$G$32-C133)) -> 0 | D138: =IF(Summary!$G$32-D133<0,0,SUM(Summary!$G$32-D133)) -> 0 | E138: =IF(Summary!$G$32-E133<0,0,SUM(Summary!$G$32-E133)) -> 0 | F138: =IF(Summary!$G$32-F133<0,0,SUM(Summary!$G$32-F133)) -> 0 | G138: =IF(Summary!$G$32-G133<0,0,SUM(Summary!$G$32-G133)) -> 0 | H138: =IF(Summary!$G$32-H133<0,0,SUM(Summary!$G$32-H133)) -> 0 | I138: =IF(Summary!$G$32-I133<0,0,SUM(Summary!$G$32-I133)) -> 0 | J138: =IF(Summary!$G$32-J133<0,0,SUM(Summary!$G$32-J133)) -> 0 | K138: =IF(Summary!$G$32-K133<0,0,SUM(Summary!$G$32-K133)) -> 0 | L138: =IF(Summary!$G$32-L133<0,0,SUM(Summary!$G$32-L133)) -> 0 | M138: =IF(Summary!$G$32-M133<0,0,SUM(Summary!$G$32-M133)) -> 0 | N138: =IF(Summary!$G$32-N133<0,0,SUM(Summary!$G$32-N133)) -> 0 | O138: =IF(Summary!$G$32-O133<0,0,SUM(Summary!$G$32-O133)) -> 0 | P138: =IF(Summary!$G$32-P133<0,0,SUM(Summary!$G$32-P133)) -> 0
A139: Total Costs | B139: =IF(Summary!$G$36-B133<0,0,SUM(Summary!$G$36-B133)) -> 0 | C139: =IF(Summary!$G$36-C133<0,0,SUM(Summary!$G$36-C133)) -> 0 | D139: =IF(Summary!$G$36-D133<0,0,SUM(Summary!$G$36-D133)) -> 0 | E139: =IF(Summary!$G$36-E133<0,0,SUM(Summary!$G$36-E133)) -> 0 | F139: =IF(Summary!$G$36-F133<0,0,SUM(Summary!$G$36-F133)) -> 0 | G139: =IF(Summary!$G$36-G133<0,0,SUM(Summary!$G$36-G133)) -> 0 | H139: =IF(Summary!$G$36-H133<0,0,SUM(Summary!$G$36-H133)) -> 0 | I139: =IF(Summary!$G$36-I133<0,0,SUM(Summary!$G$36-I133)) -> 0 | J139: =IF(Summary!$G$36-J133<0,0,SUM(Summary!$G$36-J133)) -> 0 | K139: =IF(Summary!$G$36-K133<0,0,SUM(Summary!$G$36-K133)) -> 0 | L139: =IF(Summary!$G$36-L133<0,0,SUM(Summary!$G$36-L133)) -> 0 | M139: =IF(Summary!$G$36-M133<0,0,SUM(Summary!$G$36-M133)) -> 0 | N139: =IF(Summary!$G$36-N133<0,0,SUM(Summary!$G$36-N133)) -> 0 | O139: =IF(Summary!$G$36-O133<0,0,SUM(Summary!$G$36-O133)) -> 0 | P139: =IF(Summary!$G$36-P133<0,0,SUM(Summary!$G$36-P133)) -> 0
A140: AgriInsurance Risk Ratio
A141: Operating Costs | B141: =B133/Summary!$G$24 -> 2.196318421 | C141: =C133/Summary!$G$24 -> 2.196318421 | D141: =D133/Summary!$G$24 -> 2.196318421 | E141: =E133/Summary!$G$24 -> 2.196318421 | F141: =F133/Summary!$G$24 -> 2.196318421 | G141: =G133/Summary!$G$24 -> 2.196318421 | H141: =H133/Summary!$G$24 -> 2.196318421 | I141: =I133/Summary!$G$24 -> 2.196318421 | J141: =J133/Summary!$G$24 -> 2.196318421 | K141: =K133/Summary!$G$24 -> 2.196318421 | L141: =L133/Summary!$G$24 -> 2.196318421 | M141: =M133/Summary!$G$24 -> 2.196318421 | N141: =N133/Summary!$G$24 -> 2.196318421 | O141: =O133/Summary!$G$24 -> 2.196318421 | P141: =P133/Summary!$G$24 -> 2.196318421
A142: Total Costs | B142: =B133/Summary!$G$36 -> 1.442912203 | C142: =C133/Summary!$G$36 -> 1.442912203 | D142: =D133/Summary!$G$36 -> 1.442912203 | E142: =E133/Summary!$G$36 -> 1.442912203 | F142: =F133/Summary!$G$36 -> 1.442912203 | G142: =G133/Summary!$G$36 -> 1.442912203 | H142: =H133/Summary!$G$36 -> 1.442912203 | I142: =I133/Summary!$G$36 -> 1.442912203 | J142: =J133/Summary!$G$36 -> 1.442912203 | K142: =K133/Summary!$G$36 -> 1.442912203 | L142: =L133/Summary!$G$36 -> 1.442912203 | M142: =M133/Summary!$G$36 -> 1.442912203 | N142: =N133/Summary!$G$36 -> 1.442912203 | O142: =O133/Summary!$G$36 -> 1.442912203 | P142: =P133/Summary!$G$36 -> 1.442912203

Sheet Risk Analysis OLD (hidden)
A1: Risk & Sensitivity Analysis (Stress Test)
A4: A. Operating Costs/acre | C4: =Summary!C24 -> 228.0843255 | E4: =Summary!G24 -> 392.990375 | G4: =Summary!L24 -> 193.937155
A5: B. Fixed Costs/acre | C5: =Summary!C30 -> 143.3400949 | E5: =Summary!G30 -> 143.3400949 | G5: =Summary!L30 -> 143.3400949
A6: Total Costs/acre | C6: =Summary!C36 -> 412.7884204 | E6: =Summary!G36 -> 598.1874699 | G6: =Summary!L36 -> 361.7662499
A8: Estimated Farmgate
B9: Price $ per unit | C9: =Summary!D43 -> 60 | E9: =Summary!H43 -> 52 | G9: =Summary!M43 -> 59.70892449
B10: Yield per acre (bu or lb.) | C10: =Summary!D44 -> 7.5 | E10: =Summary!H44 -> 15 | G10: =Summary!M44 -> 6.31
F12: Percent Market Price Change | G12: -0.25
F13: Percent Crop Yield Change | G13: -0.25
D16: =Summary!C3 -> Barley Silage | F16: =Summary!G3 -> Corn Silage | H16: =Summary!K3 -> Alfalfa-Grass Silage | J16: Your Farm
B18: Market Price ($ per unit) | D18: =SUM(C9*(1+$G$12)) -> 45 | F18: =SUM(E9*(1+$G$12)) -> 39 | H18: =SUM(G9*(1+$G$12)) -> 44.78169336
B19: Yield (per acre) | D19: =ROUND(C10*(1+$G$13),2) -> 5.63 | F19: =ROUND(E10*(1+$G$13),2) -> 11.25 | H19: =ROUND(G10*(1+$G$13),2) -> 4.73
A21: ="Stress Test Scenario = Market Price "&IF(G12<0,"Down","Up")&" "&ABS(G12*100)&"%, and Crop Yield "&IF(G13<0,"Down","Up")&" "&ABS(G13*100)&"%" -> Stress Test Scenario = Market Price Down 25%, and Crop Yield Down 25%
A22: Gross Revenue / acre | C22: =D18*D19 -> 253.35 | E22: =F18*F19 -> 438.75 | G22: =H18*H19 -> 211.8174096
A23: Marginal Returns
B24: Over Operating Costs | C24: =SUM(C22-C4) -> 25.26567452 | E24: =SUM(E22-E4) -> 45.75962502 | G24: =SUM(G22-G4) -> 17.88025463
B25: Over Operating & Fixed | C25: =SUM(C22-(C4+C5)) -> -118.0744204 | E25: =SUM(E22-(E4+E5)) -> -97.5804699 | G25: =SUM(G22-(G4+G5)) -> -125.4598403
A26: Net Profit (Loss) per acre | D26: =SUM(C22-C6) -> -159.4384204 | F26: =SUM(E22-E6) -> -159.4374699 | H26: =SUM(G22-G6) -> -149.9488403
A28: Operating Expense Ratio | D28: =SUM(C4/C22) -> 0.9002736352 | F28: =SUM(E4/E22) -> 0.8957045584 | H28: =SUM(G4/G22) -> 0.915586473
A30: Cost per ton | D30: =SUM(C6/D19) -> 73.31943524 | F30: =SUM(E6/F19) -> 53.17221955 | H30: =SUM(G6/H19) -> 76.48335093
A31: Cost of TDN ($ per pound) | D31: =SUM((D30)/((2000*(1-(Production!D31/100))*(Production!D30/100)))) -> 0.158628659 | F31: =SUM((F30)/((2000*(1-(Production!E31/100))*(Production!E30/100)))) -> 0.1175856248 | H31: =SUM((H30)/((2000*(1-(Production!F31/100))*(Production!F30/100)))) -> 0.1465602598
A32: Cost of Crude Protein ($ per pound) | D32: =SUM((D30)/((2000*(1-(Production!$D$31/100))*(Production!$D$29/100)))) -> 0.8974666476 | F32: =SUM((F30)/((2000*(1-(Production!E31/100))*(Production!E29/100)))) -> 0.8731070533 | H32: =SUM((H30)/((2000*(1-(Production!F31/100))*(Production!F29/100)))) -> 0.606317787
A34: AgriInsurance Analysis
B36: Forage Region 6 | D36: Barley | F36: Corn | G36: Alfalfa Grass | I36: =IF(G37="<=4 years",IF(H39=B84,HLOOKUP($B$36,'DATA (HIDE)'!$A$81:$G$93,2,FALSE),HLOOKUP($B$36,'DATA (HIDE)'!$I$81:$O$93,2,FALSE)),IF(H39=B84,HLOOKUP($B$36,'DATA (HIDE)'!$A$98:$G$110,2,FALSE),HLOOKUP($B$36,'DATA (HIDE)'!$I$98:$O$110,2,FALSE))) -> 3.138
B37: Risk Area 14 | D37: Silage | F37: Silage | G37: >4 years
G38: Select Hay | H38: Basic Hay | I38: 70% Coverage
B39: *Based on 2021 MASC data* | D39: 80% Coverage | F39: 80% Coverage | H39: High - $94/tonne | J39: Your Farm
A41: AgriInsurance
B42: Probable Yield - IC (tons/acre) | D42: =HLOOKUP($B$37,'DATA (HIDE)'!A114:P126,2,FALSE) -> 4.654 | F42: =HLOOKUP($B$37,'DATA (HIDE)'!A130:P142,2,FALSE) -> 13.158 | G42: =IF(G37="<=4 years",HLOOKUP($B$36,'DATA (HIDE)'!A45:G57,2,FALSE),HLOOKUP($B$36,'DATA (HIDE)'!A63:G75,2,FALSE)) -> 2.788 | H42: =IF(G37="<=4 years",IF(H39=B84,HLOOKUP($B$36,'DATA (HIDE)'!$A$81:$G$93,2,FALSE),HLOOKUP($B$36,'DATA (HIDE)'!$I$81:$O$93,2,FALSE)),IF(H39=B84,HLOOKUP($B$36,'DATA (HIDE)'!$A$98:$G$110,2,FALSE),HLOOKUP($B$36,'DATA (HIDE)'!$I$98:$O$110,2,FALSE))) -> 3.138
B43: Coverage per acre (tons) | D43: =HLOOKUP($B$37,'DATA (HIDE)'!A114:P126,3,FALSE) -> 3.723 | F43: =HLOOKUP($B$37,'DATA (HIDE)'!A130:P142,3,FALSE) -> 10.526 | G43: =IF(G37="<=4 years",HLOOKUP($B$36,'DATA (HIDE)'!A45:G57,3,FALSE),HLOOKUP($B$36,'DATA (HIDE)'!A63:G75,3,FALSE)) -> 2.23 | H43: =IF(G37="<=4 years",IF(H39=B84,HLOOKUP($B$36,'DATA (HIDE)'!$A$81:$G$93,3,FALSE),HLOOKUP($B$36,'DATA (HIDE)'!$I$81:$O$93,3,FALSE)),IF(H39=B84,HLOOKUP($B$36,'DATA (HIDE)'!$A$98:$G$110,3,FALSE),HLOOKUP($B$36,'DATA (HIDE)'!$I$98:$O$110,3,FALSE))) -> 2.51 | I43: 3
B44: Dollar Coverage per acre | D44: =HLOOKUP($B$37,'DATA (HIDE)'!A114:P126,4,FALSE) -> 221.9552 | F44: =HLOOKUP($B$37,'DATA (HIDE)'!A130:P142,4,FALSE) -> 863.132 | G44: =IF(G37="<=4 years",HLOOKUP($B$36,'DATA (HIDE)'!A45:G57,4,FALSE),HLOOKUP($B$36,'DATA (HIDE)'!A63:G75,4,FALSE)) -> 195.0159211 | H44: =IF(G37="<=4 years",IF(H39=B84,HLOOKUP($B$36,'DATA (HIDE)'!$A$81:$G$93,4,FALSE),HLOOKUP($B$36,'DATA (HIDE)'!$I$81:$O$93,4,FALSE)),IF(H39=B84,HLOOKUP($B$36,'DATA (HIDE)'!$A$98:$G$110,4,FALSE),HLOOKUP($B$36,'DATA (HIDE)'!$I$98:$O$110,4,FALSE))) -> 132.8464769 | I44: 4
B45: Premium ($/Acre) | D45: =HLOOKUP($B$37,'DATA (HIDE)'!A114:P126,5,FALSE) -> 17.6 | F45: =HLOOKUP($B$37,'DATA (HIDE)'!A130:P142,5,FALSE) -> 28.02 | G45: =IF(G37="<=4 years",HLOOKUP($B$36,'DATA (HIDE)'!A45:G57,5,FALSE),HLOOKUP($B$36,'DATA (HIDE)'!A63:G75,5,FALSE)) -> 19.74 | H45: =IF(G37="<=4 years",IF(H39=B84,HLOOKUP($B$36,'DATA (HIDE)'!$A$81:$G$93,5,FALSE),HLOOKUP($B$36,'DATA (HIDE)'!$I$81:$O$93,5,FALSE)),IF(H39=B84,HLOOKUP($B$36,'DATA (HIDE)'!$A$98:$G$110,5,FALSE),HLOOKUP($B$36,'DATA (HIDE)'!$I$98:$O$110,5,FALSE))) -> 9.22 | I45: 5
B46: Premium Cost (% of Insured) | D46: =D45/D44 -> 0.07929528121 | F46: =F45/F44 -> 0.03246316902 | G46: =G45/G44 -> 0.1012225047 | H46: =H45/H44 -> 0.06940342124
A48: Costs Not Covered By AgriInsurance
B49: Operating Costs | D49: =HLOOKUP($B$37,'DATA (HIDE)'!A114:P126,8,FALSE) -> 6.129125483 | F49: =HLOOKUP($B$37,'DATA (HIDE)'!A130:P142,8,FALSE) -> 0 | G49: =IF(G37="<=4 years",HLOOKUP($B$36,'DATA (HIDE)'!A45:G57,8,FALSE),HLOOKUP($B$36,'DATA (HIDE)'!A63:G75,8,FALSE)) -> 0 | H49: =IF(G37="<=4 years",IF(H39=B84,HLOOKUP($B$36,'DATA (HIDE)'!$A$81:$G$93,8,FALSE),HLOOKUP($B$36,'DATA (HIDE)'!$I$81:$O$93,8,FALSE)),IF(H39=B84,HLOOKUP($B$36,'DATA (HIDE)'!$A$98:$G$110,8,FALSE),HLOOKUP($B$36,'DATA (HIDE)'!$I$98:$O$110,8,FALSE))) -> 61.09067803 | I49: 8
B50: Operating & Fixed Costs | D50: =HLOOKUP($B$37,'DATA (HIDE)'!A114:P126,9,FALSE) -> 149.4692204 | F50: =HLOOKUP($B$37,'DATA (HIDE)'!A130:P142,9,FALSE) -> 0 | G50: =IF(G37="<=4 years",HLOOKUP($B$36,'DATA (HIDE)'!A45:G57,9,FALSE),HLOOKUP($B$36,'DATA (HIDE)'!A63:G75,9,FALSE)) -> 142.2613288 | H50: =IF(G37="<=4 years",IF(H39=B84,HLOOKUP($B$36,'DATA (HIDE)'!$A$81:$G$93,9,FALSE),HLOOKUP($B$36,'DATA (HIDE)'!$I$81:$O$93,9,FALSE)),IF(H39=B84,HLOOKUP($B$36,'DATA (HIDE)'!$A$98:$G$110,9,FALSE),HLOOKUP($B$36,'DATA (HIDE)'!$I$98:$O$110,9,FALSE))) -> 204.4307729 | I50: 9
B51: Total Costs | D51: =HLOOKUP($B$37,'DATA (HIDE)'!A114:P126,10,FALSE) -> 190.8332204 | F51: =HLOOKUP($B$37,'DATA (HIDE)'!A130:P142,10,FALSE) -> 0 | G51: =IF(G37="<=4 years",HLOOKUP($B$36,'DATA (HIDE)'!A45:G57,10,FALSE),HLOOKUP($B$36,'DATA (HIDE)'!A63:G75,10,FALSE)) -> 166.7503288 | H51: =IF(G37="<=4 years",IF(H39=B84,HLOOKUP($B$36,'DATA (HIDE)'!$A$81:$G$93,10,FALSE),HLOOKUP($B$36,'DATA (HIDE)'!$I$81:$O$93,10,FALSE)),IF(H39=B84,HLOOKUP($B$36,'DATA (HIDE)'!$A$98:$G$110,10,FALSE),HLOOKUP($B$36,'DATA (HIDE)'!$I$98:$O$110,10,FALSE))) -> 228.9197729 | I51: 10
A53: AgriInsurance Risk Ratio (AgriInsurance Coverage / Cost)
B54: Operating Costs | D54: =HLOOKUP($B$37,'DATA (HIDE)'!A114:P126,12,FALSE) -> 0.9731278093 | F54: =HLOOKUP($B$37,'DATA (HIDE)'!A130:P142,12,FALSE) -> 2.196318421 | G54: =IF(G37="<=4 years",HLOOKUP($B$36,'DATA (HIDE)'!A45:G57,12,FALSE),HLOOKUP($B$36,'DATA (HIDE)'!A63:G75,12,FALSE)) -> 1.005562452 | H54: =IF(G37="<=4 years",IF(H39=B84,HLOOKUP($B$36,'DATA (HIDE)'!$A$81:$G$93,12,FALSE),HLOOKUP($B$36,'DATA (HIDE)'!$I$81:$O$93,12,FALSE)),IF(H39=B84,HLOOKUP($B$36,'DATA (HIDE)'!$A$98:$G$110,12,FALSE),HLOOKUP($B$36,'DATA (HIDE)'!$I$98:$O$110,12,FALSE))) -> 0.6849975548 | I54: 0.12
B55: Total Costs | D55: =HLOOKUP($B$37,'DATA (HIDE)'!A114:P126,13,FALSE) -> 0.5376972537 | F55: =HLOOKUP($B$37,'DATA (HIDE)'!A130:P142,13,FALSE) -> 1.442912203 | G55: =IF(G37="<=4 years",HLOOKUP($B$36,'DATA (HIDE)'!A45:G57,13,FALSE),HLOOKUP($B$36,'DATA (HIDE)'!A63:G75,13,FALSE)) -> 0.5390660991 | H55: =IF(G37="<=4 years",IF(H39=B84,HLOOKUP($B$36,'DATA (HIDE)'!$A$81:$G$93,13,FALSE),HLOOKUP($B$36,'DATA (HIDE)'!$I$81:$O$93,13,FALSE)),IF(H39=B84,HLOOKUP($B$36,'DATA (HIDE)'!$A$98:$G$110,13,FALSE),HLOOKUP($B$36,'DATA (HIDE)'!$I$98:$O$110,13,FALSE))) -> 0.3672163365 | I55: 0.13
A78: Note: This budget is only a guide and is not intended as an in depth study of the cost of production of this industry. Interpretation and utilization of this information is the responsibility of the user.
B81: <=4 years | C81: Forage Region 1 | E81: Risk Area 1
B82: >4 years | C82: Forage Region 2 | E82: Risk Area 2
C83: Forage Region 3 | E83: Risk Area 3
B84: ='DATA (HIDE)'!A80 -> Low - $71/tonne | C84: Forage Region 4 | E84: Risk Area 4
B85: ='DATA (HIDE)'!I80 -> High - $118/tonne | C85: Forage Region 5 | E85: Risk Area 5
C86: Forage Region 6 | E86: Risk Area 6
B87: 70% Coverage | E87: Risk Area 7
B88: 80% Coverage | E88: Risk Area 8
E89: Risk Area 9
E90: Risk Area 10
E91: Risk Area 11
E92: Risk Area 12
E93: Risk Area 14
E94: Risk Area 15
E95: Risk Area 16

Sheet Custom Silage
A1: ="On-Farm Silage Harvest Cost Summary" -> On-Farm Silage Harvest Cost Summary
C3: Barley Silage | G3: Corn Silage | K3: Alfalfa-Grass Silage
D4: (as fed) | H4: (as fed) | L4: (as fed)
C5: $/acre | D5: $/ton | G5: $/acre | H5: $/ton | K5: $/acre | L5: $/ton
A6: A. Operating Costs
B7: Seed & Treatment | C7: ='Seed, Fertilizer & Chemical'!J5 -> 29.25 | G7: ='Seed, Fertilizer & Chemical'!J6 -> 96 | K7: -
B8: Nurse Crop Seed | C8: - | G8: - | K8: -
B9: Establishment (amortized) | C9: - | G9: - | K9: =SUM(-Summary!K51/Production!F19) -> 29.81982406
B10: Fertilizer | C10: ='Seed, Fertilizer & Chemical'!O28 -> 88.05035048 | G10: ='Seed, Fertilizer & Chemical'!O29 -> 160.242425 | K10: ='Seed, Fertilizer & Chemical'!O31 -> 79.08871195
B11: Herbicide/Insecticide | C11: ='Seed, Fertilizer & Chemical'!J45 -> 16 | G11: ='Seed, Fertilizer & Chemical'!J46 -> 16 | K11: ='Seed, Fertilizer & Chemical'!J48 -> 0
B12: Field Fuel Costs | C12: ='Op. Cost Input'!E14 -> 21.364 | G12: ='Op. Cost Input'!F14 -> 21.728 | K12: ='Op. Cost Input'!H14 -> 15.582
B13: Moving Fuel Costs | C13: ='Op. Cost Input'!E19 -> 3.579975 | G13: ='Op. Cost Input'!F19 -> 7.15995 | K13: ='Op. Cost Input'!H19 -> 3.0119523
B14: Packing Fuel Costs | C14: ='Op. Cost Input'!E23 -> 3.5 | G14: ='Op. Cost Input'!F23 -> 7 | K14: ='Op. Cost Input'!H23 -> 2.944666667
B15: Machinery Operating | C15: =SUM('Fixed Cost Input'!$D$53*'Op. Cost Input'!$E$4) -> 16.1 | G15: =SUM('Fixed Cost Input'!$D$53*'Op. Cost Input'!$E$4) -> 16.1 | K15: =SUM('Fixed Cost Input'!$D$53*'Op. Cost Input'!$E$4) -> 16.1
B16: Machinery Lease | C16: ='Fixed Cost Input'!$D$70 -> 4.8 | G16: ='Fixed Cost Input'!$D$70 -> 4.8 | K16: ='Fixed Cost Input'!$D$70 -> 4.8
B17: Crop Insurance | C17: ='Op. Cost Input'!E27 -> 18.12 | G17: ='Op. Cost Input'!F27 -> 28.54 | K17: ='Op. Cost Input'!H27 -> 19.74
B18: Miscellaneous | C18: ='Op. Cost Input'!E29 -> 7.5 | G18: ='Op. Cost Input'!F29 -> 8.5 | K18: ='Op. Cost Input'!H29 -> 4.5
B19: Land Taxes | C19: ='Op. Cost Input'!$E$6 -> 10 | G19: ='Op. Cost Input'!$E$6 -> 10 | K19: ='Op. Cost Input'!$E$6 -> 10
B20: Rental & Custom Costs | C20: ='Op. Cost Input'!E36 -> 0 | G20: ='Op. Cost Input'!F36 -> 0 | K20: ='Op. Cost Input'!H36 -> 0
B21: Interest on Operating | C21: =ROUND(SUM(C7:C19)/2*('Op. Cost Input'!$E$3),2) -> 9.82 | G21: =ROUND(SUM(G7:G19)/2*('Op. Cost Input'!$E$3),2) -> 16.92 | K21: =ROUND(SUM(K7:K19)/2*('Op. Cost Input'!$E$3),2) -> 8.35
B22: Total Operating | C22: =SUM(C7:C21) -> 228.0843255 | G22: =SUM(G7:G21) -> 392.990375 | K22: =SUM(K7:K21) -> 193.937155
A24: B. Fixed Costs
B25: Land Costs | C25: ='Fixed Cost Input'!D12 -> 80.40545057 | G25: ='Fixed Cost Input'!D12 -> 80.40545057 | K25: ='Fixed Cost Input'!D12 -> 80.40545057
B26: Machinery Costs | C26: ='Fixed Cost Input'!J14 -> 58.83187518 | G26: ='Fixed Cost Input'!J14 -> 58.83187518 | K26: ='Fixed Cost Input'!J14 -> 58.83187518
B27: Storage Costs | C27: ='Fixed Cost Input'!D27 -> 4.102769159 | G27: ='Fixed Cost Input'!D27 -> 4.102769159 | K27: ='Fixed Cost Input'!D27 -> 4.102769159
B28: Total Fixed | C28: =SUM(C25:C27) -> 143.3400949 | G28: =SUM(G25:G27) -> 143.3400949 | K28: =SUM(K25:K27) -> 143.3400949
B30: Total Operating & Fixed | C30: =+C22+C28 -> 371.4244204 | G30: =+G22+G28 -> 536.3304699 | K30: =+K22+K28 -> 337.2772499
A32: C. Labour | C32: ='Op. Cost Input'!E45 -> 41.364 | G32: ='Op. Cost Input'!F45 -> 61.857 | K32: ='Op. Cost Input'!H45 -> 24.489
B34: Cost of Standing Silage | C34: =SUM(D34*Production!$D$17) -> 273.2256011 | D34: =(((SUM(C7+C10+C11+C17+(C15*0.2)+(C16*0.2)+((C18-2.5)/2)+C19+C25)+(C12*0.4)+(C32*0.2)+ROUND(SUM(C7+C10+C11+C17+(C15*0.2)+(C16*0.2)*((C18-2.5)/2)+C19+(C12*0.4))/2*('Op. Cost Input'!$E$3),4))*1)/Production!$D$17) -> 36.43008014 | G34: =SUM(H34*Production!$E$17) -> 433.5596756 | H34: =(((SUM(G7+G10+G11+G17+(G15*0.2)+(G16*0.2)+((G18-3.5)/2)+G19+G25)+(G12*0.4)+(G32*0.2)+ROUND(SUM(G7+G10+G11+G17+(G15*0.2)+(G16*0.2)*((G18-3.5)/2)+G19+(G12*0.4))/2*('Op. Cost Input'!$E$3),4))*1)/Production!$E$17) -> 28.90397837 | K34: =SUM(L34*Production!$F$17) -> 228.3767366 | L34: =(((SUM(K9+K10+K11+K17+((K18-2.5)/2)+K19+K25)+(K12*0.05)+(K32*0.05)+ROUND(SUM(K9+K10+K11+K17+((K18-2.5)/2)+K19+(K12*0.05))/2*('Op. Cost Input'!$E$3),4))*1)/Production!$F$17) -> 36.19282672
A35: + | B35: On-Farm Harvest Cost | C35: =SUM(D35*Production!$D$17) -> 139.5628193 | D35: =SUM(D36-D34) -> 18.60837591 | G35: =SUM(H35*Production!$E$17) -> 164.6277943 | H35: =SUM(H36-H34) -> 10.97518629 | K35: =SUM(L35*Production!$F$17) -> 133.3895133 | L35: =SUM(L36-L34) -> 21.13938404
A36: = | B36: Total Production Costs | C36: =Summary!C36 -> 412.7884204 | D36: =SUM(C36/Production!$D$17) -> 55.03845605 | G36: =Summary!G36 -> 598.1874699 | H36: =SUM(G36/Production!$E$17) -> 39.87916466 | K36: =Summary!L36 -> 361.7662499 | L36: =SUM(K36/Production!$F$17) -> 57.33221076
A39: Custom Harvest Cost Comparison
C40: Barley Silage | G40: Corn Silage | K40: Alfalfa-Grass Silage
C41: Options ($/hour) | G41: Options ($/hour) | K41: Options ($/hour)
A42: Self Propelled Custom Harvest | C42: #1 | D42: #2 | E42: #3 | G42: #1 | H42: #2 | I42: #3 | K42: #1 | L42: #2 | M42: #3
B43: SP Forage Harvester (400-599HP) | C43: 360.27 | D43: - | E43: - | G43: 360.27 | H43: - | I43: - | K43: 360.27 | L43: - | M43: -
B44: SP Forage Harvester (600-799HP) | C44: - | D44: 433.78 | E44: - | G44: - | H44: 433.78 | I44: - | K44: - | L44: 433.78 | M44: -
B45: SP Forage Harvester (800-899HP) | C45: - | D45: - | E45: 495.75 | G45: - | H45: - | I45: 495.75 | K45: - | L45: - | M45: 495.75
B46: SP Corn Header (14-20FT) | C46: - | D46: - | E46: - | G46: 64.7 | H46: - | I46: - | K46: - | L46: - | M46: -
B47: SP Corn Header (21-30FT) | C47: - | D47: - | E47: - | H47: 94.56 | I47: 94.56 | K47: - | L47: - | M47: -
B48: SP Windrow Header (12-17FT) | C48: 23.89 | D48: 23.89 | E48: 23.89 | G48: - | H48: - | I48: - | K48: 23.89 | L48: 23.89 | M48: 23.89
B49: Tandem Truck | C49: 103.88 | D49: 103.88 | E49: 103.88 | G49: 103.88 | H49: 103.88 | I49: 103.88 | K49: 103.88 | L49: 103.88 | M49: 103.88
B50: Tandem Truck | C50: 103.88 | D50: 103.88 | E50: 103.88 | G50: 103.88 | H50: 103.88 | I50: 103.88 | K50: 103.88 | L50: 103.88 | M50: 103.88
B51: Tandem Truck | C51: - | D51: 103.88 | E51: 103.88 | G51: - | H51: 103.88 | I51: 103.88 | K51: - | L51: 103.88 | M51: 103.88
B52: Tandem Truck | C52: - | D52: - | E52: - | G52: - | H52: - | I52: 103.88 | K52: - | L52: - | M52: -
B53: 4WD Tractor (Packing) | C53: 185.38 | D53: 185.38 | E53: 185.38 | G53: 185.38 | H53: 185.38 | I53: 185.38 | K53: 185.38 | L53: 185.38 | M53: 185.38
A54: Total Custom Cost ($/hour) | C54: =SUM(C43:C53) -> 777.3 | D54: =SUM(D43:D53) -> 954.69 | E54: =SUM(E43:E53) -> 1016.66 | G54: =SUM(G43:G53) -> 818.11 | H54: =SUM(H43:H53) -> 1025.36 | I54: =SUM(I43:I53) -> 1191.21 | K54: =SUM(K43:K53) -> 777.3 | L54: =SUM(L43:L53) -> 954.69 | M54: =SUM(M43:M53) -> 1016.66
B56: Work Rate (acres/hour) | C56: 17 | D56: 19 | E56: 21 | G56: 9 | H56: 13 | I56: 15 | K56: 17 | L56: 19 | M56: 21
B57: Silage Yield (tons/acre) | C57: =Production!$D$17 -> 7.5 | D57: =Production!$D$17 -> 7.5 | E57: =Production!$D$17 -> 7.5 | G57: =Production!$E$17 -> 15 | H57: =Production!$E$17 -> 15 | I57: =Production!$E$17 -> 15 | K57: =Production!$F$17 -> 6.31 | L57: =Production!$F$17 -> 6.31 | M57: =Production!$F$17 -> 6.31
B58: Work Rate (tons/hour) | C58: =ROUND(C56*C57,0) -> 128 | D58: =ROUND(D56*D57,0) -> 143 | E58: =ROUND(E56*E57,0) -> 158 | G58: =ROUND(G56*G57,0) -> 135 | H58: =ROUND(H56*H57,0) -> 195 | I58: =ROUND(I56*I57,0) -> 225 | K58: =ROUND(K56*K57,0) -> 107 | L58: =ROUND(L56*L57,0) -> 120 | M58: =ROUND(M56*M57,0) -> 133
A59: Total Custom Harvest Cost ($/ton) | C59: =SUM(C54/C58) -> 6.07265625 | D59: =SUM(D54/D58) -> 6.676153846 | E59: =SUM(E54/E58) -> 6.434556962 | G59: =SUM(G54/G58) -> 6.060074074 | H59: =SUM(H54/H58) -> 5.25825641 | I59: =SUM(I54/I58) -> 5.294266667 | K59: =SUM(K54/K58) -> 7.264485981 | L59: =SUM(L54/L58) -> 7.95575 | M59: =SUM(M54/M58) -> 7.64406015
A60: Total Custom Harvest Cost ($/acre) | C60: =SUM(C59*Production!$D$17) -> 45.54492188 | D60: =SUM(D59*Production!$D$17) -> 50.07115385 | E60: =SUM(E59*Production!$D$17) -> 48.25917722 | G60: =SUM(G59*Production!$E$17) -> 90.90111111 | H60: =SUM(H59*Production!$E$17) -> 78.87384615 | I60: =SUM(I59*Production!$E$17) -> 79.414 | K60: =SUM(K59*Production!$F$17) -> 45.83890654 | L60: =SUM(L59*Production!$F$17) -> 50.2007825 | M60: =SUM(M59*Production!$F$17) -> 48.23401955
A62: Compared to On-Farm Cost
B63: Breakeven SP Custom Cost ($/hour) | C63: =$D$35*C58 -> 2381.872117 | D63: =$D$35*D58 -> 2660.997755 | E63: =$D$35*E58 -> 2940.123394 | G63: =$H$35*G58 -> 1481.650149 | H63: =$H$35*H58 -> 2140.161326 | I63: =$H$35*I58 -> 2469.416915 | K63: =$L$35*K58 -> 2261.914093 | L63: =$L$35*L58 -> 2536.726085 | M63: =$L$35*M58 -> 2811.538078
B64: Breakeven Custom Cost ($/ton) | C64: =$C$35/Production!$D$17 -> 18.60837591 | D64: =$C$35/Production!$D$17 -> 18.60837591 | E64: =$C$35/Production!$D$17 -> 18.60837591 | G64: =$G$35/Production!$E$17 -> 10.97518629 | H64: =$G$35/Production!$E$17 -> 10.97518629 | I64: =$G$35/Production!$E$17 -> 10.97518629 | K64: =$K$35/Production!$F$17 -> 21.13938404 | L64: =$K$35/Production!$F$17 -> 21.13938404 | M64: =$K$35/Production!$F$17 -> 21.13938404
B65: Cost Savings with SP Custom ($/acre) | C65: =SUM($C$35-C60) -> 94.01789747 | D65: =SUM($C$35-D60) -> 89.4916655 | E65: =SUM($C$35-E60) -> 91.30364213 | G65: =SUM($G$35-G60) -> 73.72668323 | H65: =SUM($G$35-H60) -> 85.75394819 | I65: =SUM($G$35-I60) -> 85.21379434 | K65: =SUM($K$35-K60) -> 87.55060677 | L65: =SUM($K$35-L60) -> 83.18873081 | M65: =SUM($K$35-M60) -> 85.15549376
C67: Barley Silage | G67: Corn Silage | K67: Alfalfa-Grass Silage
C68: Option ($/hour) | G68: Option ($/hour) | K68: Option ($/hour)
A69: Pull Type Custom Harvest | C69: #1 | D69: #2 | G69: #1 | H69: #2 | K69: #1 | L69: #2
B70: PT Forage Harvester (150-250 HP) | C70: 149.31 | D70: - | G70: 149.31 | H70: - | K70: 149.31 | L70: -
B71: PT Forage Harvester (up tp 300 HP) | C71: - | D71: 169.22 | G71: - | H71: 169.22 | K71: - | L71: 169.22
B72: Tractor FWA (160-224HP) | C72: 123 | D72: - | G72: 123 | H72: - | K72: 123 | L72: -
B73: Tractor FWA (225+HP) | C73: - | D73: 165.31 | G73: - | H73: 165.31 | K73: - | L73: 165.31
B74: PT Forage Header - 2 Row | C74: - | D74: - | G74: 27.87 | H74: - | K74: - | L74: -
B75: PT Forage Header - 3 Row | C75: - | D75: - | H75: 55.74 | K75: - | L75: -
B76: PT Pickup Header (70-79inch) | C76: 15.93 | D76: - | G76: - | H76: - | K76: 15.93 | L76: -
B77: PT Pickup Header (80-96inch) | C77: - | D77: 27.87 | G77: - | H77: - | K77: - | L77: 27.87
B78: Tandem Truck | C78: 103.88 | D78: 103.88 | G78: 103.88 | H78: 103.88 | K78: 103.88 | L78: 103.88
B79: Tandem Truck | C79: - | D79: - | G79: - | H79: - | K79: - | L79: -
B80: 4WD Tractor (Packing) | C80: 185.38 | D80: 185.38 | G80: 185.38 | H80: 185.38 | K80: 185.38 | L80: 185.38
A81: Total Custom Cost ($/hour) | C81: =SUM(C70:C80) -> 577.5 | D81: =SUM(D70:D80) -> 651.66 | G81: =SUM(G70:G80) -> 589.44 | H81: =SUM(H70:H80) -> 679.53 | K81: =SUM(K70:K80) -> 577.5 | L81: =SUM(L70:L80) -> 651.66
B83: Work Rate (acres/hour) | C83: 3 | D83: 4 | G83: 2 | H83: 4 | K83: 3 | L83: 4
B84: Silage Yield (tons/acre) | C84: =Production!$D$17 -> 7.5 | D84: =Production!$D$17 -> 7.5 | G84: =Production!$E$17 -> 15 | H84: =Production!$E$17 -> 15 | K84: =Production!$F$17 -> 6.31 | L84: =Production!$F$17 -> 6.31
B85: Work Rate (tons/hour) | C85: =ROUND(C83*C84,0) -> 23 | D85: =ROUND(D83*D84,0) -> 30 | G85: =ROUND(G83*G84,0) -> 30 | H85: =ROUND(H83*H84,0) -> 60 | K85: =ROUND(K83*K84,0) -> 19 | L85: =ROUND(L83*L84,0) -> 25
A86: Total Custom Harvest Cost ($/ton) | C86: =SUM(C81/C85) -> 25.10869565 | D86: =SUM(D81/D85) -> 21.722 | G86: =SUM(G81/G85) -> 19.648 | H86: =SUM(H81/H85) -> 11.3255 | K86: =SUM(K81/K85) -> 30.39473684 | L86: =SUM(L81/L85) -> 26.0664
A87: Total Custom Harvest Cost ($/acre) | C87: =SUM(C86*Production!$D$17) -> 188.3152174 | D87: =SUM(D86*Production!$D$17) -> 162.915 | G87: =SUM(G86*Production!$E$17) -> 294.72 | H87: =SUM(H86*Production!$E$17) -> 169.8825 | K87: =SUM(K86*Production!$F$17) -> 191.7907895 | L87: =SUM(L86*Production!$F$17) -> 164.478984
A89: Compared to On-Farm Cost
B90: Breakeven PT Custom Cost ($/hour) | C90: =$D$35*C85 -> 427.992646 | D90: =$D$35*D85 -> 558.2512774 | G90: =$H$35*G85 -> 329.2555887 | H90: =$H$35*H85 -> 658.5111774 | K90: =$L$35*K85 -> 401.6482968 | L90: =$L$35*L85 -> 528.4846011
B91: Breakeven Custom Cost ($/ton) | C91: =$C$35/Production!$D$17 -> 18.60837591 | D91: =$C$35/Production!$D$17 -> 18.60837591 | G91: =$G$35/Production!$E$17 -> 10.97518629 | H91: =$G$35/Production!$E$17 -> 10.97518629 | K91: =$K$35/Production!$F$17 -> 21.13938404 | L91: =$K$35/Production!$F$17 -> 21.13938404
B92: Cost Savings with PT Custom ($/acre) | C92: =SUM($C$35-C87) -> -48.75239805 | D92: =SUM($C$35-D87) -> -23.35218066 | G92: =SUM($G$35-G87) -> -130.0922057 | H92: =SUM($G$35-H87) -> -5.254705657 | K92: =SUM($K$35-K87) -> -58.40127616 | L92: =SUM($K$35-L87) -> -31.08947069
A94: Custom Harvest Cost Analysis
B96: Custom Silage Harvest Cost ($/Ton) - calculated from Work Rate and Custom Rate Per Hour
B97: Work
B98: Rate | C98: Custom Rate ($/hour)
B99: (tons/hr) | C99: 500 | D99: =SUM($C$99+C110) -> 750 | E99: =SUM(D99+$C$110) -> 1000 | G99: =SUM(E99+$C$110) -> 1250 | H99: =SUM(G99+$C$110) -> 1500 | I99: =SUM(H99+$C$110) -> 1750
B100: 25 | C100: =SUM($C$99/B100) -> 20 | D100: =SUM($D$99/B100) -> 30 | E100: =SUM($E$99/B100) -> 40 | G100: =SUM($G$99/B100) -> 50 | H100: =SUM($H$99/B100) -> 60 | I100: =SUM($I$99/B100) -> 70
B101: =SUM(B100+C109) -> 50 | C101: 10 | D101: 15 | E101: 20 | G101: 25 | H101: 30 | I101: 35
B102: =SUM(B101+$C$109) -> 75 | C102: 6.666666667 | D102: 10 | E102: 13.33333333 | G102: 16.66666667 | H102: 20 | I102: 23.33333333
B103: 100 | C103: 5 | D103: 7.5 | E103: 10 | G103: 12.5 | H103: 15 | I103: 17.5
B104: 125 | C104: 4 | D104: 6 | E104: 8 | G104: 10 | H104: 12 | I104: 14
B105: 150 | C105: 3.333333333 | D105: 5 | E105: 6.666666667 | G105: 8.333333333 | H105: 10 | I105: 11.66666667
B106: 175 | C106: 2.857142857 | D106: 4.285714286 | E106: 5.714285714 | G106: 7.142857143 | H106: 8.571428571 | I106: 10
B107: 200 | C107: 2.5 | D107: 3.75 | E107: 5 | G107: 6.25 | H107: 7.5 | I107: 8.75
B109: Work Rate (tons/hr) increment | C109: 25
B110: Custom Rate ($/hr) increment | C110: 250
B113: Custom Silage Harvest Rate ($/Hour) - Calculated from Work Rate and Custom Rate Per Ton
B114: Work
B115: Rate | C115: Custom Rate ($/Ton)
B116: (tons/hr) | C116: 6 | D116: =SUM($C$116+C127) -> 7 | E116: =D116+$C$127 -> 8 | G116: =E116+$C$127 -> 9 | H116: =G116+$C$127 -> 10 | I116: =H116+$C$127 -> 11
B117: 10 | C117: =SUM(C116*$B$117) -> 60 | D117: =SUM(D116*$B$117) -> 70 | E117: =SUM(E116*$B$117) -> 80 | G117: =SUM(G116*$B$117) -> 90 | H117: =SUM(H116*$B$117) -> 100 | I117: =SUM(I116*$B$117) -> 110
B118: =SUM(B117+C126) -> 35 | C118: =SUM(C116*$B$118) -> 210 | D118: =SUM(D116*$B$118) -> 245 | E118: =SUM(E116*$B$118) -> 280 | G118: =SUM(G116*$B$118) -> 315 | H118: =SUM(H116*$B$118) -> 350 | I118: =SUM(I116*$B$118) -> 385
B119: =SUM(B118+$C$109) -> 60 | C119: =SUM(C116*$B$119) -> 360 | D119: =SUM(D116*$B$119) -> 420 | E119: =SUM(E116*$B$119) -> 480 | G119: =SUM(G116*$B$119) -> 540 | H119: =SUM(H116*$B$119) -> 600 | I119: =SUM(I116*$B$119) -> 660
B120: 85 | C120: =SUM(C116*$B$120) -> 510 | D120: =SUM(D116*$B$120) -> 595 | E120: =SUM(E116*$B$120) -> 680 | G120: =SUM(G116*$B$120) -> 765 | H120: =SUM(H116*$B$120) -> 850 | I120: =SUM(I116*$B$120) -> 935
B121: 110 | C121: =SUM(C116*$B$121) -> 660 | D121: =SUM(D116*$B$121) -> 770 | E121: =SUM(E116*$B$121) -> 880 | G121: =SUM(G116*$B$121) -> 990 | H121: =SUM(H116*$B$121) -> 1100 | I121: =SUM(I116*$B$121) -> 1210
B122: 135 | C122: =SUM(C116*$B$122) -> 810 | D122: =SUM(D116*$B$122) -> 945 | E122: =SUM(E116*$B$122) -> 1080 | G122: =SUM(G116*$B$122) -> 1215 | H122: =SUM(H116*$B$122) -> 1350 | I122: =SUM(I116*$B$122) -> 1485
B123: 160 | C123: =SUM(C116*$B$123) -> 960 | D123: =SUM(D116*$B$123) -> 1120 | E123: =SUM(E116*$B$123) -> 1280 | G123: =SUM(G116*$B$123) -> 1440 | H123: =SUM(H116*$B$123) -> 1600 | I123: =SUM(I116*$B$123) -> 1760
B124: 185 | C124: =SUM(C116*$B$124) -> 1110 | D124: =SUM(D116*$B$124) -> 1295 | E124: =SUM(E116*$B$124) -> 1480 | G124: =SUM(G116*$B$124) -> 1665 | H124: =SUM(H116*$B$124) -> 1850 | I124: =SUM(I116*$B$124) -> 2035
B126: Work Rate (tons/hr) increment | C126: 25
B127: Custom Rate ($/ton) increment | C127: 1
B130: Silage Harvest (Total Annual Hours) - Calculated from Work Rate and Silage Acres
B131: Work
B132: Rate | C132: Silage Acres
B133: (acres/hr) | C133: 200 | D133: =SUM($C$133+C143) -> 225 | E133: =SUM(D133+$C$143) -> 250 | G133: =SUM(E133+$C$143) -> 275 | H133: =SUM(G133+$C$143) -> 300 | I133: =SUM(H133+$C$143) -> 325
B134: 1 | C134: =SUM($C$133/B134) -> 200 | D134: =SUM($D$133/B134) -> 225 | E134: =SUM($E$133/B134) -> 250 | G134: =SUM($G$133/B134) -> 275 | H134: =SUM($H$133/B134) -> 300 | I134: =SUM($I$133/B134) -> 325
B135: =SUM(B134+C142) -> 3 | C135: 66.66666667 | D135: 75 | E135: 83.33333333 | G135: 91.66666667 | H135: 100 | I135: 108.3333333
B136: =SUM(B135+$C$142) -> 5 | C136: 40 | D136: 45 | E136: 50 | G136: 55 | H136: 60 | I136: 65
B137: 7 | C137: 28.57142857 | D137: 32.14285714 | E137: 35.71428571 | G137: 39.28571429 | H137: 42.85714286 | I137: 46.42857143
B138: 9 | C138: 22.22222222 | D138: 25 | E138: 27.77777778 | G138: 30.55555556 | H138: 33.33333333 | I138: 36.11111111
B139: 11 | C139: 18.18181818 | D139: 20.45454545 | E139: 22.72727273 | G139: 25 | H139: 27.27272727 | I139: 29.54545455
B140: 13 | C140: 15.38461538 | D140: 17.30769231 | E140: 19.23076923 | G140: 21.15384615 | H140: 23.07692308 | I140: 25
B141: 15 | C141: 13.33333333 | D141: 15 | E141: 16.66666667 | G141: 18.33333333 | H141: 20 | I141: 21.66666667
B142: Work Rate (tons/hr) increment | C142: 2
B143: Silage Acre increment | C143: 25
B146: Silage Harvest (Total Annual Acres) - Calculated from Work Rate and Silage Harvest Hours
B147: Work
B148: Rate | C148: Silage Harvest (Annual Hours)
B149: (acres/hr) | C149: 100 | D149: =SUM($C$149+C159) -> 150 | E149: =SUM(D149+$C$159) -> 200 | G149: =SUM(E149+$C$159) -> 250 | H149: =SUM(G149+$C$159) -> 300 | I149: =SUM(H149+$C$159) -> 350
B150: 2 | C150: =SUM($C$149*B150) -> 200 | D150: =SUM($D$149*B150) -> 300 | E150: =SUM($E$149*B150) -> 400 | G150: =SUM($G$149*B150) -> 500 | H150: =SUM($H$149*B150) -> 600 | I150: =SUM($I$149*B150) -> 700
B151: =SUM(B150+C158) -> 4 | C151: 400 | D151: 600 | E151: 800 | G151: 1000 | H151: 1200 | I151: 1400
B152: =SUM(B151+$C$142) -> 6 | C152: 600 | D152: 900 | E152: 1200 | G152: 1500 | H152: 1800 | I152: 2100
B153: 8 | C153: 800 | D153: 1200 | E153: 1600 | G153: 2000 | H153: 2400 | I153: 2800
B154: 10 | C154: 1000 | D154: 1500 | E154: 2000 | G154: 2500 | H154: 3000 | I154: 3500
B155: 12 | C155: 1200 | D155: 1800 | E155: 2400 | G155: 3000 | H155: 3600 | I155: 4200
B156: 14 | C156: 1400 | D156: 2100 | E156: 2800 | G156: 3500 | H156: 4200 | I156: 4900
B157: 16 | C157: 1600 | D157: 2400 | E157: 3200 | G157: 4000 | H157: 4800 | I157: 5600
B158: Work Rate (tons/hr) increment | C158: 2
B159: Silage Annual Hours increment | C159: 50

Sheet Production
B1: Estimated Yield of Silage - Wet Tons per Acre 1 | L1: Dry Hay Equivalent | Q1: =1-(D47/100) -> 0.874 | R1: =1-(F31/100) -> 0.432 | U1: =1-(D31/100) -> 0.368 | V1: 14.2 | X1: 50
L2: DM | M2: 12.6 | P2: =D47 -> 12.6 | Q2: DM | R2: wet quivalent | S2: wet quivalent | U2: DM | V2: wet quivalent | X2: wet quivalent
D3: Barley | E3: Corn | F3: Alfalfa-Grass | L3: Alfalfa-Grass | M3: Alfalfa-Grass | P3: Alfalfa-Grass | Q3: Alfalfa-Grass | R3: 100% - DM | S3: 0.12 | T3: =" +100%" -> +100% | U3: Barley | V3: -0.12 | W3: =" +100%" -> +100% | X3: 0
C4: Years | D4: tons/acre | E4: tons/acre | F4: tons/acre | L4: tons/acre | M4: tons/acre | P4: COP | Q4: tons/acre | U4: tons/acre
C5: 1 | D5: 7.5 | E5: 15 | F5: 4.08 | G5: (establishment year) | K5: 1 | L5: =IF(F5>0,SUM(1-($F$31/100))*F5,"") -> 1.76256 | M5: =IF(F5>0,SUM(1+($M$2/100))*L5,"") -> 1.98464256 | P5: 1.8 | Q5: =IF(P5>0,SUM(1-($D$47/100))*P5,"") -> 1.5732 | R5: =IF(Q5="","",Q5/(1-($F$31/100))) -> 3.641666667 | S5: =IF(Q5="","",ROUND((Q5+(Q5*$S$3))/(1-($F$31/100)),2)) -> 4.08 | U5: =IF(D5>0,SUM(1-($D$31/100))*D5,"") -> 2.76 | V5: =IF(U5="","",ROUND((U5+(U5*$V$3))/(1-(V1/100)),2)) -> 2.83 | X5: =IF(U5="","",ROUND((U5+(U5*$X$3))/(1-(X1/100)),2)) -> 5.52
C6: 2 | D6: - | E6: - | F6: 7.25 | K6: 2 | L6: 3.132 | M6: =IF(F6>0,SUM(1+($M$2/100))*L6,"") -> 3.526632 | P6: 3.2 | Q6: 2.7968 | R6: 6.474074074 | S6: 7.25
C7: 3 | D7: - | E7: - | F7: 7.25 | K7: 3 | L7: 3.132 | M7: 3.526632 | P7: 3.2 | Q7: 2.7968 | R7: 6.474074074 | S7: 7.25 | U7: **copy to dry hay greenfeed | X7: **copy to wrapped bale hay greenfeed
C8: 4 | D8: - | E8: - | F8: 6.8 | K8: 4 | L8: 2.9376 | M8: 3.3077376 | P8: 3 | Q8: 2.622 | R8: 6.069444444 | S8: 6.8
C9: 5 | D9: - | E9: - | F9: 6.34 | K9: 5 | L9: 2.73888 | M9: 3.08397888 | P9: 2.8 | Q9: 2.4472 | R9: 5.664814815 | S9: 6.34
C10: 6 | D10: - | E10: - | F10: 5.89 | K10: 6 | L10: 2.54448 | M10: 2.86508448 | P10: 2.6 | Q10: 2.2724 | R10: 5.260185185 | S10: 5.89
C11: 7 | D11: - | E11: - | F11: 5.44 | K11: 7 | L11: 2.35008 | M11: 2.64619008 | P11: 2.4 | Q11: 2.0976 | R11: 4.855555556 | S11: 5.44
C12: 8 | D12: - | E12: - | F12: 5.21 | K12: 8 | L12: 2.25072 | M12: 2.53431072 | P12: 2.3 | Q12: 2.0102 | R12: 4.653240741 | S12: 5.21 | U12: **all based from | W12: =D5 -> 7.5 | X12: wet tons barley silage
C13: 9 | D13: - | E13: - | K13: 9 | Q13: =IF(O13>0,SUM(1-($D$47/100))*O13,"") -> 
C14: 10 | D14: - | E14: - | K14: 10 | Q14: =IF(O14>0,SUM(1-($D$47/100))*O14,"") -> 
Q15: =IF(G15>0,SUM(1-($E$39/100))*G15,"") -> 
B16: Total Yield | D16: - | E16: - | F16: =SUM(F6:F14) -> 44.18 | L16: =SUM(L6:L14) -> 19.08576 | M16: =SUM(M6:M14) -> 21.49056576 | P16: =SUM(P6:P14) -> 19.5 | S16: =SUM(S6:S14) -> 44.18
B17: Average Yield (tons/acre) | D17: =D5 -> 7.5 | E17: =E5 -> 15 | F17: =ROUND(F16/COUNT(F6:F14),2) -> 6.31 | L17: =ROUND(L16/COUNT(L6:L14),2) -> 2.73 | M17: =ROUND(M16/COUNT(M6:M14),2) -> 3.07 | P17: =ROUND(P16/COUNT(P6:P14),2) -> 2.79 | S17: =ROUND(S16/COUNT(S6:S14),2) -> 6.31
B18: Avg. Dry Matter Yield (tons/acre) | D18: =SUM(D17*(1-(D31/100))) -> 2.76 | E18: =SUM(E17*(1-(E31/100))) -> 5.25 | F18: =SUM(F17*(1-(F31/100))) -> 2.72592
B19: Years Production | D19: =COUNT(D5:D14) -> 1 | E19: =COUNT(E5:E14) -> 1 | F19: =COUNT(F6:F14) -> 7 | L19: =COUNT(L6:L14) -> 7 | M19: =COUNT(M6:M14) -> 7 | P19: =COUNT(P6:P14) -> 7 | S19: =COUNT(S6:S14) -> 7
B20: Years Rotation | D20: =COUNT(D5:D14) -> 1 | E20: =COUNT(E5:E14) -> 1 | F20: =COUNT(F5:F14) -> 8 | L20: =COUNT(L5:L14) -> 8 | M20: =COUNT(M5:M14) -> 8 | P20: =COUNT(P5:P14) -> 8 | S20: =COUNT(S5:S14) -> 8
A22: 1. Users are reminded to adjust fertilizer rates when making changes to forage yields. | K22: *** Hide Columns ****
B23: AgriInsurance - Individual Coverage | D23: 1 | E23: 1 | F23: 1
B24: Estimated Storage Loss | D24: 0.05
B25: Forage yields are based on Forage Region #6 and Risk Area #14 average yields with an IC of 1.25.
B26: Silage Forage Analysis
D28: =D3 -> Barley | E28: =E3 -> Corn | F28: =F3 -> Alfalfa-Grass
B29: Crude protein DM (CP)% | D29: 11.1 | E29: 8.7 | F29: 14.6
B30: Energy DM (TDN) % | D30: 62.8 | E30: 64.6 | F30: 60.4
B31: As fed moisture % | D31: 63.2 | E31: 65 | F31: 56.8
B34: Silage Price Formula
D36: =D28 -> Barley | E36: =E28 -> Corn | F36: =F28 -> Alfalfa-Grass | K36: https://www.progressiveforage.com/forage-types/silage/pricing-corn-silage
B37: Grain price (per bushel) | D37: 6 | E37: 6.5 | F37: - | K37: Seven to nine times the price of shelled corn – example ($5 x eight bushels = $40 per ton)
B38: Dry Hay price ($ per ton) | D38: - | E38: - | F38: 120 | K38: One-third the price of baled hay – example ($150 per ton divided by 3 = $50 per ton)
B39: Silage Price Factor | C39: x | D39: 10 | E39: 8 | F39: =1/((1-(D47/100))*(D46/100)/(F30/100)/(1-(F31/100))) -> 0.4975743707 | K39: Cost per acre + return to grower – example ($600 per acre ÷ 20 tons per acre plus 10 percent = $33 per ton)
C40: Silage ($ per wet ton) | D40: =SUM(D37*D39) -> 60 | E40: =SUM(E37*E39) -> 52 | F40: =SUM(F38*F39) -> 59.70892449
B43: Forage Value Comparison (Feed Analysis)
D44: Alfalfa/Grass Hay | E44: Alfalfa Hay | F44: Greenfeed
B45: Crude Protein feed analysis % | D45: 14 | E45: 18.2 | F45: 9.9
B46: TDN feed analysis % | D46: 60 | E46: 61.5 | F46: 58.4
B47: Moisture content % | D47: 12.6 | E47: 12.1 | F47: 14.2
B50: Comparable Forage Analysis
D51: Alfalfa Hay | E51: Alfalfa-Grass Hay | F51: Greenfeed Hay | G51: Alfalfa Baled Silage | H51: Alfalfa-Grass Baled Silage | I51: Greenfeed Baled Silage
B52: Total Production Cost ($/acre) | D52: 414.64 | E52: 358.15 | F52: 400.23 | G52: 518.33 | H52: 433.41 | I52: 464.42
B53: Average Yield (tons/acre) | D53: 3.5 | E53: 2.79 | F53: 2.83 | G53: 6.89 | H53: 5.45 | I53: 5.52
B54: As fed moisture % | D54: 12.1 | E54: 12.6 | F54: 14.2 | G54: 50 | H54: 50 | I54: 50
B55: Avg. Dry Matter Yield (tons/acre) | D55: =ROUND(D53*(1-(D54/100)),2) -> 3.08 | E55: 2.44 | F55: 2.43 | G55: 3.45 | H55: 2.73 | I55: 2.76
B56: DM Cost ($/ton) | D56: =D52/D55 -> 134.6233766 | E56: 146.7827869 | F56: 164.7037037 | G56: 150.2405797 | H56: 158.7582418 | I56: 168.2681159
B57: As Fed Cost ($/ton) | D57: =D52/D53 -> 118.4685714 | E57: 128.3691756 | F57: 141.4240283 | G57: 75.22931785 | H57: 79.52477064 | I57: 84.13405797
B58: Crude protein DM (CP)% | D58: 18.2 | E58: 14 | F58: 9.9 | G58: 18.2 | H58: 14.6 | I58: 10.6
B59: Energy DM (TDN) % | D59: 61.5 | E59: 60 | F59: 58.4 | G59: 62.5 | H59: 60.4 | I59: 60.4
B60: Estimated Storage Loss | D60: 0.2 | E60: 0.2 | F60: 0.2 | G60: 0.05 | H60: 0.05 | I60: 0.05
B61: TDN Cost ($/lb. DM) | D61: =D56/(2000*(D59/100)) -> 0.1094498997 | E61: 0.1223189891 | F61: 0.141013445 | G61: 0.1201924638 | H61: 0.1314223856 | I61: 0.139294798
B62: CP Cost ($/lb. DM) | D62: =D56/(2000*(D58/100)) -> 0.3698444413 | E62: 0.5242242389 | F62: 0.8318368874 | G62: 0.4127488454 | H62: 0.5436926088 | I62: 0.793717528
B63: TDN Cost ($/lb. DM) w/storage loss | D63: =D56/(2000*(1-D60)*(D59/100)) -> 0.1368123746 | E63: 0.1528987363 | F63: 0.1762668062 | G63: 0.1265183829 | H63: 0.1383393532 | I63: 0.1466261031
B64: CP Cost ($/lb. DM) w/storage loss | D64: =D56/(2000*(1-D60)*(D58/100)) -> 0.4623055516 | E64: 0.6552802986 | F64: 1.039796109 | G64: 0.4344724688 | H64: 0.5723080092 | I64: 0.8354921348

Sheet Seed, Fertilizer & Chemical
A1: Seed & Treatment
D2: Seeding Rate | G2: Price | J2: Cost
A3: Crop | D3: per Acre | G3: per Unit | J3: per Acre
A4: Cereal Silage
B5: Barley | D5: 2.25 | E5: bu | G5: 13 | H5: /bu | J5: =ROUND(D5*G5,2) -> 29.25
B6: Corn | D6: 32000 | E6: plants | G6: 0.003 | H6: /plant | J6: =ROUND(D6*G6,2) -> 96
A7: Alfalfa-Grass Silage
B8: Alfalfa-grass | D8: 10 | E8: lb. | G8: 3.6 | H8: /lb. | J8: =ROUND(D8*G8,2) -> 36
B9: Oat nurse crop (silage) | D9: 1.25 | E9: bu | G9: 12 | H9: /bu | J9: =ROUND(D9*G9,2) -> 15
A13: Fertilizer 1
D14: Bulk Price | G14: Actual Nutrient | J14: Nitrogen | M14: Sulphur
B15: Fertilizer Type | D15: $/tonne | G15: $/lb. | J15: Usage | M15: Usage
B16: Nitrogen: (urea) 46-0-0 | D16: 825 | G16: =SUM(D16/(2204.5855*0.46)) -> 0.8135217531 | J16: 1 | M16: -
B17: Nitrogen: (NH3) 82-0-0 | D17: 1300 | G17: =SUM(D17/(2204.5855*0.82)) -> 0.7191219636 | J17: 0 | M17: -
B18: Nitrogen: (liquid) 28-0-0 | D18: 500 | G18: =SUM(D18/(2204.5855*0.28)) -> 0.8100000139 | J18: 0 | M18: -
B19: Phosphorus: 11-52-0 | D19: 1075 | G19: =SUM((D19-(G16*(0.11*2204.5855)))/(2204.5855*0.52)) -> 0.7656396453 | J19: - | M19: -
B20: Potash: 0-0-60 | D20: 625 | G20: =SUM(D20/(2204.5855*0.6)) -> 0.4725000081 | J20: - | M20: -
B21: Sulphur: 20.5-0-0-24 | D21: 600 | G21: =SUM((D21-(G16*(0.205*2204.5855)))/(2204.5855*0.24)) -> 0.4391168554 | J21: - | M21: 1
B22: MES S15: 13-33-0-15 | D22: 1000 | G22: =SUM((D22-(G16*(0.13*2204.5855))-(G19*(0.33*2204.5855)))/(2204.5855*0.15)) -> 0.6345406464 | H22: 0 | J22: - | M22: 0
S23: ***HIDE***
C24: Amount of Actual Pounds of Elements Applied Per Acre | T24: 82-0-0 | X24: 28-0-0 | AD24: 46-0-0 | AH24: 11-52-0 | AK24: 0-0-60 | AN24: 20.5-0-0-24 | AQ24: 13-33-0-15
C25: Nitrogen | F25: Phosphorus | I25: Potash | L25: Sulphur | O25: Total | S25: preseed | T25: preseed | U25: preseed | V25: preseed | W25: suppl | X25: suppl | Y25: suppl | Z25: suppl | AA25: blend | AB25: blend | AC25: blend | AD25: blend | AE25: blend | AF25: blend | AG25: blend | AH25: blend | AI25: blend | AJ25: blend | AK25: blend | AL25: blend | AM25: blend | AN25: blend | AO25: blend | AP25: blend | AQ25: blend | AR25: blend | AS25: blend | AT25: N phos
A26: Crop | C26: lbs. | D26: $/acre | F26: lbs. | G26: $/acre | I26: lbs. | J26: $/acre | L26: lbs. | M26: $/acre | O26: $/acre | S26: N actual | T26: N lbs | U26: N MT | V26: N cost | W26: N actual | X26: N lbs | Y26: N MT | Z26: N cost | AA26: N phos | AB26: N sul1 | AC26: N sul2 | AD26: N urea | AE26: N lbs | AF26: N MT | AG26: N cost | AH26: phos lbs | AI26: phos MT | AJ26: phos cost | AK26: potash | AL26: pot MT | AM26: pot cost | AN26: sul 1 lbs | AO26: sul 1 MT | AP26: sul 1 cost | AQ26: sul 2 lbs | AR26: sul 2 MT | AS26: sul 2 cost | AT26: lbs
A27: Cereal Silage | R27: OLD | S27: =SUM(C27*$J$17) -> 0 | T27: =MAXA(0,(S27)/(0.82)) -> 0 | U27: =(T27)/2204.6 -> 0 | V27: =SUM(U27*$D$17) -> 0 | W27: =SUM(C27*$J$18) -> 0 | X27: =MAXA(0,(W27)/(0.28)) -> 0 | Y27: =(X27)/2204.6 -> 0 | Z27: =SUM(Y27*$D$18) -> 0 | AA27: =SUM(AH27*0.11) -> 0 | AB27: =SUM(AN27*0.205) -> 0 | AC27: =SUM(AQ27*0.13) -> 0 | AD27: =SUM(C27-(AA27+AB27+AC27+W27+S27)) -> 0 | AE27: =MAXA(0,(AD27)/(0.46)) -> 0 | AF27: =(AE27)/2204.6 -> 0 | AG27: =SUM(AF27*$D$16) -> 0 | AH27: =MAXA(0,(F27-(AQ27*0.33))/0.52) -> 0 | AI27: =(AH27)/2204.6 -> 0 | AJ27: =SUM(AI27*$D$19) -> 0 | AK27: =SUM(I27/0.6) -> 0 | AL27: =(AK27)/2204.6 -> 0 | AM27: =SUM(AL27*$D$20) -> 0 | AN27: =MAXA(0,SUM(L27*$M$21)/0.24) -> 0 | AO27: =(AN27)/2204.6 -> 0 | AP27: =SUM(AO27*$D$21) -> 0 | AQ27: =MAXA(0,SUM(L27*$M$22)/0.15) -> 0 | AR27: =(AQ27)/2204.6 -> 0 | AS27: =SUM(AR27*$D$22) -> 0
B28: Barley | C28: 80 | D28: =IF(SUM($J$16:$J$18)<>100%,"ERROR",SUM(V28+Z28+AG28)) -> 59.91861195 | F28: 30 | G28: =AJ28 -> 28.13173853 | I28: 0 | J28: =AM28 -> 0 | L28: 0 | M28: =IF(SUM($M$21:$M$22)<>100%,"ERROR",AP28+AS28) -> 0 | O28: =D28+G28+J28+M28 -> 88.05035048 | R28: 50.98543733 | S28: =SUM(C28*$J$17) -> 0 | T28: =MAXA(0,(S28)/(0.82)) -> 0 | U28: =(T28)/2204.6 -> 0 | V28: =SUM(U28*$D$17) -> 0 | W28: =SUM(C28*$J$18) -> 0 | X28: =MAXA(0,(W28)/(0.28)) -> 0 | Y28: =(X28)/2204.6 -> 0 | Z28: =SUM(Y28*$D$18) -> 0 | AA28: =SUM(AH28*0.11) -> 6.346153846 | AB28: =SUM(AN28*0.205) -> 0 | AC28: =SUM(AQ28*0.13) -> 0 | AD28: =SUM(C28-(AA28+AB28+AC28+W28+S28)) -> 73.65384615 | AE28: =MAXA(0,(AD28)/(0.46)) -> 160.1170569 | AF28: =(AE28)/2204.6 -> 0.07262862055 | AG28: =SUM(AF28*$D$16) -> 59.91861195 | AH28: =MAXA(0,(F28-(AQ28*0.33))/0.52) -> 57.69230769 | AI28: =(AH28)/2204.6 -> 0.0261690591 | AJ28: =SUM(AI28*$D$19) -> 28.13173853 | AK28: =SUM(I28/0.6) -> 0 | AL28: =(AK28)/2204.6 -> 0 | AM28: =SUM(AL28*$D$20) -> 0 | AN28: =MAXA(0,SUM(L28*$M$21)/0.24) -> 0 | AO28: =(AN28)/2204.6 -> 0 | AP28: =SUM(AO28*$D$21) -> 0 | AQ28: =MAXA(0,SUM(L28*$M$22)/0.15) -> 0 | AR28: =(AQ28)/2204.6 -> 0 | AS28: =SUM(AR28*$D$22) -> 0
B29: Corn | C29: 130 | D29: =IF(SUM($J$16:$J$18)<>100%,"ERROR",SUM(V29+Z29+AG29)) -> 90.20384597 | F29: 50 | G29: =AJ29 -> 46.88623089 | I29: 25 | J29: =AM29 -> 11.81242251 | L29: 10 | M29: =IF(SUM($M$21:$M$22)<>100%,"ERROR",AP29+AS29) -> 11.33992561 | O29: =D29+G29+J29+M29 -> 160.242425 | R29: 95.76208233 | S29: 0 | T29: 0 | U29: 0 | V29: 0 | W29: 0 | X29: 0 | Y29: 0 | Z29: 0 | AA29: 10.57692308 | AB29: 8.541666667 | AC29: 0 | AD29: 110.8814103 | AE29: 241.046544 | AF29: 0.1093379951 | AG29: 90.20384597 | AH29: 96.15384615 | AI29: 0.0436150985 | AJ29: 46.88623089 | AK29: 41.66666667 | AL29: 0.01889987602 | AM29: 11.81242251 | AN29: 41.66666667 | AO29: 0.01889987602 | AP29: 11.33992561 | AQ29: 0 | AR29: 0 | AS29: 0
A30: Alfalfa-Grass Silage | S30: 0 | T30: 0 | U30: 0 | V30: 0 | W30: 0 | X30: 0 | Y30: 0 | Z30: 0 | AA30: 0 | AB30: 0 | AC30: 0 | AD30: 0 | AE30: 0 | AF30: 0 | AG30: 0 | AH30: 0 | AI30: 0 | AJ30: 0 | AK30: 0 | AL30: 0 | AM30: 0 | AN30: 0 | AO30: 0 | AP30: 0 | AQ30: 0 | AR30: 0 | AS30: 0
B31: Alfalfa-grass | C31: 0 | D31: =IF(SUM($J$16:$J$18)<>100%,"ERROR",SUM(V31+Z31+AG31)) -> 0 | F31: 40 | G31: =AJ31 -> 37.50898471 | I31: 52 | J31: =AM31 -> 24.56983882 | L31: 15 | M31: =IF(SUM($M$21:$M$22)<>100%,"ERROR",AP31+AS31) -> 17.00988842 | O31: =D31+G31+J31+M31 -> 79.08871195 | R31: 41.58284994 | S31: 0 | T31: 0 | U31: 0 | V31: 0 | W31: 0 | X31: 0 | Y31: 0 | Z31: 0 | AA31: 8.461538462 | AB31: 12.8125 | AC31: 0 | AD31: -21.27403846 | AE31: 0 | AF31: 0 | AG31: 0 | AH31: 76.92307692 | AI31: 0.0348920788 | AJ31: 37.50898471 | AK31: 86.66666667 | AL31: 0.03931174211 | AM31: 24.56983882 | AN31: 62.5 | AO31: 0.02834981403 | AP31: 17.00988842 | AQ31: 0 | AR31: 0 | AS31: 0
B32: Oat nurse crop (silage) | C32: 50 | D32: =IF(SUM($J$16:$J$18)<>100%,"ERROR",SUM(V32+Z32+AG32)) -> 21.64814081 | F32: 50 | G32: =AJ32 -> 46.88623089 | I32: 30 | J32: =AM32 -> 14.17490701 | L32: 15 | M32: =IF(SUM($M$21:$M$22)<>100%,"ERROR",AP32+AS32) -> 17.00988842 | O32: =D32+G32+J32+M32 -> 99.71916712 | R32: 61.85640621 | S32: 0 | T32: 0 | U32: 0 | V32: 0 | W32: 0 | X32: 0 | Y32: 0 | Z32: 0 | AA32: 10.57692308 | AB32: 12.8125 | AC32: 0 | AD32: 26.61057692 | AE32: 57.84908027 | AF32: 0.02624017067 | AG32: 21.64814081 | AH32: 96.15384615 | AI32: 0.0436150985 | AJ32: 46.88623089 | AK32: 50 | AL32: 0.02267985122 | AM32: 14.17490701 | AN32: 62.5 | AO32: 0.02834981403 | AP32: 17.00988842 | AQ32: 0 | AR32: 0 | AS32: 0
A34: The fertilizer recommendation will vary depending on the soil type, climate and crop rotation. Manitoba Agriculture recommends that soil test sampling and analysis be conducted each year to produce a better baseline for fertility. On many Manitoba soil types, potash application can be reduced based on soil test results. Custom soil sampling and analysis typically costs $1.00 to $2.00/acre.
A38: 1. Users are reminded to adjust silage yields when making changes to fertilizer rates.
A40: Chemicals
D41: Weed | F41: Insect | G41: Forage | J41: Total
D42: Control | F42: Control | G42: Removal | J42: Cost
A43: Crop | D43: $/acre | F43: $/acre | G43: $/acre | J43: $/acre
A44: Cereal Silage
B45: Barley | D45: 16 | F45: 0 | J45: =D45+F45 -> 16
B46: Corn | D46: 16 | F46: 0 | J46: =D46+F46+G46 -> 16
A47: Alfalfa-Grass Silage
B48: Alfalfa-grass | D48: 0 | F48: 0 | J48: =D48+F48 -> 0
B49: Oat nurse crop (silage) | D49: 20 | F49: 0 | G49: 15 | J49: =D49+F49+G49 -> 35
A51: Fertilizer 1
D52: Bulk Price | G52: Actual Nutrient | J52: Nitrogen | M52: Sulphur
B53: Fertilizer Type | D53: $/tonne | G53: $/lb. | J53: Usage | M53: Usage
B54: Nitrogen: (urea) 46-0-0 | D54: =$D$16+ABS('Risk Analysis'!$E$15) -> 975 | G54: =SUM(D54/(2204.5855*0.46)) -> 0.9614347991 | J54: 1 | M54: - | O54: =ABS('Risk Analysis'!$E$15) -> 150 | P54: 1X
B55: Nitrogen: (NH3) 82-0-0 | D55: =$D$17+ABS('Risk Analysis'!$E$15) -> 1450 | G55: =SUM(D55/(2204.5855*0.82)) -> 0.8020975748 | J55: 0 | M55: -
B56: Nitrogen: (liquid) 28-0-0 | D56: =$D$18+ABS('Risk Analysis'!$E$15) -> 650 | G56: =SUM(D56/(2204.5855*0.28)) -> 1.053000018 | J56: 0 | M56: -
B57: Phosphorus: 11-52-0 | D57: =$D$19+ABS('Risk Analysis'!$E$15) -> 1225 | G57: =SUM((D57-(G54*(0.11*2204.5855)))/(2204.5855*0.52)) -> 0.8651965032 | J57: - | M57: -
B58: Potash: 0-0-60 | D58: =$D$20+ABS('Risk Analysis'!$E$15) -> 775 | G58: =SUM(D58/(2204.5855*0.6)) -> 0.5859000101 | J58: - | M58: -
B59: Sulphur: 20.5-0-0-24 | D59: =$D$21+ABS('Risk Analysis'!$E$15) -> 750 | G59: =SUM((D59-(G54*(0.205*2204.5855)))/(2204.5855*0.24)) -> 0.5962744668 | J59: - | M59: 1
B60: MES S15: 13-33-0-15 | D60: =$D$22+ABS('Risk Analysis'!$E$15) -> 1150 | G60: =SUM((D60-(G54*(0.13*2204.5855))-(G57*(0.33*2204.5855)))/(2204.5855*0.15)) -> 0.7409242602 | H60: 0 | J60: - | M60: 0
S61: ***HIDE***
C62: Amount of Actual Pounds of Elements Applied Per Acre | T62: 82-0-0 | X62: 28-0-0 | AD62: 46-0-0 | AH62: 11-52-0 | AK62: 0-0-60 | AN62: 20.5-0-0-24 | AQ62: 13-33-0-15
C63: Nitrogen | F63: Phosphorus | I63: Potash | L63: Sulphur | O63: Total | S63: preseed | T63: preseed | U63: preseed | V63: preseed | W63: suppl | X63: suppl | Y63: suppl | Z63: suppl | AA63: blend | AB63: blend | AC63: blend | AD63: blend | AE63: blend | AF63: blend | AG63: blend | AH63: blend | AI63: blend | AJ63: blend | AK63: blend | AL63: blend | AM63: blend | AN63: blend | AO63: blend | AP63: blend | AQ63: blend | AR63: blend | AS63: blend | AT63: N phos
A64: Crop | C64: lbs. | D64: $/acre | F64: lbs. | G64: $/acre | I64: lbs. | J64: $/acre | L64: lbs. | M64: $/acre | O64: $/acre | S64: N actual | T64: N lbs | U64: N MT | V64: N cost | W64: N actual | X64: N lbs | Y64: N MT | Z64: N cost | AA64: N phos | AB64: N sul1 | AC64: N sul2 | AD64: N urea | AE64: N lbs | AF64: N MT | AG64: N cost | AH64: phos lbs | AI64: phos MT | AJ64: phos cost | AK64: potash | AL64: pot MT | AM64: pot cost | AN64: sul 1 lbs | AO64: sul 1 MT | AP64: sul 1 cost | AQ64: sul 2 lbs | AR64: sul 2 MT | AS64: sul 2 cost | AT64: lbs
A65: Cereal Silage | R65: OLD
B66: Barley | C66: 80 | D66: =IF(SUM($J$16:$J$18)<>100%,"ERROR",SUM(V66+Z66+AG66)) -> 70.81290503 | F66: 30 | G66: =AJ66 -> 32.0570974 | I66: 0 | J66: =AM66 -> 0 | L66: 0 | M66: =IF(SUM($M$21:$M$22)<>100%,"ERROR",AP66+AS66) -> 0 | O66: =D66+G66+J66+M66 -> 102.8700024 | R66: 50.98543733 | S66: =SUM(C66*$J$17) -> 0 | T66: =MAXA(0,(S66)/(0.82)) -> 0 | U66: =(T66)/2204.6 -> 0 | V66: =SUM(U66*$D$55) -> 0 | W66: =SUM(C66*$J$18) -> 0 | X66: =MAXA(0,(W66)/(0.28)) -> 0 | Y66: =(X66)/2204.6 -> 0 | Z66: =SUM(Y66*$D$56) -> 0 | AA66: =SUM(AH66*0.11) -> 6.346153846 | AB66: =SUM(AN66*0.205) -> 0 | AC66: =SUM(AQ66*0.13) -> 0 | AD66: =SUM(C66-(AA66+AB66+AC66+W66+S66)) -> 73.65384615 | AE66: =MAXA(0,(AD66)/(0.46)) -> 160.1170569 | AF66: =(AE66)/2204.6 -> 0.07262862055 | AG66: =SUM(AF66*$D$54) -> 70.81290503 | AH66: =MAXA(0,(F66-(AQ66*0.33))/0.52) -> 57.69230769 | AI66: =(AH66)/2204.6 -> 0.0261690591 | AJ66: =SUM(AI66*$D$57) -> 32.0570974 | AK66: =SUM(I66/0.6) -> 0 | AL66: =(AK66)/2204.6 -> 0 | AM66: =SUM(AL66*$D$58) -> 0 | AN66: =MAXA(0,SUM(L66*$M$21)/0.24) -> 0 | AO66: =(AN66)/2204.6 -> 0 | AP66: =SUM(AO66*$D$59) -> 0 | AQ66: =MAXA(0,SUM(L66*$M$22)/0.15) -> 0 | AR66: =(AQ66)/2204.6 -> 0 | AS66: =SUM(AR66*$D$60) -> 0
B67: Corn | C67: 130 | D67: =IF(SUM($J$16:$J$18)<>100%,"ERROR",SUM(V67+Z67+AG67)) -> 106.6045452 | F67: 50 | G67: =AJ67 -> 53.42849566 | I67: 25 | J67: =AM67 -> 14.64740391 | L67: 10 | M67: =IF(SUM($M$21:$M$22)<>100%,"ERROR",AP67+AS67) -> 14.17490701 | O67: =D67+G67+J67+M67 -> 188.8553518 | R67: 95.76208233 | S67: 0 | T67: 0 | U67: 0 | V67: =SUM(U67*$D$55) -> 0 | W67: 0 | X67: 0 | Y67: 0 | Z67: =SUM(Y67*$D$56) -> 0 | AA67: 10.57692308 | AB67: 8.541666667 | AC67: 0 | AD67: 110.8814103 | AE67: 241.046544 | AF67: 0.1093379951 | AG67: =SUM(AF67*$D$54) -> 106.6045452 | AH67: 96.15384615 | AI67: 0.0436150985 | AJ67: =SUM(AI67*$D$57) -> 53.42849566 | AK67: 41.66666667 | AL67: 0.01889987602 | AM67: =SUM(AL67*$D$58) -> 14.64740391 | AN67: 41.66666667 | AO67: 0.01889987602 | AP67: =SUM(AO67*$D$59) -> 14.17490701 | AQ67: 0 | AR67: 0 | AS67: =SUM(AR67*$D$60) -> 0
A68: Alfalfa-Grass Silage
B69: Alfalfa-grass | C69: 0 | D69: =IF(SUM($J$16:$J$18)<>100%,"ERROR",SUM(V69+Z69+AG69)) -> 0 | F69: 40 | G69: =AJ69 -> 42.74279653 | I69: 52 | J69: =AM69 -> 30.46660014 | L69: 15 | M69: =IF(SUM($M$21:$M$22)<>100%,"ERROR",AP69+AS69) -> 21.26236052 | O69: =D69+G69+J69+M69 -> 94.47175719 | R69: 41.58284994 | S69: 0 | T69: 0 | U69: 0 | V69: =SUM(U69*$D$55) -> 0 | W69: 0 | X69: 0 | Y69: 0 | Z69: =SUM(Y69*$D$56) -> 0 | AA69: 8.461538462 | AB69: 12.8125 | AC69: 0 | AD69: -21.27403846 | AE69: 0 | AF69: 0 | AG69: =SUM(AF69*$D$54) -> 0 | AH69: 76.92307692 | AI69: 0.0348920788 | AJ69: =SUM(AI69*$D$57) -> 42.74279653 | AK69: 86.66666667 | AL69: 0.03931174211 | AM69: =SUM(AL69*$D$58) -> 30.46660014 | AN69: 62.5 | AO69: 0.02834981403 | AP69: =SUM(AO69*$D$59) -> 21.26236052 | AQ69: 0 | AR69: 0 | AS69: =SUM(AR69*$D$60) -> 0
B70: Oat nurse crop (silage) | C70: 50 | D70: =IF(SUM($J$16:$J$18)<>100%,"ERROR",SUM(V70+Z70+AG70)) -> 25.58416641 | F70: 50 | G70: =AJ70 -> 53.42849566 | I70: 30 | J70: =AM70 -> 17.5768847 | L70: 15 | M70: =IF(SUM($M$21:$M$22)<>100%,"ERROR",AP70+AS70) -> 21.26236052 | O70: =D70+G70+J70+M70 -> 117.8519073 | R70: 61.85640621 | S70: 0 | T70: 0 | U70: 0 | V70: 0 | W70: 0 | X70: 0 | Y70: 0 | Z70: 0 | AA70: 10.57692308 | AB70: 12.8125 | AC70: 0 | AD70: 26.61057692 | AE70: 57.84908027 | AF70: 0.02624017067 | AG70: 25.58416641 | AH70: 96.15384615 | AI70: 0.0436150985 | AJ70: =SUM(AI70*$D$57) -> 53.42849566 | AK70: 50 | AL70: 0.02267985122 | AM70: =SUM(AL70*$D$58) -> 17.5768847 | AN70: 62.5 | AO70: 0.02834981403 | AP70: =SUM(AO70*$D$59) -> 21.26236052 | AQ70: 0 | AR70: 0 | AS70: =SUM(AR70*$D$60) -> 0
A72: Fertilizer 1
D73: Bulk Price | G73: Actual Nutrient | J73: Nitrogen | M73: Sulphur
B74: Fertilizer Type | D74: $/tonne | G74: $/lb. | J74: Usage | M74: Usage
B75: Nitrogen: (urea) 46-0-0 | D75: =$D$16+ABS('Risk Analysis'!$E$15*2) -> 1125 | G75: =SUM(D75/(2204.5855*0.46)) -> 1.109347845 | J75: 1 | M75: - | O75: =ABS('Risk Analysis'!$E$15*2) -> 300 | P75: 2X
B76: Nitrogen: (NH3) 82-0-0 | D76: =$D$17+ABS('Risk Analysis'!$E$15*2) -> 1600 | G76: =SUM(D76/(2204.5855*0.82)) -> 0.885073186 | J76: 0 | M76: -
B77: Nitrogen: (liquid) 28-0-0 | D77: =$D$18+ABS('Risk Analysis'!$E$15*2) -> 800 | G77: =SUM(D77/(2204.5855*0.28)) -> 1.296000022 | J77: 0 | M77: -
B78: Phosphorus: 11-52-0 | D78: =$D$19+ABS('Risk Analysis'!$E$15*2) -> 1375 | G78: =SUM((D78-(G75*(0.11*2204.5855)))/(2204.5855*0.52)) -> 0.9647533611 | J78: - | M78: -
B79: Potash: 0-0-60 | D79: =$D$20+ABS('Risk Analysis'!$E$15*2) -> 925 | G79: =SUM(D79/(2204.5855*0.6)) -> 0.699300012 | J79: - | M79: -
B80: Sulphur: 20.5-0-0-24 | D80: =$D$21+ABS('Risk Analysis'!$E$15*2) -> 900 | G80: =SUM((D80-(G75*(0.205*2204.5855)))/(2204.5855*0.24)) -> 0.7534320782 | J80: - | M80: 1
B81: MES S15: 13-33-0-15 | D81: =$D$22+ABS('Risk Analysis'!$E$15*2) -> 1300 | G81: =SUM((D81-(G75*(0.13*2204.5855))-(G78*(0.33*2204.5855)))/(2204.5855*0.15)) -> 0.8473078741 | H81: 0 | J81: - | M81: 0
S82: ***HIDE***
C83: Amount of Actual Pounds of Elements Applied Per Acre | T83: 82-0-0 | X83: 28-0-0 | AD83: 46-0-0 | AH83: 11-52-0 | AK83: 0-0-60 | AN83: 20.5-0-0-24 | AQ83: 13-33-0-15
C84: Nitrogen | F84: Phosphorus | I84: Potash | L84: Sulphur | O84: Total | S84: preseed | T84: preseed | U84: preseed | V84: preseed | W84: suppl | X84: suppl | Y84: suppl | Z84: suppl | AA84: blend | AB84: blend | AC84: blend | AD84: blend | AE84: blend | AF84: blend | AG84: blend | AH84: blend | AI84: blend | AJ84: blend | AK84: blend | AL84: blend | AM84: blend | AN84: blend | AO84: blend | AP84: blend | AQ84: blend | AR84: blend | AS84: blend | AT84: N phos
A85: Crop | C85: lbs. | D85: $/acre | F85: lbs. | G85: $/acre | I85: lbs. | J85: $/acre | L85: lbs. | M85: $/acre | O85: $/acre | S85: N actual | T85: N lbs | U85: N MT | V85: N cost | W85: N actual | X85: N lbs | Y85: N MT | Z85: N cost | AA85: N phos | AB85: N sul1 | AC85: N sul2 | AD85: N urea | AE85: N lbs | AF85: N MT | AG85: N cost | AH85: phos lbs | AI85: phos MT | AJ85: phos cost | AK85: potash | AL85: pot MT | AM85: pot cost | AN85: sul 1 lbs | AO85: sul 1 MT | AP85: sul 1 cost | AQ85: sul 2 lbs | AR85: sul 2 MT | AS85: sul 2 cost | AT85: lbs
A86: Cereal Silage | R86: OLD
B87: Barley | C87: 80 | D87: =IF(SUM($J$16:$J$18)<>100%,"ERROR",SUM(V87+Z87+AG87)) -> 81.70719811 | F87: 30 | G87: =AJ87 -> 35.98245626 | I87: 0 | J87: =AM87 -> 0 | L87: 0 | M87: =IF(SUM($M$21:$M$22)<>100%,"ERROR",AP87+AS87) -> 0 | O87: =D87+G87+J87+M87 -> 117.6896544 | R87: 50.98543733 | S87: =SUM(C87*$J$17) -> 0 | T87: =MAXA(0,(S87)/(0.82)) -> 0 | U87: =(T87)/2204.6 -> 0 | V87: =SUM(U87*$D$76) -> 0 | W87: =SUM(C87*$J$18) -> 0 | X87: =MAXA(0,(W87)/(0.28)) -> 0 | Y87: =(X87)/2204.6 -> 0 | Z87: =SUM(Y87*$D$77) -> 0 | AA87: =SUM(AH87*0.11) -> 6.346153846 | AB87: =SUM(AN87*0.205) -> 0 | AC87: =SUM(AQ87*0.13) -> 0 | AD87: =SUM(C87-(AA87+AB87+AC87+W87+S87)) -> 73.65384615 | AE87: =MAXA(0,(AD87)/(0.46)) -> 160.1170569 | AF87: =(AE87)/2204.6 -> 0.07262862055 | AG87: =SUM(AF87*$D$75) -> 81.70719811 | AH87: =MAXA(0,(F87-(AQ87*0.33))/0.52) -> 57.69230769 | AI87: =(AH87)/2204.6 -> 0.0261690591 | AJ87: =SUM(AI87*$D$78) -> 35.98245626 | AK87: =SUM(I87/0.6) -> 0 | AL87: =(AK87)/2204.6 -> 0 | AM87: =SUM(AL87*$D$79) -> 0 | AN87: =MAXA(0,SUM(L87*$M$21)/0.24) -> 0 | AO87: =(AN87)/2204.6 -> 0 | AP87: =SUM(AO87*$D$80) -> 0 | AQ87: =MAXA(0,SUM(L87*$M$22)/0.15) -> 0 | AR87: =(AQ87)/2204.6 -> 0 | AS87: =SUM(AR87*$D$81) -> 0
B88: Corn | C88: 130 | D88: =IF(SUM($J$16:$J$18)<>100%,"ERROR",SUM(V88+Z88+AG88)) -> 123.0052445 | F88: 50 | G88: =AJ88 -> 59.97076044 | I88: 25 | J88: =AM88 -> 17.48238532 | L88: 10 | M88: =IF(SUM($M$21:$M$22)<>100%,"ERROR",AP88+AS88) -> 17.00988842 | O88: =D88+G88+J88+M88 -> 217.4682787 | R88: 95.76208233 | S88: 0 | T88: 0 | U88: 0 | V88: =SUM(U88*$D$76) -> 0 | W88: 0 | X88: 0 | Y88: 0 | Z88: =SUM(Y88*$D$77) -> 0 | AA88: 10.57692308 | AB88: 8.541666667 | AC88: 0 | AD88: 110.8814103 | AE88: 241.046544 | AF88: 0.1093379951 | AG88: =SUM(AF88*$D$75) -> 123.0052445 | AH88: 96.15384615 | AI88: 0.0436150985 | AJ88: =SUM(AI88*$D$78) -> 59.97076044 | AK88: 41.66666667 | AL88: 0.01889987602 | AM88: =SUM(AL88*$D$79) -> 17.48238532 | AN88: 41.66666667 | AO88: 0.01889987602 | AP88: =SUM(AO88*$D$80) -> 17.00988842 | AQ88: 0 | AR88: 0 | AS88: =SUM(AR88*$D$81) -> 0
A89: Alfalfa-Grass Silage
B90: Alfalfa-grass | C90: 0 | D90: =IF(SUM($J$16:$J$18)<>100%,"ERROR",SUM(V90+Z90+AG90)) -> 0 | F90: 40 | G90: =AJ90 -> 47.97660835 | I90: 52 | J90: =AM90 -> 36.36336146 | L90: 15 | M90: =IF(SUM($M$21:$M$22)<>100%,"ERROR",AP90+AS90) -> 25.51483262 | O90: =D90+G90+J90+M90 -> 109.8548024 | R90: 41.58284994 | S90: =SUM(C90*$J$17) -> 0 | T90: =MAXA(0,(S90)/(0.82)) -> 0 | U90: =(T90)/2204.6 -> 0 | V90: =SUM(U90*$D$76) -> 0 | W90: =SUM(C90*$J$18) -> 0 | X90: =MAXA(0,(W90)/(0.28)) -> 0 | Y90: =(X90)/2204.6 -> 0 | Z90: =SUM(Y90*$D$77) -> 0 | AA90: =SUM(AH90*0.11) -> 8.461538462 | AB90: =SUM(AN90*0.205) -> 12.8125 | AC90: =SUM(AQ90*0.13) -> 0 | AD90: =SUM(C90-(AA90+AB90+AC90+W90+S90)) -> -21.27403846 | AE90: =MAXA(0,(AD90)/(0.46)) -> 0 | AF90: =(AE90)/2204.6 -> 0 | AG90: =SUM(AF90*$D$75) -> 0 | AH90: =MAXA(0,(F90-(AQ90*0.33))/0.52) -> 76.92307692 | AI90: =(AH90)/2204.6 -> 0.0348920788 | AJ90: =SUM(AI90*$D$78) -> 47.97660835 | AK90: =SUM(I90/0.6) -> 86.66666667 | AL90: =(AK90)/2204.6 -> 0.03931174211 | AM90: =SUM(AL90*$D$79) -> 36.36336146 | AN90: =MAXA(0,SUM(L90*$M$21)/0.24) -> 62.5 | AO90: =(AN90)/2204.6 -> 0.02834981403 | AP90: =SUM(AO90*$D$80) -> 25.51483262 | AQ90: =MAXA(0,SUM(L90*$M$22)/0.15) -> 0 | AR90: =(AQ90)/2204.6 -> 0 | AS90: =SUM(AR90*$D$81) -> 0
B91: Oat nurse crop (silage) | C91: 50 | D91: =IF(SUM($J$16:$J$18)<>100%,"ERROR",SUM(V91+Z91+AG91)) -> 29.52019201 | F91: 50 | G91: =AJ91 -> 59.97076044 | I91: 30 | J91: =AM91 -> 20.97886238 | L91: 15 | M91: =IF(SUM($M$21:$M$22)<>100%,"ERROR",AP91+AS91) -> 25.51483262 | O91: =D91+G91+J91+M91 -> 135.9846474 | R91: 61.85640621 | S91: 0 | T91: 0 | U91: 0 | V91: =SUM(U91*$D$76) -> 0 | W91: 0 | X91: 0 | Y91: 0 | Z91: =SUM(Y91*$D$77) -> 0 | AA91: 10.57692308 | AB91: 12.8125 | AC91: 0 | AD91: 26.61057692 | AE91: 57.84908027 | AF91: 0.02624017067 | AG91: =SUM(AF91*$D$75) -> 29.52019201 | AH91: 96.15384615 | AI91: 0.0436150985 | AJ91: =SUM(AI91*$D$78) -> 59.97076044 | AK91: 50 | AL91: 0.02267985122 | AM91: =SUM(AL91*$D$79) -> 20.97886238 | AN91: 62.5 | AO91: 0.02834981403 | AP91: =SUM(AO91*$D$80) -> 25.51483262 | AQ91: 0 | AR91: 0 | AS91: =SUM(AR91*$D$81) -> 0
A93: Fertilizer 1
D94: Bulk Price | G94: Actual Nutrient | J94: Nitrogen | M94: Sulphur
B95: Fertilizer Type | D95: $/tonne | G95: $/lb. | J95: Usage | M95: Usage
B96: Nitrogen: (urea) 46-0-0 | D96: =$D$16+ABS('Risk Analysis'!$E$15*3) -> 1275 | G96: =SUM(D96/(2204.5855*0.46)) -> 1.257260891 | J96: 1 | M96: - | O96: =ABS('Risk Analysis'!$E$15*3) -> 450 | P96: 3X
B97: Nitrogen: (NH3) 82-0-0 | D97: =$D$17+ABS('Risk Analysis'!$E$15*3) -> 1750 | G97: =SUM(D97/(2204.5855*0.82)) -> 0.9680487971 | J97: 0 | M97: -
B98: Nitrogen: (liquid) 28-0-0 | D98: =$D$18+ABS('Risk Analysis'!$E$15*3) -> 950 | G98: =SUM(D98/(2204.5855*0.28)) -> 1.539000026 | J98: 0 | M98: -
B99: Phosphorus: 11-52-0 | D99: =$D$19+ABS('Risk Analysis'!$E$15*3) -> 1525 | G99: =SUM((D99-(G96*(0.11*2204.5855)))/(2204.5855*0.52)) -> 1.064310219 | J99: - | M99: -
B100: Potash: 0-0-60 | D100: =$D$20+ABS('Risk Analysis'!$E$15*3) -> 1075 | G100: =SUM(D100/(2204.5855*0.6)) -> 0.812700014 | J100: - | M100: -
B101: Sulphur: 20.5-0-0-24 | D101: =$D$21+ABS('Risk Analysis'!$E$15*3) -> 1050 | G101: =SUM((D101-(G96*(0.205*2204.5855)))/(2204.5855*0.24)) -> 0.9105896896 | J101: - | M101: 1
B102: MES S15: 13-33-0-15 | D102: =$D$22+ABS('Risk Analysis'!$E$15*3) -> 1450 | G102: =SUM((D102-(G96*(0.13*2204.5855))-(G99*(0.33*2204.5855)))/(2204.5855*0.15)) -> 0.953691488 | H102: 0 | J102: - | M102: 0
S103: ***HIDE***
C104: Amount of Actual Pounds of Elements Applied Per Acre | T104: 82-0-0 | X104: 28-0-0 | AD104: 46-0-0 | AH104: 11-52-0 | AK104: 0-0-60 | AN104: 20.5-0-0-24 | AQ104: 13-33-0-15
C105: Nitrogen | F105: Phosphorus | I105: Potash | L105: Sulphur | O105: Total | S105: preseed | T105: preseed | U105: preseed | V105: preseed | W105: suppl | X105: suppl | Y105: suppl | Z105: suppl | AA105: blend | AB105: blend | AC105: blend | AD105: blend | AE105: blend | AF105: blend | AG105: blend | AH105: blend | AI105: blend | AJ105: blend | AK105: blend | AL105: blend | AM105: blend | AN105: blend | AO105: blend | AP105: blend | AQ105: blend | AR105: blend | AS105: blend | AT105: N phos
A106: Crop | C106: lbs. | D106: $/acre | F106: lbs. | G106: $/acre | I106: lbs. | J106: $/acre | L106: lbs. | M106: $/acre | O106: $/acre | S106: N actual | T106: N lbs | U106: N MT | V106: N cost | W106: N actual | X106: N lbs | Y106: N MT | Z106: N cost | AA106: N phos | AB106: N sul1 | AC106: N sul2 | AD106: N urea | AE106: N lbs | AF106: N MT | AG106: N cost | AH106: phos lbs | AI106: phos MT | AJ106: phos cost | AK106: potash | AL106: pot MT | AM106: pot cost | AN106: sul 1 lbs | AO106: sul 1 MT | AP106: sul 1 cost | AQ106: sul 2 lbs | AR106: sul 2 MT | AS106: sul 2 cost | AT106: lbs
A107: Cereal Silage | R107: OLD
B108: Barley | C108: 80 | D108: =IF(SUM($J$16:$J$18)<>100%,"ERROR",SUM(V108+Z108+AG108)) -> 92.6014912 | F108: 30 | G108: =AJ108 -> 39.90781513 | I108: 0 | J108: =AM108 -> 0 | L108: 0 | M108: =IF(SUM($M$21:$M$22)<>100%,"ERROR",AP108+AS108) -> 0 | O108: =D108+G108+J108+M108 -> 132.5093063 | R108: 50.98543733 | S108: =SUM(C108*$J$17) -> 0 | T108: =MAXA(0,(S108)/(0.82)) -> 0 | U108: =(T108)/2204.6 -> 0 | V108: =SUM(U108*$D$97) -> 0 | W108: =SUM(C108*$J$18) -> 0 | X108: =MAXA(0,(W108)/(0.28)) -> 0 | Y108: =(X108)/2204.6 -> 0 | Z108: =SUM(Y108*$D$98) -> 0 | AA108: =SUM(AH108*0.11) -> 6.346153846 | AB108: =SUM(AN108*0.205) -> 0 | AC108: =SUM(AQ108*0.13) -> 0 | AD108: =SUM(C108-(AA108+AB108+AC108+W108+S108)) -> 73.65384615 | AE108: =MAXA(0,(AD108)/(0.46)) -> 160.1170569 | AF108: =(AE108)/2204.6 -> 0.07262862055 | AG108: =SUM(AF108*$D$96) -> 92.6014912 | AH108: =MAXA(0,(F108-(AQ108*0.33))/0.52) -> 57.69230769 | AI108: =(AH108)/2204.6 -> 0.0261690591 | AJ108: =SUM(AI108*$D$99) -> 39.90781513 | AK108: =SUM(I108/0.6) -> 0 | AL108: =(AK108)/2204.6 -> 0 | AM108: =SUM(AL108*$D$100) -> 0 | AN108: =MAXA(0,SUM(L108*$M$21)/0.24) -> 0 | AO108: =(AN108)/2204.6 -> 0 | AP108: =SUM(AO108*$D$101) -> 0 | AQ108: =MAXA(0,SUM(L108*$M$22)/0.15) -> 0 | AR108: =(AQ108)/2204.6 -> 0 | AS108: =SUM(AR108*$D$102) -> 0
B109: Corn | C109: 130 | D109: =IF(SUM($J$16:$J$18)<>100%,"ERROR",SUM(V109+Z109+AG109)) -> 139.4059438 | F109: 50 | G109: =AJ109 -> 66.51302521 | I109: 25 | J109: =AM109 -> 20.31736672 | L109: 10 | M109: =IF(SUM($M$21:$M$22)<>100%,"ERROR",AP109+AS109) -> 19.84486982 | O109: =D109+G109+J109+M109 -> 246.0812055 | R109: 95.76208233 | S109: 0 | T109: 0 | U109: 0 | V109: =SUM(U109*$D$97) -> 0 | W109: 0 | X109: 0 | Y109: 0 | Z109: =SUM(Y109*$D$98) -> 0 | AA109: 10.57692308 | AB109: 8.541666667 | AC109: 0 | AD109: 110.8814103 | AE109: 241.046544 | AF109: 0.1093379951 | AG109: =SUM(AF109*$D$96) -> 139.4059438 | AH109: 96.15384615 | AI109: 0.0436150985 | AJ109: =SUM(AI109*$D$99) -> 66.51302521 | AK109: 41.66666667 | AL109: 0.01889987602 | AM109: =SUM(AL109*$D$100) -> 20.31736672 | AN109: 41.66666667 | AO109: 0.01889987602 | AP109: =SUM(AO109*$D$101) -> 19.84486982 | AQ109: 0 | AR109: 0 | AS109: =SUM(AR109*$D$102) -> 0
A110: Alfalfa-Grass Silage
B111: Alfalfa-grass | C111: 0 | D111: =IF(SUM($J$16:$J$18)<>100%,"ERROR",SUM(V111+Z111+AG111)) -> 0 | F111: 40 | G111: =AJ111 -> 53.21042017 | I111: 52 | J111: =AM111 -> 42.26012277 | L111: 15 | M111: =IF(SUM($M$21:$M$22)<>100%,"ERROR",AP111+AS111) -> 29.76730473 | O111: =D111+G111+J111+M111 -> 125.2378477 | R111: 41.58284994 | S111: =SUM(C111*$J$17) -> 0 | T111: =MAXA(0,(S111)/(0.82)) -> 0 | U111: =(T111)/2204.6 -> 0 | V111: =SUM(U111*$D$97) -> 0 | W111: =SUM(C111*$J$18) -> 0 | X111: =MAXA(0,(W111)/(0.28)) -> 0 | Y111: =(X111)/2204.6 -> 0 | Z111: =SUM(Y111*$D$98) -> 0 | AA111: =SUM(AH111*0.11) -> 8.461538462 | AB111: =SUM(AN111*0.205) -> 12.8125 | AC111: =SUM(AQ111*0.13) -> 0 | AD111: =SUM(C111-(AA111+AB111+AC111+W111+S111)) -> -21.27403846 | AE111: =MAXA(0,(AD111)/(0.46)) -> 0 | AF111: =(AE111)/2204.6 -> 0 | AG111: =SUM(AF111*$D$96) -> 0 | AH111: =MAXA(0,(F111-(AQ111*0.33))/0.52) -> 76.92307692 | AI111: =(AH111)/2204.6 -> 0.0348920788 | AJ111: =SUM(AI111*$D$99) -> 53.21042017 | AK111: =SUM(I111/0.6) -> 86.66666667 | AL111: =(AK111)/2204.6 -> 0.03931174211 | AM111: =SUM(AL111*$D$100) -> 42.26012277 | AN111: =MAXA(0,SUM(L111*$M$21)/0.24) -> 62.5 | AO111: =(AN111)/2204.6 -> 0.02834981403 | AP111: =SUM(AO111*$D$101) -> 29.76730473 | AQ111: =MAXA(0,SUM(L111*$M$22)/0.15) -> 0 | AR111: =(AQ111)/2204.6 -> 0 | AS111: =SUM(AR111*$D$102) -> 0
B112: Oat nurse crop (silage) | C112: 50 | D112: =IF(SUM($J$16:$J$18)<>100%,"ERROR",SUM(V112+Z112+AG112)) -> 33.45621761 | F112: 50 | G112: =AJ112 -> 66.51302521 | I112: 30 | J112: =AM112 -> 24.38084006 | L112: 15 | M112: =IF(SUM($M$21:$M$22)<>100%,"ERROR",AP112+AS112) -> 29.76730473 | O112: =D112+G112+J112+M112 -> 154.1173876 | R112: 61.85640621 | S112: 0 | T112: 0 | U112: 0 | V112: =SUM(U112*$D$97) -> 0 | W112: 0 | X112: 0 | Y112: 0 | Z112: =SUM(Y112*$D$98) -> 0 | AA112: 10.57692308 | AB112: 12.8125 | AC112: 0 | AD112: 26.61057692 | AE112: 57.84908027 | AF112: 0.02624017067 | AG112: =SUM(AF112*$D$96) -> 33.45621761 | AH112: 96.15384615 | AI112: 0.0436150985 | AJ112: =SUM(AI112*$D$99) -> 66.51302521 | AK112: 50 | AL112: 0.02267985122 | AM112: =SUM(AL112*$D$100) -> 24.38084006 | AN112: 62.5 | AO112: 0.02834981403 | AP112: =SUM(AO112*$D$101) -> 29.76730473 | AQ112: 0 | AR112: 0 | AS112: =SUM(AR112*$D$102) -> 0

Sheet Op. Cost Input
A1: Operating Costs
B3: Interest Rate on Operating | E3: 0.09
B4: Silage machinery repair | E4: 0.04 | F4: (% of total investment)
B6: Land Taxes ($/acre) | E6: 10
B8: Fuel Cost ($/litre) | E8: 1.4
B10: Labour Cost per Hour | E10: 27
E12: Barley | F12: Corn | G12: Alfalfa Grass Silage
E13: Silage | F13: Silage | G13: Establishment | H13: Production
A14: Field Fuel Cost ($/acre) | E14: =SUM($E$8*$D$54) -> 21.364 | F14: =SUM($E$8*D55) -> 21.728 | G14: =SUM($E$8*D58) -> 28.644 | H14: =SUM($E$8*D57) -> 15.582
A15: Moving Fuel Cost
B16: Truck capacity (tons) | E16: 20 | F16: 20 | G16: 20 | H16: 20
B17: Fuel Use (miles/gal) | E17: 2 | F17: 2 | G17: 2 | H17: 2
B18: Distance to storage (miles) | E18: 3 | F18: 3 | G18: 3 | H18: 3
D19: Total ($/acre) | E19: =SUM(Production!D17/'Op. Cost Input'!E16*'Op. Cost Input'!E18/'Op. Cost Input'!E17*4.546*'Op. Cost Input'!$E$8) -> 3.579975 | F19: =SUM(Production!E17/'Op. Cost Input'!F16*'Op. Cost Input'!F18/'Op. Cost Input'!F17*4.546*'Op. Cost Input'!$E$8) -> 7.15995 | G19: =SUM(Production!F5/'Op. Cost Input'!G16*'Op. Cost Input'!G18/'Op. Cost Input'!G17*4.546*'Op. Cost Input'!$E$8) -> 1.9475064 | H19: =SUM(Production!F17/'Op. Cost Input'!H16*'Op. Cost Input'!H18/'Op. Cost Input'!H17*4.546*'Op. Cost Input'!$E$8) -> 3.0119523
A20: Packing Fuel Cost
B21: Tons per hour | E21: 45 | F21: 45 | G21: 45 | H21: 45 | J21: 1Crop insurance: (2023 rates)
B22: Fuel Consumption (litres/hour) | E22: 15 | F22: 15 | G22: 15 | H22: 15 | J22: ="Forage Establishment Insurance for $80/ac coverage. Annual Insurance for Alfalfa-Grass "&H25&" Silage coverage in MASC ("&'Risk Analysis OLD'!B36&") with LTAY "&IF(H25="Basic Hay","",'Risk Analysis OLD'!G37)&" yield="&IF(H25="Basic Hay",'Risk Analysis OLD'!H42,'Risk Analysis OLD'!G42)&" tons/acre. Annual Insurance for Greenfeed Silage "&'Op. Cost Input'!E25&" coverage in MASC ("&'Risk Analysis OLD'!B37&") with Long Term Average Yield (LTAY)="&'Risk Analysis OLD'!D42& " tons/acre including $0.52/acre Excess Moisture Insurance (EMI) coverage and Corn Silage "&'Op. Cost Input'!F25&" coverage in MASC ("&'Risk Analysis OLD'!B37&") with LTAY yield="&'Risk Analysis OLD'!F42& " tons/acre including $0.52/acre EMI coverage." -> Forage Establishment Insurance for $80/ac coverage. Annual Insurance for Alfalfa-Grass Select_Hay Silage coverage in MASC (Forage Region 6) with LTAY >4 years yield=2.788 tons/acre. Annual Insurance for Greenfeed Silage 80% Coverage coverage in MASC (Risk Area 14) with Long Term Average Yield (LTAY)=4.654 tons/acre including $0.52/acre Excess Moisture Insurance (EMI) coverage and Corn Silage 80% Coverage coverage in MASC (Risk Area 14) with LTAY yield=13.158 tons/acre including $0.52/acre EMI coverage.
D23: Total ($/acre) | E23: =SUM(Production!D17/'Op. Cost Input'!E21*E22*$E$8) -> 3.5 | F23: =SUM(Production!E17/'Op. Cost Input'!F21*F22*$E$8) -> 7 | G23: =SUM(Production!F5/'Op. Cost Input'!G21*G22*$E$8) -> 1.904 | H23: =SUM(Production!F17/'Op. Cost Input'!H21*H22*$E$8) -> 2.944666667
A25: Crop Insurance 1 ($/acre) | E25: 80% Coverage | F25: 80% Coverage | H25: Select_Hay
H26: 80% Coverage
E27: =IF(E25="None",0,'Forage Insurance'!C13+0.52) -> 18.12 | F27: =IF(F25="None",0,'Forage Insurance'!D13+0.52) -> 28.54 | G27: 5 | H27: =IF(H25="None",0,IF(H25="Basic_Hay",IF(H26=$C$65,'Forage Insurance'!$E$13,'Forage Insurance'!$F$13),IF(H26=$D$57,'Forage Insurance'!$I$13,'Forage Insurance'!$J$13))) -> 19.74
A29: Other Costs ($/acre) | E29: 7.5 | F29: 8.5 | G29: 2 | H29: 4.5
A31: Rental and Custom Work
B32: Seeding/Planting ($/ace) | E32: 0 | F32: 0 | G32: 0 | H32: -
B33: Application ($/acre) | E33: 0 | F33: 0 | G33: 0 | H33: 0
B34: Silage Harvesting ($/acre) | E34: 0 | F34: 0 | G34: 0 | H34: 0
B35: General ($/acre) | E35: 0 | F35: 0 | G35: 0 | H35: 0
D36: Total ($/acre) | E36: =SUM(E32:E35) -> 0 | F36: =SUM(F32:F35) -> 0 | G36: =SUM(G32:G35) -> 0 | H36: =SUM(H32:H35) -> 0
A38: Labour Hours per Acre | J38: # Hired | K38: # of | L38: Acres | M38: Hours
B39: Cropping | E39: 0.875 | F39: 1.131 | G39: 0.875 | H39: 0.25 | J39: Staff | K39: Months | L39: Farmed | M39: Per Acre
B40: Swathing | E40: 0.125 | F40: 0 | G40: 0.125 | H40: 0.125 | J40: 1 | K40: 4 | L40: 300 | M40: =SUM(J40*K40*4*40)/L40 -> 2.133333333
B41: Forage Harvest | E41: 0.133 | F41: 0.2 | G41: 0.133 | H41: 0.133 | J41: 2 | K41: 0.5 | L41: =L40 -> 300 | M41: =SUM(J41*K41*4*40)/L41 -> 0.5333333333
B42: Trucking | E42: 0.266 | F42: 0.64 | G42: 0.266 | H42: 0.266 | J42: 0 | K42: 0 | L42: =L40 -> 300 | M42: =SUM(J42*K42*4*40)/L42 -> 0
B43: Packing | E43: 0.133 | F43: 0.32 | G43: 0.133 | H43: 0.133 | J43: 0 | K43: 0 | L43: =L40 -> 300 | M43: =SUM(J43*K43*4*40)/L43 -> 0
D44: Total Hours | E44: =SUM(E39:E43) -> 1.532 | F44: =SUM(F39:F43) -> 2.291 | G44: =SUM(G39:G43) -> 1.532 | H44: =SUM(H39:H43) -> 0.907 | L44: Total | M44: =SUM(M40:M43) -> 2.666666667
D45: Total ($/acre) | E45: =SUM(E44*$E$10) -> 41.364 | F45: =SUM(F44*$E$10) -> 61.857 | G45: =SUM(G44*$E$10) -> 41.364 | H45: =SUM(H44*$E$10) -> 24.489
A47: Field Fuel Usage
E49: Number of Field Operations | N49: Trucks
E50: cultivate | F50: tandem disk | G50: harrow | H50: air drill | I50: row planter | J50: SP sprayer | K50: swather | L50: forage harvester | M50: spin spreader | N50: 3/4 ton pickup
A52: Crop | D52: L/acre | E52: 1.29 | F52: 1.85 | G52: 0.75 | H52: 2.42 | I52: 1.29 | J52: 0.42 | K52: 1.21 | L52: 9 | M52: 0.42 | N52: 0.5
A53: Cereal Silage
B54: Barley | D54: =SUM(E54*$E$52)+(F54*$F$52)+(G54*$G$52)+(H54*$H$52)+(I54*$I$52)+(J54*$J$52)+(K54*$K$52)+(L54*$L$52)+(M54*$M$52)+N54 -> 15.26 | E54: 1 | F54: 0 | G54: 0 | H54: 1 | I54: 0 | J54: 2 | K54: 1 | L54: 1 | M54: 0 | N54: =$N$52 -> 0.5
B55: Corn | D55: =SUM(E55*$E$52)+(F55*$F$52)+(G55*$G$52)+(H55*$H$52)+(I55*$I$52)+(J55*$J$52)+(K55*$K$52)+(L55*$L$52)+(M55*$M$52)+N55 -> 15.52 | E55: 1 | F55: 1 | G55: 1 | H55: 0 | I55: 1 | J55: 2 | K55: 0 | L55: 1 | M55: 0 | N55: =$N$52 -> 0.5
A56: Alfalfa-Grass Silage
B57: Alfalfa-grass | D57: =SUM(E57*$E$52)+(F57*$F$52)+(G57*$G$52)+(H57*$H$52)+(I57*$I$52)+(J57*$J$52)+(K57*$K$52)+(L57*$L$52)+(M57*$M$52)+N57 -> 11.13 | E57: 0 | F57: 0 | G57: 0 | H57: 0 | I57: 0 | J57: 0 | K57: 1 | L57: 1 | M57: 1 | N57: =$N$52 -> 0.5
B58: Oat nurse crop | D58: =SUM(E58*$E$52)+(F58*$F$52)+(G58*$G$52)+(H58*$H$52)+(I58*$I$52)+(J58*$J$52)+(K58*$K$52)+(L58*$L$52)+(M58*$M$52)+N58 -> 20.46 | E58: 1 | F58: 2 | G58: 2 | H58: 1 | I58: 0 | J58: 2 | K58: 1 | L58: 1 | M58: 0 | N58: =$N$52 -> 0.5
C63: Basic_Hay | D63: Select_Hay | G63: Percent_70 | H63: Percent_80
B64: None | C64: None | D64: None | E64: None | G64: <=4 Years Stand | H64: <=4 Years Stand
B65: Basic_Hay | C65: ='Forage Insurance'!B89 -> Low - $32/tonne | D65: 70% Coverage | E65: 80% Coverage | G65: >4 Year Stand | H65: >4 Year Stand
B66: Select_Hay | C66: ='Forage Insurance'!B90 -> High - $53/tonne | D66: 80% Coverage

Sheet Fixed Cost Input
A1: Fixed Costs
B2: Land | G2: Machinery
B3: Average Land value ($/acre) | D3: 3000 | G3: Total Investment ($/acre) | J3: =ROUND((C53)/(D4),2) -> 402.5
B4: Total Silage acres | D4: 300 | G4: Residual Value (End of Useful Life) | J4: 0.25
B5: Owned Land Equity | D5: 0.85 | G5: Useful Life (years) | J5: 15
B6: =" Land Financed ("&TEXT(D3*D6,"$#,###")&" per acre)" -> Land Financed ($450 per acre) | D6: =SUM(1-D5) -> 0.15 | G6: Owned Equipment Equity | J6: 0.55
B7: Land Opportunity Cost (Investment Rate) | D7: 0.015 | G7: =" Equipment Financed ("&TEXT((J3)*J7,"$#,###")&" per acre)" -> Equipment Financed ($181 per acre) | J7: =SUM(1-J6) -> 0.45
B8: Land cost ($/acre) | G8: Machinery Opportunity Cost (Investment Rate) | J8: 0.015
B9: Finance Rate & Term | C9: 0.08 | D9: 25 | E9: Years | G9: Machinery Cost ($/acre)
B10: Principle & Interest Cost | D10: =-PMT(C9,D9,D3*D6,0) -> 42.15545057 | G10: Finance Rate & Term | H10: 0.085 | I10: 7 | J10: Years
B11: Owned Land Opportunity Cost | D11: =SUM(D3*D5)*(D7) -> 38.25 | G11: Principle & Interest Cost | J11: =-PMT(H10,I10,J3*J7,0) -> 35.38625018
B12: Total Cost | D12: =SUM(D10:D11) -> 80.40545057 | G12: Machinery Depreciation Cost | J12: =(J3-(J3*J4))/J5 -> 20.125
G13: Owned Machinery Opportunity Cost | J13: =SUM(J3*J6)*(J8) -> 3.320625
B14: Silage Storage | G14: Total Cost | J14: =SUM(J11:J13) -> 58.83187518
B15: Silage Bunker Storage (total cost) | D15: 15000
B16: Total Investment ($/acre) | D16: =ROUND((SUM(D15)/D4),0) -> 50 | G16: Total Land, Machinery & Storage Debt ($/acre) | J16: =(D3*D6)+((J3)*J7)+(D16*D20) -> 638.625
B17: Residual Value (End of Useful Life) | D17: 0.2
B18: Useful Life (years) | D18: 20
B19: Owned Silage Storage Equity | D19: 0.85
B20: =" Silage Storage Financed ("&TEXT((D16)*D20,"$#,###")&" per acre)" -> Silage Storage Financed ($8 per acre) | D20: =SUM(1-D19) -> 0.15
B21: Silage Storage Opp. Cost (Investment Rate) | D21: 0.015
B22: Silage Storage Cost ($/acre)
B23: Finance Rate & Term | C23: 0.085 | D23: 7 | E23: Years
B24: Principle & Interest Cost | D24: =-PMT(C23,D23,D16*D20,0) -> 1.465269159
B25: Storage Depreciation Cost | D25: =(D16-(D16*D17))/D18 -> 2
B26: Owned Storage Opportunity Cost | D26: =SUM(D16*D19)*(D21) -> 0.6375
B27: Total Cost | D27: =SUM(D24:D26) -> 4.102769159
A29: Owned Equipment Inventory and Current Values
C30: Market | D30: Silage | E30: Silage | H30: Market | I30: Silage | J30: Silage
A31: Power & Misc. Equipment | C31: Value | D31: Usage % | E31: Allocation | G31: Harvest Equipment | H31: Value | I31: Usage % | J31: Allocation
B32: 4WD Tractor 300HP | C32: 165000 | D32: 0.1 | E32: =SUM(C32*D32) -> 16500 | G32: Swather 25ft | H32: 27500 | I32: 0.1 | J32: =SUM(H32*I32) -> 2750
B33: MFD Tractor 175HP | C33: 55000 | D33: 0.1 | E33: =SUM(C33*D33) -> 5500 | G33: PT Forage Harvester | H33: 38500 | I33: 1 | J33: =SUM(H33*I33) -> 38500
C34: 0 | D34: 0 | E34: 0 | G34: PT Forage pickup header | H34: 5500 | I34: 1 | J34: 5500
C35: 0 | D35: 0 | E35: 0 | G35: PT Forage corn header | H35: 11000 | I35: 1 | J35: 11000
C36: 0 | D36: 0 | E36: 0 | G36: Dump wagon | H36: 11000 | I36: 1 | J36: 11000
C37: 0 | D37: 0 | E37: 0 | H37: 0 | I37: 0 | J37: 0
C38: 0 | D38: 0 | E38: 0 | H38: 0 | I38: 0 | J38: 0
B39: Total | E39: =SUM(E32:E38) -> 22000 | G39: Total | J39: =SUM(J32:J38) -> 68750
C41: Market | D41: Silage | E41: Silage | H41: Market | I41: Silage | J41: Silage
A42: Seeding, Tillage, Spraying | C42: Value | D42: Usage % | E42: Allocation | G42: Trucks & Trailers | H42: Value | I42: Usage % | J42: Allocation
B43: Cultivator | C43: 25000 | D43: 0.1 | E43: =SUM(C43*D43) -> 2500 | G43: Diesel tandem w/silage box | H43: 50000 | I43: 0.1 | J43: =SUM(H43*I43) -> 5000
B44: Harrow 70ft | C44: 25000 | D44: 0.1 | E44: =SUM(C44*D44) -> 2500 | H44: 0 | I44: 0 | J44: =SUM(H44*I44) -> 0
B45: Air tank | C45: 15000 | D45: 0.1 | E45: 1500 | H45: 0 | I45: 0 | J45: 0
B46: Air drill 50ft | C46: 60000 | D46: 0.1 | E46: 6000 | H46: 0 | I46: 0 | J46: 0
B47: SP sprayer | C47: 75000 | D47: 0.1 | E47: 7500 | H47: 0 | I47: 0 | J47: 0
B48: Corn Planter | C48: 10000 | D48: 0.5 | E48: 5000 | H48: 0 | I48: 0 | J48: 0
C49: 0 | D49: 0 | E49: 0 | H49: 0 | I49: 0 | J49: 0
C50: 0 | D50: 0 | E50: 0 | H50: 0 | I50: 0 | J50: 0
B51: Total | C51: =SUM(C43:C50) -> 210000 | E51: =SUM(E43:E50) -> 25000 | G51: Total | J51: =SUM(J43:J50) -> 5000
B53: Owned Equipment TOTAL | C53: =SUM(E39+J39+E51+J51) -> 120750 | D53: =SUM(C53/D4) -> 402.5 | E53: per acre
A55: Leased Equipment Inventory
C56: Annual | D56: Silage | E56: Silage | H56: Annual | I56: Silage | J56: Silage
A57: Power & Misc. Equipment | C57: Lease | D57: Usage % | E57: Allocation | G57: Harvest Equipment | H57: Lease | I57: Usage % | J57: Allocation
B58: enter equipment here | C58: 0 | D58: 0 | E58: =SUM(C58*D58) -> 0 | G58: enter equipment here | H58: 0 | I58: 0 | J58: =SUM(H58*I58) -> 0
C59: 0 | D59: 0 | E59: =SUM(C59*D59) -> 0 | H59: 0 | I59: 0 | J59: =SUM(H59*I59) -> 0
C60: 0 | D60: 0 | E60: =SUM(C60*D60) -> 0 | H60: 0 | I60: 0 | J60: =SUM(H60*I60) -> 0
B61: Total | E61: =SUM(E58:E60) -> 0 | G61: Total | J61: =SUM(J58:J60) -> 0
C63: Annual | D63: Silage | E63: Silage | H63: Annual | I63: Silage | J63: Silage
A64: Seeding, Tillage, Spraying | C64: Lease | D64: Usage % | E64: Allocation | G64: Trucks & Trailers | H64: Lease | I64: Usage % | J64: Allocation
B65: enter equipment here | C65: 0 | D65: 0 | E65: =SUM(C65*D65) -> 0 | G65: 1/2 ton pickup | H65: 9600 | I65: 0.15 | J65: =SUM(H65*I65) -> 1440
C66: 0 | D66: 0 | E66: =SUM(C66*D66) -> 0 | H66: 0 | I66: 0 | J66: =SUM(H66*I66) -> 0
C67: 0 | D67: 0 | E67: =SUM(C67*D67) -> 0 | H67: 0 | I67: 0 | J67: =SUM(H67*I67) -> 0
B68: Total | C68: =SUM(C65:C67) -> 0 | E68: =SUM(E65:E67) -> 0 | G68: Total | J68: =SUM(J65:J67) -> 1440
B70: Leased Equipment TOTAL | C70: =SUM(E61+J61+E68+J68) -> 1440 | D70: =SUM(C70/D4) -> 4.8 | E70: per acre
B71: * Leased equipment costs are listed under Operating Costs on the Summary Page.

Sheet Assumptions
A1: Other Assumptions
B2: Fuel Costs:
B3: Includes fuel used for field work, and trucking in inputs.
B4: Machinery Operating Costs:
B5: Includes costs for maintenance, repairs, licenses and insurance.
B6: Crop Insurance: (2022 rates)
B7: ='Risk Analysis OLD'!B36&" - Establishment Insurance at $80/ac coverage and annual "&'Op. Cost Input'!H25&" insurance at 80% coverage. "&'Risk Analysis OLD'!B37&" - Greenfeed Silage and Corn Silage Insurance at 80% coverage." -> Forage Region 6 - Establishment Insurance at $80/ac coverage and annual Select_Hay insurance at 80% coverage. Risk Area 14 - Greenfeed Silage and Corn Silage Insurance at 80% coverage.
B9: Miscellaneous Costs:
B10: Includes overhead expenses: silage plastic, hydro, telephone, accounting, buildings, supplies and insurance, etc.
B11: Land Taxes:
B12: ="The average for the province was based on land tax assessment and mill rates of a sample of municipalities growing crops. " -> The average for the province was based on land tax assessment and mill rates of a sample of municipalities growing crops.
B14: Interest On Operating:
B15: ="Interest charges on operating costs are calculated at "&'Op. Cost Input'!E3*100&"% for six months." -> Interest charges on operating costs are calculated at 9% for six months.
B16: Land Cost:
B17: ="Based on approximate average land values. Budget assumed "&'Fixed Cost Input'!D6*100&"% financed at "&'Fixed Cost Input'!C9*100&"% for "&'Fixed Cost Input'!D9&" years, plus "&'Fixed Cost Input'!D7*100&"% land equity opportunity cost. Budget can be used to estimate cashflow by removing investment cost." -> Based on approximate average land values. Budget assumed 15% financed at 8% for 25 years, plus 1.5% land equity opportunity cost. Budget can be used to estimate cashflow by removing investment cost.
B19: ="P&I Cost (based on "&TEXT('Fixed Cost Input'!D3*('Fixed Cost Input'!D4)*'Fixed Cost Input'!D6,"$#,###")&" Mortgage) = $"&TEXT('Fixed Cost Input'!D10*('Fixed Cost Input'!D4),"#,###")&" payments per year) / "&'Fixed Cost Input'!D4&" acres = $"&TEXT('Fixed Cost Input'!D10,"0.00")&"/acre)" -> P&I Cost (based on $135,000 Mortgage) = $12,647 payments per year) / 300 acres = $42.16/acre)
B20: ="Investment = (Total Investment x Owned Equity %) x Investment Rate % (eg. (($"&TEXT('Fixed Cost Input'!D3,"#,###")&" x "&'Fixed Cost Input'!D5*100&"%) x "&'Fixed Cost Input'!D7*100&"%) = $"&TEXT('Fixed Cost Input'!D11,"0.00")&"/acre)" -> Investment = (Total Investment x Owned Equity %) x Investment Rate % (eg. (($3,000 x 85%) x 1.5%) = $38.25/acre)
B21: Machinery Cost:
B22: ="Based on approximate average machinery values. Budget assumed "&'Fixed Cost Input'!J7*100&"% financed at "&'Fixed Cost Input'!H10*100&"% for "&'Fixed Cost Input'!I10&" years, depreciation costs over "&'Fixed Cost Input'!J5&" years with a "&'Fixed Cost Input'!J4*100&"% residual value, plus "&'Fixed Cost Input'!J8*100&"% machinery equity opportunity cost. Budget can be used to estimate cashflow by removing depreciation and investment cost. " -> Based on approximate average machinery values. Budget assumed 45% financed at 8.5% for 7 years, depreciation costs over 15 years with a 25% residual value, plus 1.5% machinery equity opportunity cost. Budget can be used to estimate cashflow by removing depreciation and investment cost.
B25: ="P&I Cost (based on "&TEXT('Fixed Cost Input'!J3*'Fixed Cost Input'!J7*'Fixed Cost Input'!D4,"$#,###")&" Loan) = $"&TEXT('Fixed Cost Input'!J11*('Fixed Cost Input'!D4),"#,###")&" payment per year) / "&'Fixed Cost Input'!D4&" acres = $"&TEXT('Fixed Cost Input'!J11,"0.00")&"/acre)" -> P&I Cost (based on $54,338 Loan) = $10,616 payment per year) / 300 acres = $35.39/acre)
B26: ="Depreciation (Useage Cost) = (Total Investment - Residual Value) / Years Useful Life (eg. ($"&'Fixed Cost Input'!J3&" - ($"&'Fixed Cost Input'!J3&" x "&'Fixed Cost Input'!J4*100&"%)) / "&'Fixed Cost Input'!J5&" = $"&TEXT('Fixed Cost Input'!J12,"0.00")&"/acre)" -> Depreciation (Useage Cost) = (Total Investment - Residual Value) / Years Useful Life (eg. ($402.5 - ($402.5 x 25%)) / 15 = $20.13/acre)
B27: ="Investment = (Total Investment x Owned Equity %) x Investment Rate % (eg. ($"&'Fixed Cost Input'!J3&" x "&'Fixed Cost Input'!J6*100&"%) x "&'Fixed Cost Input'!J8*100&"%) = $"&TEXT('Fixed Cost Input'!J13,"0.00")&"/acre)" -> Investment = (Total Investment x Owned Equity %) x Investment Rate % (eg. ($402.5 x 55%) x 1.5%) = $3.32/acre)
B29: Estimated Farmgate Values:
B30: Silage prices are based on estimated prices for fall/winter 2020/21.
B32: Profitability & Breakeven Analysis:
B33: ="Gross Revenue = Price per unit x Yield per acre (eg. barley silage: $"&TEXT(Summary!D43,"0.00")&"/ton x "&Summary!D44&" ton/ac = $"&TEXT(Summary!D46, "0.00")&"/ac)" -> Gross Revenue = Price per unit x Yield per acre (eg. barley silage: $60.00/ton x 7.5 ton/ac = $450.00/ac)
B35: Net Profit = Gross Revenue - Total Cost
B36: =" (eg. barley silage: $"&TEXT(Summary!D46,"0.00")&" gross revenue - $"&TEXT(Summary!C36,"0.00")&" total cost = $"&TEXT(Summary!C51,"0.00")&" per acre)" -> (eg. barley silage: $450.00 gross revenue - $412.79 total cost = $37.21 per acre)
B38: Operating Expense Ratio = (Operating Cost / Gross Revenue) x 100
B39: =" (eg. barley silage: $"&TEXT(Summary!C24,"0.00")&" operating expense / $"&TEXT(Summary!D46,"0.00")&" gross revenue = "&TEXT(Summary!C52*100,"0.0")&"%)" -> (eg. barley silage: $228.08 operating expense / $450.00 gross revenue = 50.7%)
B41: ="Breakeven Price = Cost / Target Yield (eg. barley silage cost $"&TEXT(Summary!C36,"0.00")&" / "&Summary!D44&" ton = $"&TEXT(Summary!D56,"0.00")&" per ton)" -> Breakeven Price = Cost / Target Yield (eg. barley silage cost $412.79 / 7.5 ton = $55.04 per ton)
B43: ="Breakeven Yield = Cost / Price per Unit (eg. barley silage cost $"&TEXT(Summary!C36,"0.00")&" / $"&TEXT(Summary!D43,"0.00")&" ton = "&TEXT(Summary!D60,"0.00")&" ton)" -> Breakeven Yield = Cost / Price per Unit (eg. barley silage cost $412.79 / $60.00 ton = 6.88 ton)
B45: ="Cost of TDN ($/lb DM) Silage = Total Cost Per Ton / (2000 x silage dry matter% x silage TDN%)" -> Cost of TDN ($/lb DM) Silage = Total Cost Per Ton / (2000 x silage dry matter% x silage TDN%)
B46: =" (eg. barley silage cost $"&TEXT(Summary!D36,"#.##")&" per ton / (2000 x "&100-Production!D31&"% DM x "&Production!D30&"% TDN) = "&TEXT(Summary!C70,"$#.###")&" per pound)" -> (eg. barley silage cost $55.04 per ton / (2000 x 36.8% DM x 62.8% TDN) = $.119 per pound)
B48: ="Cost of CP ($/lb DM) Silage = Total Cost Per Ton / (2000 x silage dry matter% x silage CP%)" -> Cost of CP ($/lb DM) Silage = Total Cost Per Ton / (2000 x silage dry matter% x silage CP%)
B49: =" (eg. barley silage cost $"&TEXT(Summary!D36,"#.##")&" per ton / (2000 x "&100-Production!D31&"% DM x "&Production!D29&"% CP) = "&TEXT(Summary!E70,"$#.###")&" per pound)" -> (eg. barley silage cost $55.04 per ton / (2000 x 36.8% DM x 11.1% CP) = $.674 per pound)
B51: ="Equivalent Dry Hay Value (TDN Basis $/ton) of silage = 2000 x Hay dry matter% x Hay TDN% x Silage Cost of TDN($/lb DM)" -> Equivalent Dry Hay Value (TDN Basis $/ton) of silage = 2000 x Hay dry matter% x Hay TDN% x Silage Cost of TDN($/lb DM)
B52: ="(eg. alfalfa grass hay ($/ton) = 2000 x "&100-Production!D47&"% DM x "&Production!D46&"% TDN x "&TEXT(Summary!C70,"$#.####")&" per pound TDN barley silage (total cost @ $"&TEXT('Risk Analysis'!F81,"#.##")&" per ton)= "&TEXT('Risk Analysis'!F84,"$#.##")&" per ton) If dry hay costs less than "&TEXT('Risk Analysis'!F84,"$#.##")&" per ton, it is a lower cost feed source.)" -> (eg. alfalfa grass hay ($/ton) = 2000 x 87.4% DM x 60% TDN x $.1191 per pound TDN barley silage (total cost @ $55.04 per ton)= $124.89 per ton) If dry hay costs less than $124.89 per ton, it is a lower cost feed source.)
B55: ="Equivalent Dry Hay Value (CP Basis $/ton) of silage = 2000 x Hay dry matter% x Hay CP% x Silage Cost of CP($/lb DM)" -> Equivalent Dry Hay Value (CP Basis $/ton) of silage = 2000 x Hay dry matter% x Hay CP% x Silage Cost of CP($/lb DM)
B56: ="(eg. alfalfa grass hay ($/ton) = 2000 x "&100-Production!D47&"% DM x "&Production!D45&"% CP x "&TEXT(Summary!E70,"$#.####")&" per pound TDN barley silage (total cost @ $"&TEXT('Risk Analysis'!F81,".##")&" per ton)= "&TEXT('Risk Analysis'!F91,"$#.##")&" per ton) If dry hay costs less than "&TEXT('Risk Analysis'!F91,"$#.##")&" per ton, it is a lower cost feed source.)" -> (eg. alfalfa grass hay ($/ton) = 2000 x 87.4% DM x 14% CP x $.6737 per pound TDN barley silage (total cost @ $55.04 per ton)= $164.87 per ton) If dry hay costs less than $164.87 per ton, it is a lower cost feed source.)
I59: ="January, "&Introduction!L9 -> January, 2024
